Workbook

Sheet Key Concepts
B2: Begin with Capacity and Output -- Nothing with Money
B4: Use Switches for Output and Capacity -- Keep in Sight
B6: Use LOOKUP and not VLOOKUP or HLOOKUP
B8: Use Indices for Inflation

Sheet Working Exercise Blank
A1: Timeline
B2: Start of Period
B3: End of Period
B4: Construction Phase
B5: Operation Phase
B6: Commercial Operation
B7: Decommissioning
B8: Last Construction Month
B9: Days
B10: Hours
B11: Year
A14: Assumptions
B15: Timing Assumptions
C16: Model Start | E16: date | F16: 2015-03-01
C17: Commercial Operation | E17: date | F17: 2018-07-01
C18: Construction Period | E18: months | F18: =DAYS360(F16,F17)/30 -> 40
C19: Plant Life | E19: years | F19: 25
C20: Decomissioning | E20: date | F20: =EDATE(F17,F19*12) -> 2043-07-01
B22: Operating Assumptions
C23: Capacity | E23: MW | F23: 300
C25: Capacity Factor | E25: Code Number | F25: 1 | H25: 1 | I25: 2 | J25: 3 | K25: 4
E26: % | F26: Month | G26: Date | H26: P25 | I26: P50 | J26: P75 | K26: P95
F27: 0 | G27: =EDATE($F$17,F27) -> 2018-07-01 | H27: 0.35 | I27: 0.33 | J27: 0.3 | K27: 0.25
F28: 12 | G28: =EDATE($F$17,F28) -> 2019-07-01 | H28: 0.36 | I28: 0.35 | J28: 0.3 | K28: 0.26
F29: 50 | G29: 2022-09-01 | H29: 0.365 | I29: 0.355 | J29: 0.3 | K29: 0.255
F30: 120 | G30: 2028-07-01 | H30: 0.365 | I30: 0.34 | J30: 0.3 | K30: 0.253
F31: 250 | G31: 2039-05-01 | H31: 0.365 | I31: 0.33 | J31: 0.3 | K31: 0.24
B33: Capital Expenditures
C34: Capex/kW | E34: USD/kW | F34: 2000
C35: Construction Year | G35: 1 | H35: 2 | I35: 3 | J35: 4
C36: Percent | G36: 0.2 | H36: 0.65 | I36: =1-SUM(G36:H36) -> 0.15 | J36: 0
B38: Revenue Assumptions
C39: Merchant Revenues | E39: USD/MWH | F39: 56.63
C41: Year | G41: 2015 | H41: 2016 | I41: 2017 | J41: 2018 | K41: 2019 | L41: 2020 | M41: 2021 | N41: 2022 | O41: 2023
C42: Scenario Number | E42: Code | F42: 1
D43: Base Case Revenue Growth | G43: -0.03 | H43: 0 | I43: 0.01 | J43: 0.025 | K43: 0.02 | L43: 0.015 | M43: 0.015 | N43: 0.015 | O43: 0.015
D44: Low Case Growth | G44: -0.04 | H44: -0.01 | I44: 0 | J44: 0 | K44: 0.01 | L44: 0.01 | M44: 0.01 | N44: 0.015 | O44: 0.015
D45: High Case Growth | G45: 0 | H45: 0.015 | I45: 0.02 | J45: 0.025 | K45: 0.025 | L45: 0.025 | M45: 0.025 | N45: 0.015 | O45: 0.015
D47: =INDEX(D43:D45,$F$42) -> Base Case Revenue Growth | G47: =INDEX(G43:G45,$F$42) -> -0.03 | H47: 0 | I47: 0.01 | J47: 0.025 | K47: 0.02 | L47: 0.015 | M47: 0.015 | N47: 0.015 | O47: 0.015
B49: Operating Expenses | E49: Base Period | F49: 2016-01-01
C50: Fixed OM | F50: Age | G50: USD/kW-year
F51: 1 | G51: 35
F52: 10 | G52: 42
F53: 15 | G53: 45
C55: O&M Escalation (General Inflation) | G55: 2015 | H55: 2016 | I55: 2017 | J55: 2018 | K55: 2019 | L55: 2020 | M55: 2021 | N55: 2022 | O55: 2023
C56: Scenario Number | E56: Code | F56: 1
D57: Base Case Inflation Case | G57: 0.015 | H57: 0.02 | I57: 0.02 | J57: 0.02 | K57: 0.02 | L57: 0.03 | M57: 0.03 | N57: 0.03 | O57: 0.03
D58: Low Inflation Case | G58: 0 | H58: 0.002 | I58: 0.005 | J58: 0.01 | K58: 0.01 | L58: 0.01 | M58: 0.01 | N58: 0.01 | O58: 0.01
D59: High Inflation Case | G59: 0.015 | H59: 0.0175 | I59: 0.019 | J59: 0.025 | K59: 0.03 | L59: 0.03 | M59: 0.03 | N59: 0.03 | O59: 0.03
D61: =INDEX(D57:D59,$F$56) -> Base Case Inflation Case | G61: =INDEX(G57:G59,$F$56) -> 0.015 | H61: 0.02 | I61: 0.02 | J61: 0.02 | K61: 0.02 | L61: 0.03 | M61: 0.03 | N61: 0.03 | O61: 0.03
A63: Capacity, Output and Capital Expenditures
B64: Plant Capacity
B65: Capacity Factor
C66: Row Number
C67: Capacity Factor
C69: Generation
B71: Capital Expenditures
C72: Construction Period
C73: Construction Year
C74: Unadjusted S-Curve
C75: Accumulated S-Curve
C76: Adjustment
C77: Adjusted S-Curve
C78: Total Capital Expenditues
A80: EBITDA
B81: Revenues
C82: Base Merchant Price
C83: Annual Growth
C84: Periodic/Monthly Growth
C85: Price Index
C86: Nominal Price
C87: Generation
C88: Merchant Revenues
B90: Operating Expense
C91: Age of Project in Months
C92: Age of Project in Years
C93: Real Operting Cost/kW
C94: Periodic Inflation Rate
C95: Inflation Index
C96: Nominal Opexp per kW
C97: Nominal OpEX
B100: Pre-tax Cashflow
B101: Pre-tax IRR
B102: Pre-tax IRR

Sheet Working Exercise Completed
A1: Timeline
B2: Start of Period | E2: Date | K2: =J3+1 -> 2015-03-01 | L2: =K3+1 -> 2015-04-01 | M2: 2015-05-01 | N2: 2015-06-01 | O2: 2015-07-01 | P2: 2015-08-01 | Q2: 2015-09-01 | R2: 2015-10-01 | S2: 2015-11-01 | T2: 2015-12-01 | U2: 2016-01-01 | V2: 2016-02-01 | W2: 2016-03-01 | X2: 2016-04-01 | Y2: 2016-05-01 | Z2: 2016-06-01 | AA2: 2016-07-01 | AB2: 2016-08-01 | AC2: 2016-09-01 | AD2: 2016-10-01 | AE2: 2016-11-01 | AF2: 2016-12-01 | AG2: 2017-01-01 | AH2: 2017-02-01 | AI2: 2017-03-01 | AJ2: 2017-04-01 | AK2: 2017-05-01 | AL2: 2017-06-01 | AM2: 2017-07-01 | AN2: 2017-08-01 | AO2: 2017-09-01 | AP2: 2017-10-01 | AQ2: 2017-11-01 | AR2: 2017-12-01 | AS2: 2018-01-01 | AT2: 2018-02-01 | AU2: 2018-03-01 | AV2: 2018-04-01 | AW2: 2018-05-01 | AX2: 2018-06-01 | AY2: 2018-07-01 | AZ2: 2018-08-01 | BA2: 2018-09-01 | BB2: 2018-10-01 | BC2: 2018-11-01 | BD2: 2018-12-01 | BE2: 2019-01-01 | BF2: 2019-02-01 | BG2: 2019-03-01 | BH2: 2019-04-01 | BI2: 2019-05-01 | BJ2: 2019-06-01 | BK2: 2019-07-01 | BL2: 2019-08-01 | BM2: 2019-09-01 | BN2: 2019-10-01 | BO2: 2019-11-01 | BP2: 2019-12-01 | BQ2: 2020-01-01 | BR2: 2020-02-01 | BS2: 2020-03-01 | BT2: 2020-04-01 | BU2: 2020-05-01 | BV2: 2020-06-01 | BW2: 2020-07-01 | BX2: =BW3+1 -> 2020-08-01 | BY2: 2020-09-01 | BZ2: 2020-10-01 | CA2: 2020-11-01 | CB2: 2020-12-01 | CC2: 2021-01-01 | CD2: 2021-02-01 | CE2: 2021-03-01 | CF2: 2021-04-01 | CG2: 2021-05-01 | CH2: 2021-06-01 | CI2: 2021-07-01 | CJ2: 2021-08-01 | CK2: 2021-09-01 | CL2: 2021-10-01 | CM2: 2021-11-01 | CN2: 2021-12-01 | CO2: 2022-01-01 | CP2: 2022-02-01 | CQ2: 2022-03-01 | CR2: 2022-04-01 | CS2: 2022-05-01 | CT2: 2022-06-01 | CU2: 2022-07-01 | CV2: 2022-08-01 | CW2: 2022-09-01 | CX2: 2022-10-01 | CY2: 2022-11-01 | CZ2: 2022-12-01 | DA2: 2023-01-01 | DB2: 2023-02-01 | DC2: 2023-03-01 | DD2: 2023-04-01 | DE2: 2023-05-01 | DF2: 2023-06-01 | DG2: 2023-07-01 | DH2: 2023-08-01 | DI2: 2023-09-01 | DJ2: 2023-10-01 | DK2: 2023-11-01 | DL2: 2023-12-01 | DM2: 2024-01-01 | DN2: 2024-02-01 | DO2: 2024-03-01 | DP2: 2024-04-01 | DQ2: 2024-05-01 | DR2: 2024-06-01 | DS2: 2024-07-01 | DT2: 2024-08-01 | DU2: 2024-09-01 | DV2: 2024-10-01 | DW2: 2024-11-01 | DX2: 2024-12-01 | DY2: 2025-01-01 | DZ2: 2025-02-01 | EA2: 2025-03-01 | EB2: 2025-04-01 | EC2: 2025-05-01 | ED2: 2025-06-01 | EE2: 2025-07-01 | EF2: 2025-08-01 | EG2: 2025-09-01 | EH2: 2025-10-01 | EI2: 2025-11-01 | EJ2: =EI3+1 -> 2025-12-01 | EK2: 2026-01-01 | EL2: 2026-02-01 | EM2: 2026-03-01 | EN2: 2026-04-01 | EO2: 2026-05-01 | EP2: 2026-06-01 | EQ2: 2026-07-01 | ER2: 2026-08-01 | ES2: 2026-09-01 | ET2: 2026-10-01 | EU2: 2026-11-01 | EV2: 2026-12-01 | EW2: 2027-01-01 | EX2: 2027-02-01 | EY2: 2027-03-01 | EZ2: 2027-04-01 | FA2: 2027-05-01 | FB2: 2027-06-01 | FC2: 2027-07-01 | FD2: 2027-08-01 | FE2: 2027-09-01 | FF2: 2027-10-01 | FG2: 2027-11-01 | FH2: 2027-12-01 | FI2: 2028-01-01 | FJ2: 2028-02-01 | FK2: 2028-03-01 | FL2: 2028-04-01 | FM2: 2028-05-01 | FN2: 2028-06-01 | FO2: 2028-07-01 | FP2: 2028-08-01 | FQ2: 2028-09-01 | FR2: 2028-10-01 | FS2: 2028-11-01 | FT2: 2028-12-01 | FU2: 2029-01-01 | FV2: 2029-02-01 | FW2: 2029-03-01 | FX2: 2029-04-01 | FY2: 2029-05-01 | FZ2: 2029-06-01 | GA2: 2029-07-01 | GB2: 2029-08-01 | GC2: 2029-09-01 | GD2: 2029-10-01 | GE2: 2029-11-01 | GF2: 2029-12-01 | GG2: 2030-01-01 | GH2: 2030-02-01 | GI2: 2030-03-01 | GJ2: 2030-04-01 | GK2: 2030-05-01 | GL2: 2030-06-01 | GM2: 2030-07-01 | GN2: 2030-08-01 | GO2: 2030-09-01 | GP2: 2030-10-01 | GQ2: 2030-11-01 | GR2: 2030-12-01 | GS2: 2031-01-01 | GT2: 2031-02-01 | GU2: 2031-03-01 | GV2: =GU3+1 -> 2031-04-01 | GW2: 2031-05-01 | GX2: 2031-06-01 | GY2: 2031-07-01 | GZ2: 2031-08-01 | HA2: 2031-09-01 | HB2: 2031-10-01 | HC2: 2031-11-01 | HD2: 2031-12-01 | HE2: 2032-01-01 | HF2: 2032-02-01 | HG2: 2032-03-01 | HH2: 2032-04-01 | HI2: 2032-05-01 | HJ2: 2032-06-01 | HK2: 2032-07-01 | HL2: 2032-08-01 | HM2: 2032-09-01 | HN2: 2032-10-01 | HO2: 2032-11-01 | HP2: 2032-12-01 | HQ2: 2033-01-01 | HR2: 2033-02-01 | HS2: 2033-03-01 | HT2: 2033-04-01 | HU2: 2033-05-01 | HV2: 2033-06-01 | HW2: 2033-07-01 | HX2: 2033-08-01 | HY2: 2033-09-01 | HZ2: 2033-10-01 | IA2: 2033-11-01 | IB2: 2033-12-01 | IC2: 2034-01-01 | ID2: 2034-02-01 | IE2: 2034-03-01 | IF2: 2034-04-01 | IG2: 2034-05-01 | IH2: 2034-06-01 | II2: 2034-07-01 | IJ2: 2034-08-01 | IK2: 2034-09-01 | IL2: 2034-10-01 | IM2: 2034-11-01 | IN2: 2034-12-01 | IO2: 2035-01-01 | IP2: 2035-02-01 | IQ2: 2035-03-01 | IR2: 2035-04-01 | IS2: 2035-05-01 | IT2: 2035-06-01 | IU2: 2035-07-01 | IV2: 2035-08-01 | IW2: 2035-09-01 | IX2: 2035-10-01 | IY2: 2035-11-01 | IZ2: 2035-12-01 | JA2: 2036-01-01 | JB2: 2036-02-01 | JC2: 2036-03-01 | JD2: 2036-04-01 | JE2: 2036-05-01 | JF2: 2036-06-01 | JG2: 2036-07-01 | JH2: =JG3+1 -> 2036-08-01 | JI2: 2036-09-01 | JJ2: 2036-10-01 | JK2: 2036-11-01 | JL2: 2036-12-01 | JM2: 2037-01-01 | JN2: 2037-02-01 | JO2: 2037-03-01 | JP2: 2037-04-01 | JQ2: 2037-05-01 | JR2: 2037-06-01 | JS2: 2037-07-01 | JT2: 2037-08-01 | JU2: 2037-09-01 | JV2: 2037-10-01 | JW2: 2037-11-01 | JX2: 2037-12-01 | JY2: 2038-01-01 | JZ2: 2038-02-01 | KA2: 2038-03-01 | KB2: 2038-04-01 | KC2: 2038-05-01 | KD2: 2038-06-01 | KE2: 2038-07-01 | KF2: 2038-08-01 | KG2: 2038-09-01 | KH2: 2038-10-01 | KI2: 2038-11-01 | KJ2: 2038-12-01 | KK2: 2039-01-01 | KL2: 2039-02-01 | KM2: 2039-03-01 | KN2: 2039-04-01 | KO2: 2039-05-01 | KP2: 2039-06-01 | KQ2: 2039-07-01 | KR2: 2039-08-01 | KS2: 2039-09-01 | KT2: 2039-10-01 | KU2: 2039-11-01 | KV2: 2039-12-01 | KW2: 2040-01-01 | KX2: 2040-02-01 | KY2: 2040-03-01 | KZ2: 2040-04-01 | LA2: 2040-05-01 | LB2: 2040-06-01 | LC2: 2040-07-01 | LD2: 2040-08-01 | LE2: 2040-09-01 | LF2: 2040-10-01 | LG2: 2040-11-01 | LH2: 2040-12-01 | LI2: 2041-01-01 | LJ2: 2041-02-01 | LK2: 2041-03-01 | LL2: 2041-04-01 | LM2: 2041-05-01 | LN2: 2041-06-01 | LO2: 2041-07-01 | LP2: 2041-08-01 | LQ2: 2041-09-01 | LR2: 2041-10-01 | LS2: 2041-11-01 | LT2: =LS3+1 -> 2041-12-01 | LU2: 2042-01-01 | LV2: 2042-02-01 | LW2: 2042-03-01 | LX2: 2042-04-01 | LY2: 2042-05-01 | LZ2: 2042-06-01 | MA2: 2042-07-01 | MB2: 2042-08-01 | MC2: 2042-09-01 | MD2: 2042-10-01 | ME2: 2042-11-01 | MF2: 2042-12-01 | MG2: 2043-01-01 | MH2: 2043-02-01 | MI2: 2043-03-01 | MJ2: 2043-04-01 | MK2: 2043-05-01 | ML2: 2043-06-01 | MM2: 2043-07-01 | MN2: 2043-08-01 | MO2: 2043-09-01 | MP2: 2043-10-01 | MQ2: 2043-11-01 | MR2: 2043-12-01 | MS2: 2044-01-01 | MT2: 2044-02-01 | MU2: 2044-03-01 | MV2: 2044-04-01 | MW2: 2044-05-01 | MX2: 2044-06-01 | MY2: 2044-07-01 | MZ2: 2044-08-01 | NA2: 2044-09-01 | NB2: 2044-10-01 | NC2: 2044-11-01 | ND2: 2044-12-01 | NE2: 2045-01-01 | NF2: 2045-02-01 | NG2: 2045-03-01 | NH2: 2045-04-01 | NI2: 2045-05-01 | NJ2: 2045-06-01 | NK2: 2045-07-01 | NL2: 2045-08-01 | NM2: 2045-09-01 | NN2: 2045-10-01 | NO2: 2045-11-01 | NP2: 2045-12-01 | NQ2: 2046-01-01 | NR2: 2046-02-01 | NS2: 2046-03-01 | NT2: 2046-04-01 | NU2: 2046-05-01 | NV2: 2046-06-01 | NW2: 2046-07-01 | NX2: 2046-08-01 | NY2: 2046-09-01 | NZ2: 2046-10-01 | OA2: 2046-11-01 | OB2: 2046-12-01 | OC2: 2047-01-01 | OD2: 2047-02-01 | OE2: 2047-03-01
B3: End of Period | E3: Date | J3: =F16-1 -> 2015-02-28 | K3: =EDATE(K2,1)-1 -> 2015-03-31 | L3: =EDATE(L2,1)-1 -> 2015-04-30 | M3: 2015-05-31 | N3: 2015-06-30 | O3: 2015-07-31 | P3: 2015-08-31 | Q3: 2015-09-30 | R3: 2015-10-31 | S3: 2015-11-30 | T3: 2015-12-31 | U3: 2016-01-31 | V3: 2016-02-29 | W3: 2016-03-31 | X3: 2016-04-30 | Y3: 2016-05-31 | Z3: 2016-06-30 | AA3: 2016-07-31 | AB3: 2016-08-31 | AC3: 2016-09-30 | AD3: 2016-10-31 | AE3: 2016-11-30 | AF3: 2016-12-31 | AG3: 2017-01-31 | AH3: 2017-02-28 | AI3: 2017-03-31 | AJ3: 2017-04-30 | AK3: 2017-05-31 | AL3: 2017-06-30 | AM3: 2017-07-31 | AN3: 2017-08-31 | AO3: 2017-09-30 | AP3: 2017-10-31 | AQ3: 2017-11-30 | AR3: 2017-12-31 | AS3: 2018-01-31 | AT3: 2018-02-28 | AU3: 2018-03-31 | AV3: 2018-04-30 | AW3: 2018-05-31 | AX3: 2018-06-30 | AY3: 2018-07-31 | AZ3: 2018-08-31 | BA3: 2018-09-30 | BB3: 2018-10-31 | BC3: 2018-11-30 | BD3: 2018-12-31 | BE3: 2019-01-31 | BF3: 2019-02-28 | BG3: 2019-03-31 | BH3: 2019-04-30 | BI3: 2019-05-31 | BJ3: 2019-06-30 | BK3: 2019-07-31 | BL3: 2019-08-31 | BM3: 2019-09-30 | BN3: 2019-10-31 | BO3: 2019-11-30 | BP3: 2019-12-31 | BQ3: 2020-01-31 | BR3: 2020-02-29 | BS3: 2020-03-31 | BT3: 2020-04-30 | BU3: 2020-05-31 | BV3: 2020-06-30 | BW3: 2020-07-31 | BX3: =EDATE(BX2,1)-1 -> 2020-08-31 | BY3: 2020-09-30 | BZ3: 2020-10-31 | CA3: 2020-11-30 | CB3: 2020-12-31 | CC3: 2021-01-31 | CD3: 2021-02-28 | CE3: 2021-03-31 | CF3: 2021-04-30 | CG3: 2021-05-31 | CH3: 2021-06-30 | CI3: 2021-07-31 | CJ3: 2021-08-31 | CK3: 2021-09-30 | CL3: 2021-10-31 | CM3: 2021-11-30 | CN3: 2021-12-31 | CO3: 2022-01-31 | CP3: 2022-02-28 | CQ3: 2022-03-31 | CR3: 2022-04-30 | CS3: 2022-05-31 | CT3: 2022-06-30 | CU3: 2022-07-31 | CV3: 2022-08-31 | CW3: 2022-09-30 | CX3: 2022-10-31 | CY3: 2022-11-30 | CZ3: 2022-12-31 | DA3: 2023-01-31 | DB3: 2023-02-28 | DC3: 2023-03-31 | DD3: 2023-04-30 | DE3: 2023-05-31 | DF3: 2023-06-30 | DG3: 2023-07-31 | DH3: 2023-08-31 | DI3: 2023-09-30 | DJ3: 2023-10-31 | DK3: 2023-11-30 | DL3: 2023-12-31 | DM3: 2024-01-31 | DN3: 2024-02-29 | DO3: 2024-03-31 | DP3: 2024-04-30 | DQ3: 2024-05-31 | DR3: 2024-06-30 | DS3: 2024-07-31 | DT3: 2024-08-31 | DU3: 2024-09-30 | DV3: 2024-10-31 | DW3: 2024-11-30 | DX3: 2024-12-31 | DY3: 2025-01-31 | DZ3: 2025-02-28 | EA3: 2025-03-31 | EB3: 2025-04-30 | EC3: 2025-05-31 | ED3: 2025-06-30 | EE3: 2025-07-31 | EF3: 2025-08-31 | EG3: 2025-09-30 | EH3: 2025-10-31 | EI3: 2025-11-30 | EJ3: =EDATE(EJ2,1)-1 -> 2025-12-31 | EK3: 2026-01-31 | EL3: 2026-02-28 | EM3: 2026-03-31 | EN3: 2026-04-30 | EO3: 2026-05-31 | EP3: 2026-06-30 | EQ3: 2026-07-31 | ER3: 2026-08-31 | ES3: 2026-09-30 | ET3: 2026-10-31 | EU3: 2026-11-30 | EV3: 2026-12-31 | EW3: 2027-01-31 | EX3: 2027-02-28 | EY3: 2027-03-31 | EZ3: 2027-04-30 | FA3: 2027-05-31 | FB3: 2027-06-30 | FC3: 2027-07-31 | FD3: 2027-08-31 | FE3: 2027-09-30 | FF3: 2027-10-31 | FG3: 2027-11-30 | FH3: 2027-12-31 | FI3: 2028-01-31 | FJ3: 2028-02-29 | FK3: 2028-03-31 | FL3: 2028-04-30 | FM3: 2028-05-31 | FN3: 2028-06-30 | FO3: 2028-07-31 | FP3: 2028-08-31 | FQ3: 2028-09-30 | FR3: 2028-10-31 | FS3: 2028-11-30 | FT3: 2028-12-31 | FU3: 2029-01-31 | FV3: 2029-02-28 | FW3: 2029-03-31 | FX3: 2029-04-30 | FY3: 2029-05-31 | FZ3: 2029-06-30 | GA3: 2029-07-31 | GB3: 2029-08-31 | GC3: 2029-09-30 | GD3: 2029-10-31 | GE3: 2029-11-30 | GF3: 2029-12-31 | GG3: 2030-01-31 | GH3: 2030-02-28 | GI3: 2030-03-31 | GJ3: 2030-04-30 | GK3: 2030-05-31 | GL3: 2030-06-30 | GM3: 2030-07-31 | GN3: 2030-08-31 | GO3: 2030-09-30 | GP3: 2030-10-31 | GQ3: 2030-11-30 | GR3: 2030-12-31 | GS3: 2031-01-31 | GT3: 2031-02-28 | GU3: 2031-03-31 | GV3: =EDATE(GV2,1)-1 -> 2031-04-30 | GW3: 2031-05-31 | GX3: 2031-06-30 | GY3: 2031-07-31 | GZ3: 2031-08-31 | HA3: 2031-09-30 | HB3: 2031-10-31 | HC3: 2031-11-30 | HD3: 2031-12-31 | HE3: 2032-01-31 | HF3: 2032-02-29 | HG3: 2032-03-31 | HH3: 2032-04-30 | HI3: 2032-05-31 | HJ3: 2032-06-30 | HK3: 2032-07-31 | HL3: 2032-08-31 | HM3: 2032-09-30 | HN3: 2032-10-31 | HO3: 2032-11-30 | HP3: 2032-12-31 | HQ3: 2033-01-31 | HR3: 2033-02-28 | HS3: 2033-03-31 | HT3: 2033-04-30 | HU3: 2033-05-31 | HV3: 2033-06-30 | HW3: 2033-07-31 | HX3: 2033-08-31 | HY3: 2033-09-30 | HZ3: 2033-10-31 | IA3: 2033-11-30 | IB3: 2033-12-31 | IC3: 2034-01-31 | ID3: 2034-02-28 | IE3: 2034-03-31 | IF3: 2034-04-30 | IG3: 2034-05-31 | IH3: 2034-06-30 | II3: 2034-07-31 | IJ3: 2034-08-31 | IK3: 2034-09-30 | IL3: 2034-10-31 | IM3: 2034-11-30 | IN3: 2034-12-31 | IO3: 2035-01-31 | IP3: 2035-02-28 | IQ3: 2035-03-31 | IR3: 2035-04-30 | IS3: 2035-05-31 | IT3: 2035-06-30 | IU3: 2035-07-31 | IV3: 2035-08-31 | IW3: 2035-09-30 | IX3: 2035-10-31 | IY3: 2035-11-30 | IZ3: 2035-12-31 | JA3: 2036-01-31 | JB3: 2036-02-29 | JC3: 2036-03-31 | JD3: 2036-04-30 | JE3: 2036-05-31 | JF3: 2036-06-30 | JG3: 2036-07-31 | JH3: =EDATE(JH2,1)-1 -> 2036-08-31 | JI3: 2036-09-30 | JJ3: 2036-10-31 | JK3: 2036-11-30 | JL3: 2036-12-31 | JM3: 2037-01-31 | JN3: 2037-02-28 | JO3: 2037-03-31 | JP3: 2037-04-30 | JQ3: 2037-05-31 | JR3: 2037-06-30 | JS3: 2037-07-31 | JT3: 2037-08-31 | JU3: 2037-09-30 | JV3: 2037-10-31 | JW3: 2037-11-30 | JX3: 2037-12-31 | JY3: 2038-01-31 | JZ3: 2038-02-28 | KA3: 2038-03-31 | KB3: 2038-04-30 | KC3: 2038-05-31 | KD3: 2038-06-30 | KE3: 2038-07-31 | KF3: 2038-08-31 | KG3: 2038-09-30 | KH3: 2038-10-31 | KI3: 2038-11-30 | KJ3: 2038-12-31 | KK3: 2039-01-31 | KL3: 2039-02-28 | KM3: 2039-03-31 | KN3: 2039-04-30 | KO3: 2039-05-31 | KP3: 2039-06-30 | KQ3: 2039-07-31 | KR3: 2039-08-31 | KS3: 2039-09-30 | KT3: 2039-10-31 | KU3: 2039-11-30 | KV3: 2039-12-31 | KW3: 2040-01-31 | KX3: 2040-02-29 | KY3: 2040-03-31 | KZ3: 2040-04-30 | LA3: 2040-05-31 | LB3: 2040-06-30 | LC3: 2040-07-31 | LD3: 2040-08-31 | LE3: 2040-09-30 | LF3: 2040-10-31 | LG3: 2040-11-30 | LH3: 2040-12-31 | LI3: 2041-01-31 | LJ3: 2041-02-28 | LK3: 2041-03-31 | LL3: 2041-04-30 | LM3: 2041-05-31 | LN3: 2041-06-30 | LO3: 2041-07-31 | LP3: 2041-08-31 | LQ3: 2041-09-30 | LR3: 2041-10-31 | LS3: 2041-11-30 | LT3: =EDATE(LT2,1)-1 -> 2041-12-31 | LU3: 2042-01-31 | LV3: 2042-02-28 | LW3: 2042-03-31 | LX3: 2042-04-30 | LY3: 2042-05-31 | LZ3: 2042-06-30 | MA3: 2042-07-31 | MB3: 2042-08-31 | MC3: 2042-09-30 | MD3: 2042-10-31 | ME3: 2042-11-30 | MF3: 2042-12-31 | MG3: 2043-01-31 | MH3: 2043-02-28 | MI3: 2043-03-31 | MJ3: =EDATE(MJ2,1)-1 -> 2043-04-30 | MK3: =EDATE(MK2,1)-1 -> 2043-05-31 | ML3: =EDATE(ML2,1)-1 -> 2043-06-30 | MM3: =EDATE(MM2,1)-1 -> 2043-07-31 | MN3: =EDATE(MN2,1)-1 -> 2043-08-31 | MO3: =EDATE(MO2,1)-1 -> 2043-09-30 | MP3: =EDATE(MP2,1)-1 -> 2043-10-31 | MQ3: =EDATE(MQ2,1)-1 -> 2043-11-30 | MR3: =EDATE(MR2,1)-1 -> 2043-12-31 | MS3: =EDATE(MS2,1)-1 -> 2044-01-31 | MT3: =EDATE(MT2,1)-1 -> 2044-02-29 | MU3: =EDATE(MU2,1)-1 -> 2044-03-31 | MV3: =EDATE(MV2,1)-1 -> 2044-04-30 | MW3: =EDATE(MW2,1)-1 -> 2044-05-31 | MX3: =EDATE(MX2,1)-1 -> 2044-06-30 | MY3: =EDATE(MY2,1)-1 -> 2044-07-31 | MZ3: =EDATE(MZ2,1)-1 -> 2044-08-31 | NA3: =EDATE(NA2,1)-1 -> 2044-09-30 | NB3: =EDATE(NB2,1)-1 -> 2044-10-31 | NC3: =EDATE(NC2,1)-1 -> 2044-11-30 | ND3: =EDATE(ND2,1)-1 -> 2044-12-31 | NE3: =EDATE(NE2,1)-1 -> 2045-01-31 | NF3: =EDATE(NF2,1)-1 -> 2045-02-28 | NG3: =EDATE(NG2,1)-1 -> 2045-03-31 | NH3: =EDATE(NH2,1)-1 -> 2045-04-30 | NI3: =EDATE(NI2,1)-1 -> 2045-05-31 | NJ3: =EDATE(NJ2,1)-1 -> 2045-06-30 | NK3: =EDATE(NK2,1)-1 -> 2045-07-31 | NL3: =EDATE(NL2,1)-1 -> 2045-08-31 | NM3: =EDATE(NM2,1)-1 -> 2045-09-30 | NN3: =EDATE(NN2,1)-1 -> 2045-10-31 | NO3: =EDATE(NO2,1)-1 -> 2045-11-30 | NP3: =EDATE(NP2,1)-1 -> 2045-12-31 | NQ3: =EDATE(NQ2,1)-1 -> 2046-01-31 | NR3: =EDATE(NR2,1)-1 -> 2046-02-28 | NS3: =EDATE(NS2,1)-1 -> 2046-03-31 | NT3: =EDATE(NT2,1)-1 -> 2046-04-30 | NU3: =EDATE(NU2,1)-1 -> 2046-05-31 | NV3: =EDATE(NV2,1)-1 -> 2046-06-30 | NW3: =EDATE(NW2,1)-1 -> 2046-07-31 | NX3: =EDATE(NX2,1)-1 -> 2046-08-31 | NY3: =EDATE(NY2,1)-1 -> 2046-09-30 | NZ3: =EDATE(NZ2,1)-1 -> 2046-10-31 | OA3: =EDATE(OA2,1)-1 -> 2046-11-30 | OB3: =EDATE(OB2,1)-1 -> 2046-12-31 | OC3: =EDATE(OC2,1)-1 -> 2047-01-31 | OD3: =EDATE(OD2,1)-1 -> 2047-02-28 | OE3: =EDATE(OE2,1)-1 -> 2047-03-31
B4: Construction Phase | G4: =F16 -> 2015-03-01 | H4: =F17 -> 2018-07-01 | I4: =COUNTIF(K4:MI4,TRUE)=F18 -> TRUE | K4: =AND(K$2>=$G4,K$2<$H4) -> TRUE | L4: TRUE | M4: TRUE | N4: TRUE | O4: TRUE | P4: TRUE | Q4: TRUE | R4: TRUE | S4: TRUE | T4: TRUE | U4: =AND(U$2>=$G4,U$2<$H4) -> TRUE | V4: TRUE | W4: TRUE | X4: TRUE | Y4: TRUE | Z4: TRUE | AA4: TRUE | AB4: TRUE | AC4: TRUE | AD4: TRUE | AE4: =AND(AE$2>=$G4,AE$2<$H4) -> TRUE | AF4: TRUE | AG4: TRUE | AH4: TRUE | AI4: TRUE | AJ4: TRUE | AK4: TRUE | AL4: TRUE | AM4: TRUE | AN4: TRUE | AO4: =AND(AO$2>=$G4,AO$2<$H4) -> TRUE | AP4: TRUE | AQ4: TRUE | AR4: TRUE | AS4: TRUE | AT4: TRUE | AU4: TRUE | AV4: TRUE | AW4: TRUE | AX4: TRUE | AY4: =AND(AY$2>=$G4,AY$2<$H4) -> FALSE | AZ4: FALSE | BA4: FALSE | BB4: FALSE | BC4: FALSE | BD4: FALSE | BE4: FALSE | BF4: FALSE | BG4: FALSE | BH4: FALSE | BI4: =AND(BI$2>=$G4,BI$2<$H4) -> FALSE | BJ4: FALSE | BK4: FALSE | BL4: FALSE | BM4: FALSE | BN4: FALSE | BO4: FALSE | BP4: FALSE | BQ4: FALSE | BR4: FALSE | BS4: =AND(BS$2>=$G4,BS$2<$H4) -> FALSE | BT4: FALSE | BU4: FALSE | BV4: FALSE | BW4: FALSE | BX4: FALSE | BY4: FALSE | BZ4: FALSE | CA4: FALSE | CB4: FALSE | CC4: =AND(CC$2>=$G4,CC$2<$H4) -> FALSE | CD4: FALSE | CE4: FALSE | CF4: FALSE | CG4: FALSE | CH4: FALSE | CI4: FALSE | CJ4: FALSE | CK4: FALSE | CL4: FALSE | CM4: =AND(CM$2>=$G4,CM$2<$H4) -> FALSE | CN4: FALSE | CO4: FALSE | CP4: FALSE | CQ4: FALSE | CR4: FALSE | CS4: FALSE | CT4: FALSE | CU4: FALSE | CV4: FALSE | CW4: =AND(CW$2>=$G4,CW$2<$H4) -> FALSE | CX4: FALSE | CY4: FALSE | CZ4: FALSE | DA4: FALSE | DB4: FALSE | DC4: FALSE | DD4: FALSE | DE4: FALSE | DF4: FALSE | DG4: =AND(DG$2>=$G4,DG$2<$H4) -> FALSE | DH4: FALSE | DI4: FALSE | DJ4: FALSE | DK4: FALSE | DL4: FALSE | DM4: FALSE | DN4: FALSE | DO4: FALSE | DP4: FALSE | DQ4: =AND(DQ$2>=$G4,DQ$2<$H4) -> FALSE | DR4: FALSE | DS4: FALSE | DT4: FALSE | DU4: FALSE | DV4: FALSE | DW4: FALSE | DX4: FALSE | DY4: FALSE | DZ4: FALSE | EA4: =AND(EA$2>=$G4,EA$2<$H4) -> FALSE | EB4: FALSE | EC4: FALSE | ED4: FALSE | EE4: FALSE | EF4: FALSE | EG4: FALSE | EH4: FALSE | EI4: FALSE | EJ4: FALSE | EK4: =AND(EK$2>=$G4,EK$2<$H4) -> FALSE | EL4: FALSE | EM4: FALSE | EN4: FALSE | EO4: FALSE | EP4: FALSE | EQ4: FALSE | ER4: FALSE | ES4: FALSE | ET4: FALSE | EU4: =AND(EU$2>=$G4,EU$2<$H4) -> FALSE | EV4: FALSE | EW4: FALSE | EX4: FALSE | EY4: FALSE | EZ4: FALSE | FA4: FALSE | FB4: FALSE | FC4: FALSE | FD4: FALSE | FE4: =AND(FE$2>=$G4,FE$2<$H4) -> FALSE | FF4: FALSE | FG4: FALSE | FH4: FALSE | FI4: FALSE | FJ4: FALSE | FK4: FALSE | FL4: FALSE | FM4: FALSE | FN4: FALSE | FO4: =AND(FO$2>=$G4,FO$2<$H4) -> FALSE | FP4: FALSE | FQ4: FALSE | FR4: FALSE | FS4: FALSE | FT4: FALSE | FU4: FALSE | FV4: FALSE | FW4: FALSE | FX4: FALSE | FY4: =AND(FY$2>=$G4,FY$2<$H4) -> FALSE | FZ4: FALSE | GA4: FALSE | GB4: FALSE | GC4: FALSE | GD4: FALSE | GE4: FALSE | GF4: FALSE | GG4: FALSE | GH4: FALSE | GI4: =AND(GI$2>=$G4,GI$2<$H4) -> FALSE | GJ4: FALSE | GK4: FALSE | GL4: FALSE | GM4: FALSE | GN4: FALSE | GO4: FALSE | GP4: FALSE | GQ4: FALSE | GR4: FALSE | GS4: =AND(GS$2>=$G4,GS$2<$H4) -> FALSE | GT4: FALSE | GU4: FALSE | GV4: FALSE | GW4: FALSE | GX4: FALSE | GY4: FALSE | GZ4: FALSE | HA4: FALSE | HB4: FALSE | HC4: =AND(HC$2>=$G4,HC$2<$H4) -> FALSE | HD4: FALSE | HE4: FALSE | HF4: FALSE | HG4: FALSE | HH4: FALSE | HI4: FALSE | HJ4: FALSE | HK4: FALSE | HL4: FALSE | HM4: =AND(HM$2>=$G4,HM$2<$H4) -> FALSE | HN4: FALSE | HO4: FALSE | HP4: FALSE | HQ4: FALSE | HR4: FALSE | HS4: FALSE | HT4: FALSE | HU4: FALSE | HV4: FALSE | HW4: =AND(HW$2>=$G4,HW$2<$H4) -> FALSE | HX4: FALSE | HY4: FALSE | HZ4: FALSE | IA4: FALSE | IB4: FALSE | IC4: FALSE | ID4: FALSE | IE4: FALSE | IF4: FALSE | IG4: =AND(IG$2>=$G4,IG$2<$H4) -> FALSE | IH4: FALSE | II4: FALSE | IJ4: FALSE | IK4: FALSE | IL4: FALSE | IM4: FALSE | IN4: FALSE | IO4: FALSE | IP4: FALSE | IQ4: =AND(IQ$2>=$G4,IQ$2<$H4) -> FALSE | IR4: FALSE | IS4: FALSE | IT4: FALSE | IU4: FALSE | IV4: FALSE | IW4: FALSE | IX4: FALSE | IY4: FALSE | IZ4: FALSE | JA4: =AND(JA$2>=$G4,JA$2<$H4) -> FALSE | JB4: FALSE | JC4: FALSE | JD4: FALSE | JE4: FALSE | JF4: FALSE | JG4: FALSE | JH4: FALSE | JI4: FALSE | JJ4: FALSE | JK4: =AND(JK$2>=$G4,JK$2<$H4) -> FALSE | JL4: FALSE | JM4: FALSE | JN4: FALSE | JO4: FALSE | JP4: FALSE | JQ4: FALSE | JR4: FALSE | JS4: FALSE | JT4: FALSE | JU4: =AND(JU$2>=$G4,JU$2<$H4) -> FALSE | JV4: FALSE | JW4: FALSE | JX4: FALSE | JY4: FALSE | JZ4: FALSE | KA4: FALSE | KB4: FALSE | KC4: FALSE | KD4: FALSE | KE4: =AND(KE$2>=$G4,KE$2<$H4) -> FALSE | KF4: FALSE | KG4: FALSE | KH4: FALSE | KI4: FALSE | KJ4: FALSE | KK4: FALSE | KL4: FALSE | KM4: FALSE | KN4: FALSE | KO4: =AND(KO$2>=$G4,KO$2<$H4) -> FALSE | KP4: FALSE | KQ4: FALSE | KR4: FALSE | KS4: FALSE | KT4: FALSE | KU4: FALSE | KV4: FALSE | KW4: FALSE | KX4: FALSE | KY4: =AND(KY$2>=$G4,KY$2<$H4) -> FALSE | KZ4: FALSE | LA4: FALSE | LB4: FALSE | LC4: FALSE | LD4: FALSE | LE4: FALSE | LF4: FALSE | LG4: FALSE | LH4: FALSE | LI4: =AND(LI$2>=$G4,LI$2<$H4) -> FALSE | LJ4: FALSE | LK4: FALSE | LL4: FALSE | LM4: FALSE | LN4: FALSE | LO4: FALSE | LP4: FALSE | LQ4: FALSE | LR4: FALSE | LS4: =AND(LS$2>=$G4,LS$2<$H4) -> FALSE | LT4: FALSE | LU4: FALSE | LV4: FALSE | LW4: FALSE | LX4: FALSE | LY4: FALSE | LZ4: FALSE | MA4: FALSE | MB4: FALSE | MC4: =AND(MC$2>=$G4,MC$2<$H4) -> FALSE | MD4: FALSE | ME4: FALSE | MF4: FALSE | MG4: FALSE | MH4: FALSE | MI4: FALSE | MJ4: FALSE | MK4: FALSE | ML4: FALSE | MM4: =AND(MM$2>=$G4,MM$2<$H4) -> FALSE | MN4: FALSE | MO4: FALSE | MP4: FALSE | MQ4: FALSE | MR4: FALSE | MS4: FALSE | MT4: FALSE | MU4: FALSE | MV4: FALSE | MW4: =AND(MW$2>=$G4,MW$2<$H4) -> FALSE | MX4: FALSE | MY4: FALSE | MZ4: FALSE | NA4: FALSE | NB4: FALSE | NC4: FALSE | ND4: FALSE | NE4: FALSE | NF4: FALSE | NG4: =AND(NG$2>=$G4,NG$2<$H4) -> FALSE | NH4: FALSE | NI4: FALSE | NJ4: FALSE | NK4: FALSE | NL4: FALSE | NM4: FALSE | NN4: FALSE | NO4: FALSE | NP4: FALSE | NQ4: =AND(NQ$2>=$G4,NQ$2<$H4) -> FALSE | NR4: FALSE | NS4: FALSE | NT4: FALSE | NU4: FALSE | NV4: FALSE | NW4: FALSE | NX4: FALSE | NY4: FALSE | NZ4: FALSE | OA4: FALSE | OB4: FALSE | OC4: FALSE | OD4: FALSE | OE4: FALSE
B5: Operation Phase | G5: =F17 -> 2018-07-01 | H5: =F20 -> 2043-07-01 | I5: =COUNTIF(K5:OE5,TRUE)=F19*12 -> TRUE | K5: FALSE | L5: FALSE | M5: FALSE | N5: FALSE | O5: FALSE | P5: FALSE | Q5: FALSE | R5: FALSE | S5: FALSE | T5: FALSE | U5: FALSE | V5: FALSE | W5: FALSE | X5: FALSE | Y5: FALSE | Z5: FALSE | AA5: FALSE | AB5: FALSE | AC5: FALSE | AD5: FALSE | AE5: FALSE | AF5: FALSE | AG5: FALSE | AH5: FALSE | AI5: FALSE | AJ5: FALSE | AK5: FALSE | AL5: FALSE | AM5: FALSE | AN5: FALSE | AO5: FALSE | AP5: FALSE | AQ5: FALSE | AR5: FALSE | AS5: FALSE | AT5: FALSE | AU5: FALSE | AV5: FALSE | AW5: FALSE | AX5: FALSE | AY5: TRUE | AZ5: TRUE | BA5: TRUE | BB5: TRUE | BC5: TRUE | BD5: TRUE | BE5: TRUE | BF5: TRUE | BG5: TRUE | BH5: TRUE | BI5: TRUE | BJ5: TRUE | BK5: TRUE | BL5: TRUE | BM5: TRUE | BN5: TRUE | BO5: TRUE | BP5: TRUE | BQ5: TRUE | BR5: TRUE | BS5: TRUE | BT5: TRUE | BU5: TRUE | BV5: TRUE | BW5: TRUE | BX5: TRUE | BY5: TRUE | BZ5: TRUE | CA5: TRUE | CB5: TRUE | CC5: TRUE | CD5: TRUE | CE5: TRUE | CF5: TRUE | CG5: TRUE | CH5: TRUE | CI5: TRUE | CJ5: TRUE | CK5: TRUE | CL5: TRUE | CM5: TRUE | CN5: TRUE | CO5: TRUE | CP5: TRUE | CQ5: TRUE | CR5: TRUE | CS5: TRUE | CT5: TRUE | CU5: TRUE | CV5: TRUE | CW5: TRUE | CX5: TRUE | CY5: TRUE | CZ5: TRUE | DA5: TRUE | DB5: TRUE | DC5: TRUE | DD5: TRUE | DE5: TRUE | DF5: TRUE | DG5: TRUE | DH5: TRUE | DI5: TRUE | DJ5: TRUE | DK5: TRUE | DL5: TRUE | DM5: TRUE | DN5: TRUE | DO5: TRUE | DP5: TRUE | DQ5: TRUE | DR5: TRUE | DS5: TRUE | DT5: TRUE | DU5: TRUE | DV5: TRUE | DW5: TRUE | DX5: TRUE | DY5: TRUE | DZ5: TRUE | EA5: TRUE | EB5: TRUE | EC5: TRUE | ED5: TRUE | EE5: TRUE | EF5: TRUE | EG5: TRUE | EH5: TRUE | EI5: TRUE | EJ5: TRUE | EK5: TRUE | EL5: TRUE | EM5: TRUE | EN5: TRUE | EO5: TRUE | EP5: TRUE | EQ5: TRUE | ER5: TRUE | ES5: TRUE | ET5: TRUE | EU5: TRUE | EV5: TRUE | EW5: TRUE | EX5: TRUE | EY5: TRUE | EZ5: TRUE | FA5: TRUE | FB5: TRUE | FC5: TRUE | FD5: TRUE | FE5: TRUE | FF5: TRUE | FG5: TRUE | FH5: TRUE | FI5: TRUE | FJ5: TRUE | FK5: TRUE | FL5: TRUE | FM5: TRUE | FN5: TRUE | FO5: TRUE | FP5: TRUE | FQ5: TRUE | FR5: TRUE | FS5: TRUE | FT5: TRUE | FU5: TRUE | FV5: TRUE | FW5: TRUE | FX5: TRUE | FY5: TRUE | FZ5: TRUE | GA5: TRUE | GB5: TRUE | GC5: TRUE | GD5: TRUE | GE5: TRUE | GF5: TRUE | GG5: TRUE | GH5: TRUE | GI5: TRUE | GJ5: TRUE | GK5: TRUE | GL5: TRUE | GM5: TRUE | GN5: TRUE | GO5: TRUE | GP5: TRUE | GQ5: TRUE | GR5: TRUE | GS5: TRUE | GT5: TRUE | GU5: TRUE | GV5: TRUE | GW5: TRUE | GX5: TRUE | GY5: TRUE | GZ5: TRUE | HA5: TRUE | HB5: TRUE | HC5: TRUE | HD5: TRUE | HE5: TRUE | HF5: TRUE | HG5: TRUE | HH5: TRUE | HI5: TRUE | HJ5: TRUE | HK5: TRUE | HL5: TRUE | HM5: TRUE | HN5: TRUE | HO5: TRUE | HP5: TRUE | HQ5: TRUE | HR5: TRUE | HS5: TRUE | HT5: TRUE | HU5: TRUE | HV5: TRUE | HW5: TRUE | HX5: TRUE | HY5: TRUE | HZ5: TRUE | IA5: TRUE | IB5: TRUE | IC5: TRUE | ID5: TRUE | IE5: TRUE | IF5: TRUE | IG5: TRUE | IH5: TRUE | II5: TRUE | IJ5: TRUE | IK5: TRUE | IL5: TRUE | IM5: TRUE | IN5: TRUE | IO5: TRUE | IP5: TRUE | IQ5: TRUE | IR5: TRUE | IS5: TRUE | IT5: TRUE | IU5: TRUE | IV5: TRUE | IW5: TRUE | IX5: TRUE | IY5: TRUE | IZ5: TRUE | JA5: TRUE | JB5: TRUE | JC5: TRUE | JD5: TRUE | JE5: TRUE | JF5: TRUE | JG5: TRUE | JH5: TRUE | JI5: TRUE | JJ5: TRUE | JK5: TRUE | JL5: TRUE | JM5: TRUE | JN5: TRUE | JO5: TRUE | JP5: TRUE | JQ5: TRUE | JR5: TRUE | JS5: TRUE | JT5: TRUE | JU5: TRUE | JV5: TRUE | JW5: TRUE | JX5: TRUE | JY5: TRUE | JZ5: TRUE | KA5: TRUE | KB5: TRUE | KC5: TRUE | KD5: TRUE | KE5: TRUE | KF5: TRUE | KG5: TRUE | KH5: TRUE | KI5: TRUE | KJ5: TRUE | KK5: TRUE | KL5: TRUE | KM5: TRUE | KN5: TRUE | KO5: TRUE | KP5: TRUE | KQ5: TRUE | KR5: TRUE | KS5: TRUE | KT5: TRUE | KU5: TRUE | KV5: TRUE | KW5: TRUE | KX5: TRUE | KY5: TRUE | KZ5: TRUE | LA5: TRUE | LB5: TRUE | LC5: TRUE | LD5: TRUE | LE5: TRUE | LF5: TRUE | LG5: TRUE | LH5: TRUE | LI5: TRUE | LJ5: TRUE | LK5: TRUE | LL5: TRUE | LM5: TRUE | LN5: TRUE | LO5: TRUE | LP5: TRUE | LQ5: TRUE | LR5: TRUE | LS5: TRUE | LT5: TRUE | LU5: TRUE | LV5: TRUE | LW5: TRUE | LX5: TRUE | LY5: TRUE | LZ5: TRUE | MA5: TRUE | MB5: TRUE | MC5: TRUE | MD5: TRUE | ME5: TRUE | MF5: TRUE | MG5: TRUE | MH5: TRUE | MI5: TRUE | MJ5: TRUE | MK5: TRUE | ML5: TRUE | MM5: FALSE | MN5: FALSE | MO5: FALSE | MP5: FALSE | MQ5: FALSE | MR5: FALSE | MS5: FALSE | MT5: FALSE | MU5: FALSE | MV5: FALSE | MW5: FALSE | MX5: FALSE | MY5: FALSE | MZ5: FALSE | NA5: FALSE | NB5: FALSE | NC5: FALSE | ND5: FALSE | NE5: FALSE | NF5: FALSE | NG5: FALSE | NH5: FALSE | NI5: FALSE | NJ5: FALSE | NK5: FALSE | NL5: FALSE | NM5: FALSE | NN5: FALSE | NO5: FALSE | NP5: FALSE | NQ5: FALSE | NR5: FALSE | NS5: FALSE | NT5: FALSE | NU5: FALSE | NV5: FALSE | NW5: FALSE | NX5: FALSE | NY5: FALSE | NZ5: FALSE | OA5: FALSE | OB5: FALSE | OC5: FALSE | OD5: FALSE | OE5: FALSE
B6: Commercial Operation | G6: =F17 -> 2018-07-01 | K6: =K$2=$G6 -> FALSE | L6: FALSE | M6: FALSE | N6: FALSE | O6: FALSE | P6: FALSE | Q6: FALSE | R6: FALSE | S6: FALSE | T6: FALSE | U6: =U$2=$G6 -> FALSE | V6: FALSE | W6: FALSE | X6: FALSE | Y6: FALSE | Z6: FALSE | AA6: FALSE | AB6: FALSE | AC6: FALSE | AD6: FALSE | AE6: =AE$2=$G6 -> FALSE | AF6: FALSE | AG6: FALSE | AH6: FALSE | AI6: FALSE | AJ6: FALSE | AK6: FALSE | AL6: FALSE | AM6: FALSE | AN6: FALSE | AO6: =AO$2=$G6 -> FALSE | AP6: FALSE | AQ6: FALSE | AR6: FALSE | AS6: FALSE | AT6: FALSE | AU6: FALSE | AV6: FALSE | AW6: FALSE | AX6: FALSE | AY6: =AY$2=$G6 -> TRUE | AZ6: FALSE | BA6: FALSE | BB6: FALSE | BC6: FALSE | BD6: FALSE | BE6: FALSE | BF6: FALSE | BG6: FALSE | BH6: FALSE | BI6: =BI$2=$G6 -> FALSE | BJ6: FALSE | BK6: FALSE | BL6: FALSE | BM6: FALSE | BN6: FALSE | BO6: FALSE | BP6: FALSE | BQ6: FALSE | BR6: FALSE | BS6: =BS$2=$G6 -> FALSE | BT6: FALSE | BU6: FALSE | BV6: FALSE | BW6: FALSE | BX6: FALSE | BY6: FALSE | BZ6: FALSE | CA6: FALSE | CB6: FALSE | CC6: =CC$2=$G6 -> FALSE | CD6: FALSE | CE6: FALSE | CF6: FALSE | CG6: FALSE | CH6: FALSE | CI6: FALSE | CJ6: FALSE | CK6: FALSE | CL6: FALSE | CM6: =CM$2=$G6 -> FALSE | CN6: FALSE | CO6: FALSE | CP6: FALSE | CQ6: FALSE | CR6: FALSE | CS6: FALSE | CT6: FALSE | CU6: FALSE | CV6: FALSE | CW6: =CW$2=$G6 -> FALSE | CX6: FALSE | CY6: FALSE | CZ6: FALSE | DA6: FALSE | DB6: FALSE | DC6: FALSE | DD6: FALSE | DE6: FALSE | DF6: FALSE | DG6: =DG$2=$G6 -> FALSE | DH6: FALSE | DI6: FALSE | DJ6: FALSE | DK6: FALSE | DL6: FALSE | DM6: FALSE | DN6: FALSE | DO6: FALSE | DP6: FALSE | DQ6: =DQ$2=$G6 -> FALSE | DR6: FALSE | DS6: FALSE | DT6: FALSE | DU6: FALSE | DV6: FALSE | DW6: FALSE | DX6: FALSE | DY6: FALSE | DZ6: FALSE | EA6: =EA$2=$G6 -> FALSE | EB6: FALSE | EC6: FALSE | ED6: FALSE | EE6: FALSE | EF6: FALSE | EG6: FALSE | EH6: FALSE | EI6: FALSE | EJ6: FALSE | EK6: =EK$2=$G6 -> FALSE | EL6: FALSE | EM6: FALSE | EN6: FALSE | EO6: FALSE | EP6: FALSE | EQ6: FALSE | ER6: FALSE | ES6: FALSE | ET6: FALSE | EU6: =EU$2=$G6 -> FALSE | EV6: FALSE | EW6: FALSE | EX6: FALSE | EY6: FALSE | EZ6: FALSE | FA6: FALSE | FB6: FALSE | FC6: FALSE | FD6: FALSE | FE6: =FE$2=$G6 -> FALSE | FF6: FALSE | FG6: FALSE | FH6: FALSE | FI6: FALSE | FJ6: FALSE | FK6: FALSE | FL6: FALSE | FM6: FALSE | FN6: FALSE | FO6: =FO$2=$G6 -> FALSE | FP6: FALSE | FQ6: FALSE | FR6: FALSE | FS6: FALSE | FT6: FALSE | FU6: FALSE | FV6: FALSE | FW6: FALSE | FX6: FALSE | FY6: =FY$2=$G6 -> FALSE | FZ6: FALSE | GA6: FALSE | GB6: FALSE | GC6: FALSE | GD6: FALSE | GE6: FALSE | GF6: FALSE | GG6: FALSE | GH6: FALSE | GI6: =GI$2=$G6 -> FALSE | GJ6: FALSE | GK6: FALSE | GL6: FALSE | GM6: FALSE | GN6: FALSE | GO6: FALSE | GP6: FALSE | GQ6: FALSE | GR6: FALSE | GS6: =GS$2=$G6 -> FALSE | GT6: FALSE | GU6: FALSE | GV6: FALSE | GW6: FALSE | GX6: FALSE | GY6: FALSE | GZ6: FALSE | HA6: FALSE | HB6: FALSE | HC6: =HC$2=$G6 -> FALSE | HD6: FALSE | HE6: FALSE | HF6: FALSE | HG6: FALSE | HH6: FALSE | HI6: FALSE | HJ6: FALSE | HK6: FALSE | HL6: FALSE | HM6: =HM$2=$G6 -> FALSE | HN6: FALSE | HO6: FALSE | HP6: FALSE | HQ6: FALSE | HR6: FALSE | HS6: FALSE | HT6: FALSE | HU6: FALSE | HV6: FALSE | HW6: =HW$2=$G6 -> FALSE | HX6: FALSE | HY6: FALSE | HZ6: FALSE | IA6: FALSE | IB6: FALSE | IC6: FALSE | ID6: FALSE | IE6: FALSE | IF6: FALSE | IG6: =IG$2=$G6 -> FALSE | IH6: FALSE | II6: FALSE | IJ6: FALSE | IK6: FALSE | IL6: FALSE | IM6: FALSE | IN6: FALSE | IO6: FALSE | IP6: FALSE | IQ6: =IQ$2=$G6 -> FALSE | IR6: FALSE | IS6: FALSE | IT6: FALSE | IU6: FALSE | IV6: FALSE | IW6: FALSE | IX6: FALSE | IY6: FALSE | IZ6: FALSE | JA6: =JA$2=$G6 -> FALSE | JB6: FALSE | JC6: FALSE | JD6: FALSE | JE6: FALSE | JF6: FALSE | JG6: FALSE | JH6: FALSE | JI6: FALSE | JJ6: FALSE | JK6: =JK$2=$G6 -> FALSE | JL6: FALSE | JM6: FALSE | JN6: FALSE | JO6: FALSE | JP6: FALSE | JQ6: FALSE | JR6: FALSE | JS6: FALSE | JT6: FALSE | JU6: =JU$2=$G6 -> FALSE | JV6: FALSE | JW6: FALSE | JX6: FALSE | JY6: FALSE | JZ6: FALSE | KA6: FALSE | KB6: FALSE | KC6: FALSE | KD6: FALSE | KE6: =KE$2=$G6 -> FALSE | KF6: FALSE | KG6: FALSE | KH6: FALSE | KI6: FALSE | KJ6: FALSE | KK6: FALSE | KL6: FALSE | KM6: FALSE | KN6: FALSE | KO6: =KO$2=$G6 -> FALSE | KP6: FALSE | KQ6: FALSE | KR6: FALSE | KS6: FALSE | KT6: FALSE | KU6: FALSE | KV6: FALSE | KW6: FALSE | KX6: FALSE | KY6: =KY$2=$G6 -> FALSE | KZ6: FALSE | LA6: FALSE | LB6: FALSE | LC6: FALSE | LD6: FALSE | LE6: FALSE | LF6: FALSE | LG6: FALSE | LH6: FALSE | LI6: =LI$2=$G6 -> FALSE | LJ6: FALSE | LK6: FALSE | LL6: FALSE | LM6: FALSE | LN6: FALSE | LO6: FALSE | LP6: FALSE | LQ6: FALSE | LR6: FALSE | LS6: =LS$2=$G6 -> FALSE | LT6: FALSE | LU6: FALSE | LV6: FALSE | LW6: FALSE | LX6: FALSE | LY6: FALSE | LZ6: FALSE | MA6: FALSE | MB6: FALSE | MC6: =MC$2=$G6 -> FALSE | MD6: FALSE | ME6: FALSE | MF6: FALSE | MG6: FALSE | MH6: FALSE | MI6: FALSE | MJ6: FALSE | MK6: FALSE | ML6: FALSE | MM6: =MM$2=$G6 -> FALSE | MN6: FALSE | MO6: FALSE | MP6: FALSE | MQ6: FALSE | MR6: FALSE | MS6: FALSE | MT6: FALSE | MU6: FALSE | MV6: FALSE | MW6: =MW$2=$G6 -> FALSE | MX6: FALSE | MY6: FALSE | MZ6: FALSE | NA6: FALSE | NB6: FALSE | NC6: FALSE | ND6: FALSE | NE6: FALSE | NF6: FALSE | NG6: =NG$2=$G6 -> FALSE | NH6: FALSE | NI6: FALSE | NJ6: FALSE | NK6: FALSE | NL6: FALSE | NM6: FALSE | NN6: FALSE | NO6: FALSE | NP6: FALSE | NQ6: =NQ$2=$G6 -> FALSE | NR6: FALSE | NS6: FALSE | NT6: FALSE | NU6: FALSE | NV6: FALSE | NW6: FALSE | NX6: FALSE | NY6: FALSE | NZ6: FALSE | OA6: FALSE | OB6: FALSE | OC6: FALSE | OD6: FALSE | OE6: FALSE
B7: Decommissioning | G7: =F20 -> 2043-07-01 | K7: FALSE | L7: FALSE | M7: FALSE | N7: FALSE | O7: FALSE | P7: FALSE | Q7: FALSE | R7: FALSE | S7: FALSE | T7: FALSE | U7: FALSE | V7: FALSE | W7: FALSE | X7: FALSE | Y7: FALSE | Z7: FALSE | AA7: FALSE | AB7: FALSE | AC7: FALSE | AD7: FALSE | AE7: FALSE | AF7: FALSE | AG7: FALSE | AH7: FALSE | AI7: FALSE | AJ7: FALSE | AK7: FALSE | AL7: FALSE | AM7: FALSE | AN7: FALSE | AO7: FALSE | AP7: FALSE | AQ7: FALSE | AR7: FALSE | AS7: FALSE | AT7: FALSE | AU7: FALSE | AV7: FALSE | AW7: FALSE | AX7: FALSE | AY7: FALSE | AZ7: FALSE | BA7: FALSE | BB7: FALSE | BC7: FALSE | BD7: FALSE | BE7: FALSE | BF7: FALSE | BG7: FALSE | BH7: FALSE | BI7: FALSE | BJ7: FALSE | BK7: FALSE | BL7: FALSE | BM7: FALSE | BN7: FALSE | BO7: FALSE | BP7: FALSE | BQ7: FALSE | BR7: FALSE | BS7: FALSE | BT7: FALSE | BU7: FALSE | BV7: FALSE | BW7: FALSE | BX7: FALSE | BY7: FALSE | BZ7: FALSE | CA7: FALSE | CB7: FALSE | CC7: FALSE | CD7: FALSE | CE7: FALSE | CF7: FALSE | CG7: FALSE | CH7: FALSE | CI7: FALSE | CJ7: FALSE | CK7: FALSE | CL7: FALSE | CM7: FALSE | CN7: FALSE | CO7: FALSE | CP7: FALSE | CQ7: FALSE | CR7: FALSE | CS7: FALSE | CT7: FALSE | CU7: FALSE | CV7: FALSE | CW7: FALSE | CX7: FALSE | CY7: FALSE | CZ7: FALSE | DA7: FALSE | DB7: FALSE | DC7: FALSE | DD7: FALSE | DE7: FALSE | DF7: FALSE | DG7: FALSE | DH7: FALSE | DI7: FALSE | DJ7: FALSE | DK7: FALSE | DL7: FALSE | DM7: FALSE | DN7: FALSE | DO7: FALSE | DP7: FALSE | DQ7: FALSE | DR7: FALSE | DS7: FALSE | DT7: FALSE | DU7: FALSE | DV7: FALSE | DW7: FALSE | DX7: FALSE | DY7: FALSE | DZ7: FALSE | EA7: FALSE | EB7: FALSE | EC7: FALSE | ED7: FALSE | EE7: FALSE | EF7: FALSE | EG7: FALSE | EH7: FALSE | EI7: FALSE | EJ7: FALSE | EK7: FALSE | EL7: FALSE | EM7: FALSE | EN7: FALSE | EO7: FALSE | EP7: FALSE | EQ7: FALSE | ER7: FALSE | ES7: FALSE | ET7: FALSE | EU7: FALSE | EV7: FALSE | EW7: FALSE | EX7: FALSE | EY7: FALSE | EZ7: FALSE | FA7: FALSE | FB7: FALSE | FC7: FALSE | FD7: FALSE | FE7: FALSE | FF7: FALSE | FG7: FALSE | FH7: FALSE | FI7: FALSE | FJ7: FALSE | FK7: FALSE | FL7: FALSE | FM7: FALSE | FN7: FALSE | FO7: FALSE | FP7: FALSE | FQ7: FALSE | FR7: FALSE | FS7: FALSE | FT7: FALSE | FU7: FALSE | FV7: FALSE | FW7: FALSE | FX7: FALSE | FY7: FALSE | FZ7: FALSE | GA7: FALSE | GB7: FALSE | GC7: FALSE | GD7: FALSE | GE7: FALSE | GF7: FALSE | GG7: FALSE | GH7: FALSE | GI7: FALSE | GJ7: FALSE | GK7: FALSE | GL7: FALSE | GM7: FALSE | GN7: FALSE | GO7: FALSE | GP7: FALSE | GQ7: FALSE | GR7: FALSE | GS7: FALSE | GT7: FALSE | GU7: FALSE | GV7: FALSE | GW7: FALSE | GX7: FALSE | GY7: FALSE | GZ7: FALSE | HA7: FALSE | HB7: FALSE | HC7: FALSE | HD7: FALSE | HE7: FALSE | HF7: FALSE | HG7: FALSE | HH7: FALSE | HI7: FALSE | HJ7: FALSE | HK7: FALSE | HL7: FALSE | HM7: FALSE | HN7: FALSE | HO7: FALSE | HP7: FALSE | HQ7: FALSE | HR7: FALSE | HS7: FALSE | HT7: FALSE | HU7: FALSE | HV7: FALSE | HW7: FALSE | HX7: FALSE | HY7: FALSE | HZ7: FALSE | IA7: FALSE | IB7: FALSE | IC7: FALSE | ID7: FALSE | IE7: FALSE | IF7: FALSE | IG7: FALSE | IH7: FALSE | II7: FALSE | IJ7: FALSE | IK7: FALSE | IL7: FALSE | IM7: FALSE | IN7: FALSE | IO7: FALSE | IP7: FALSE | IQ7: FALSE | IR7: FALSE | IS7: FALSE | IT7: FALSE | IU7: FALSE | IV7: FALSE | IW7: FALSE | IX7: FALSE | IY7: FALSE | IZ7: FALSE | JA7: FALSE | JB7: FALSE | JC7: FALSE | JD7: FALSE | JE7: FALSE | JF7: FALSE | JG7: FALSE | JH7: FALSE | JI7: FALSE | JJ7: FALSE | JK7: FALSE | JL7: FALSE | JM7: FALSE | JN7: FALSE | JO7: FALSE | JP7: FALSE | JQ7: FALSE | JR7: FALSE | JS7: FALSE | JT7: FALSE | JU7: FALSE | JV7: FALSE | JW7: FALSE | JX7: FALSE | JY7: FALSE | JZ7: FALSE | KA7: FALSE | KB7: FALSE | KC7: FALSE | KD7: FALSE | KE7: FALSE | KF7: FALSE | KG7: FALSE | KH7: FALSE | KI7: FALSE | KJ7: FALSE | KK7: FALSE | KL7: FALSE | KM7: FALSE | KN7: FALSE | KO7: FALSE | KP7: FALSE | KQ7: FALSE | KR7: FALSE | KS7: FALSE | KT7: FALSE | KU7: FALSE | KV7: FALSE | KW7: FALSE | KX7: FALSE | KY7: FALSE | KZ7: FALSE | LA7: FALSE | LB7: FALSE | LC7: FALSE | LD7: FALSE | LE7: FALSE | LF7: FALSE | LG7: FALSE | LH7: FALSE | LI7: FALSE | LJ7: FALSE | LK7: FALSE | LL7: FALSE | LM7: FALSE | LN7: FALSE | LO7: FALSE | LP7: FALSE | LQ7: FALSE | LR7: FALSE | LS7: FALSE | LT7: FALSE | LU7: FALSE | LV7: FALSE | LW7: FALSE | LX7: FALSE | LY7: FALSE | LZ7: FALSE | MA7: FALSE | MB7: FALSE | MC7: FALSE | MD7: FALSE | ME7: FALSE | MF7: FALSE | MG7: FALSE | MH7: FALSE | MI7: FALSE | MJ7: FALSE | MK7: FALSE | ML7: FALSE | MM7: TRUE | MN7: FALSE | MO7: FALSE | MP7: FALSE | MQ7: FALSE | MR7: FALSE | MS7: FALSE | MT7: FALSE | MU7: FALSE | MV7: FALSE | MW7: FALSE | MX7: FALSE | MY7: FALSE | MZ7: FALSE | NA7: FALSE | NB7: FALSE | NC7: FALSE | ND7: FALSE | NE7: FALSE | NF7: FALSE | NG7: FALSE | NH7: FALSE | NI7: FALSE | NJ7: FALSE | NK7: FALSE | NL7: FALSE | NM7: FALSE | NN7: FALSE | NO7: FALSE | NP7: FALSE | NQ7: FALSE | NR7: FALSE | NS7: FALSE | NT7: FALSE | NU7: FALSE | NV7: FALSE | NW7: FALSE | NX7: FALSE | NY7: FALSE | NZ7: FALSE | OA7: FALSE | OB7: FALSE | OC7: FALSE | OD7: FALSE | OE7: FALSE
B8: Last Construction Month | G8: =EDATE(G6,-1) -> 2018-06-01 | K8: =K2=$G$8 -> FALSE | L8: FALSE | M8: FALSE | N8: FALSE | O8: FALSE | P8: FALSE | Q8: FALSE | R8: FALSE | S8: FALSE | T8: FALSE | U8: FALSE | V8: FALSE | W8: FALSE | X8: FALSE | Y8: FALSE | Z8: FALSE | AA8: FALSE | AB8: FALSE | AC8: FALSE | AD8: FALSE | AE8: FALSE | AF8: FALSE | AG8: FALSE | AH8: FALSE | AI8: FALSE | AJ8: FALSE | AK8: FALSE | AL8: FALSE | AM8: FALSE | AN8: FALSE | AO8: FALSE | AP8: FALSE | AQ8: FALSE | AR8: FALSE | AS8: FALSE | AT8: FALSE | AU8: FALSE | AV8: FALSE | AW8: FALSE | AX8: TRUE | AY8: FALSE | AZ8: FALSE | BA8: FALSE | BB8: FALSE | BC8: FALSE | BD8: FALSE | BE8: FALSE | BF8: FALSE | BG8: FALSE | BH8: FALSE | BI8: FALSE | BJ8: FALSE | BK8: FALSE | BL8: FALSE | BM8: FALSE | BN8: FALSE | BO8: FALSE | BP8: FALSE | BQ8: FALSE | BR8: FALSE | BS8: FALSE | BT8: FALSE | BU8: FALSE | BV8: FALSE | BW8: =BW2=$G$8 -> FALSE | BX8: FALSE | BY8: FALSE | BZ8: FALSE | CA8: FALSE | CB8: FALSE | CC8: FALSE | CD8: FALSE | CE8: FALSE | CF8: FALSE | CG8: FALSE | CH8: FALSE | CI8: FALSE | CJ8: FALSE | CK8: FALSE | CL8: FALSE | CM8: FALSE | CN8: FALSE | CO8: FALSE | CP8: FALSE | CQ8: FALSE | CR8: FALSE | CS8: FALSE | CT8: FALSE | CU8: FALSE | CV8: FALSE | CW8: FALSE | CX8: FALSE | CY8: FALSE | CZ8: FALSE | DA8: FALSE | DB8: FALSE | DC8: FALSE | DD8: FALSE | DE8: FALSE | DF8: FALSE | DG8: FALSE | DH8: FALSE | DI8: FALSE | DJ8: FALSE | DK8: FALSE | DL8: FALSE | DM8: FALSE | DN8: FALSE | DO8: FALSE | DP8: FALSE | DQ8: FALSE | DR8: FALSE | DS8: FALSE | DT8: FALSE | DU8: FALSE | DV8: FALSE | DW8: FALSE | DX8: FALSE | DY8: FALSE | DZ8: FALSE | EA8: FALSE | EB8: FALSE | EC8: FALSE | ED8: FALSE | EE8: FALSE | EF8: FALSE | EG8: FALSE | EH8: FALSE | EI8: =EI2=$G$8 -> FALSE | EJ8: FALSE | EK8: FALSE | EL8: FALSE | EM8: FALSE | EN8: FALSE | EO8: FALSE | EP8: FALSE | EQ8: FALSE | ER8: FALSE | ES8: FALSE | ET8: FALSE | EU8: FALSE | EV8: FALSE | EW8: FALSE | EX8: FALSE | EY8: FALSE | EZ8: FALSE | FA8: FALSE | FB8: FALSE | FC8: FALSE | FD8: FALSE | FE8: FALSE | FF8: FALSE | FG8: FALSE | FH8: FALSE | FI8: FALSE | FJ8: FALSE | FK8: FALSE | FL8: FALSE | FM8: FALSE | FN8: FALSE | FO8: FALSE | FP8: FALSE | FQ8: FALSE | FR8: FALSE | FS8: FALSE | FT8: FALSE | FU8: FALSE | FV8: FALSE | FW8: FALSE | FX8: FALSE | FY8: FALSE | FZ8: FALSE | GA8: FALSE | GB8: FALSE | GC8: FALSE | GD8: FALSE | GE8: FALSE | GF8: FALSE | GG8: FALSE | GH8: FALSE | GI8: FALSE | GJ8: FALSE | GK8: FALSE | GL8: FALSE | GM8: FALSE | GN8: FALSE | GO8: FALSE | GP8: FALSE | GQ8: FALSE | GR8: FALSE | GS8: FALSE | GT8: FALSE | GU8: =GU2=$G$8 -> FALSE | GV8: FALSE | GW8: FALSE | GX8: FALSE | GY8: FALSE | GZ8: FALSE | HA8: FALSE | HB8: FALSE | HC8: FALSE | HD8: FALSE | HE8: FALSE | HF8: FALSE | HG8: FALSE | HH8: FALSE | HI8: FALSE | HJ8: FALSE | HK8: FALSE | HL8: FALSE | HM8: FALSE | HN8: FALSE | HO8: FALSE | HP8: FALSE | HQ8: FALSE | HR8: FALSE | HS8: FALSE | HT8: FALSE | HU8: FALSE | HV8: FALSE | HW8: FALSE | HX8: FALSE | HY8: FALSE | HZ8: FALSE | IA8: FALSE | IB8: FALSE | IC8: FALSE | ID8: FALSE | IE8: FALSE | IF8: FALSE | IG8: FALSE | IH8: FALSE | II8: FALSE | IJ8: FALSE | IK8: FALSE | IL8: FALSE | IM8: FALSE | IN8: FALSE | IO8: FALSE | IP8: FALSE | IQ8: FALSE | IR8: FALSE | IS8: FALSE | IT8: FALSE | IU8: FALSE | IV8: FALSE | IW8: FALSE | IX8: FALSE | IY8: FALSE | IZ8: FALSE | JA8: FALSE | JB8: FALSE | JC8: FALSE | JD8: FALSE | JE8: FALSE | JF8: FALSE | JG8: =JG2=$G$8 -> FALSE | JH8: FALSE | JI8: FALSE | JJ8: FALSE | JK8: FALSE | JL8: FALSE | JM8: FALSE | JN8: FALSE | JO8: FALSE | JP8: FALSE | JQ8: FALSE | JR8: FALSE | JS8: FALSE | JT8: FALSE | JU8: FALSE | JV8: FALSE | JW8: FALSE | JX8: FALSE | JY8: FALSE | JZ8: FALSE | KA8: FALSE | KB8: FALSE | KC8: FALSE | KD8: FALSE | KE8: FALSE | KF8: FALSE | KG8: FALSE | KH8: FALSE | KI8: FALSE | KJ8: FALSE | KK8: FALSE | KL8: FALSE | KM8: FALSE | KN8: FALSE | KO8: FALSE | KP8: FALSE | KQ8: FALSE | KR8: FALSE | KS8: FALSE | KT8: FALSE | KU8: FALSE | KV8: FALSE | KW8: FALSE | KX8: FALSE | KY8: FALSE | KZ8: FALSE | LA8: FALSE | LB8: FALSE | LC8: FALSE | LD8: FALSE | LE8: FALSE | LF8: FALSE | LG8: FALSE | LH8: FALSE | LI8: FALSE | LJ8: FALSE | LK8: FALSE | LL8: FALSE | LM8: FALSE | LN8: FALSE | LO8: FALSE | LP8: FALSE | LQ8: FALSE | LR8: FALSE | LS8: =LS2=$G$8 -> FALSE | LT8: FALSE | LU8: FALSE | LV8: FALSE | LW8: FALSE | LX8: FALSE | LY8: FALSE | LZ8: FALSE | MA8: FALSE | MB8: FALSE | MC8: FALSE | MD8: FALSE | ME8: FALSE | MF8: FALSE | MG8: FALSE | MH8: FALSE | MI8: FALSE | MJ8: FALSE | MK8: FALSE | ML8: FALSE | MM8: FALSE | MN8: FALSE | MO8: FALSE | MP8: FALSE | MQ8: FALSE | MR8: FALSE | MS8: FALSE | MT8: FALSE | MU8: FALSE | MV8: FALSE | MW8: FALSE | MX8: FALSE | MY8: FALSE | MZ8: FALSE | NA8: FALSE | NB8: FALSE | NC8: FALSE | ND8: FALSE | NE8: FALSE | NF8: FALSE | NG8: FALSE | NH8: FALSE | NI8: FALSE | NJ8: FALSE | NK8: FALSE | NL8: FALSE | NM8: FALSE | NN8: FALSE | NO8: FALSE | NP8: FALSE | NQ8: FALSE | NR8: FALSE | NS8: FALSE | NT8: FALSE | NU8: FALSE | NV8: FALSE | NW8: FALSE | NX8: FALSE | NY8: FALSE | NZ8: FALSE | OA8: FALSE | OB8: FALSE | OC8: FALSE | OD8: FALSE | OE8: FALSE
B9: Days | E9: Days | K9: =K3-K2+1 -> 31 | L9: 30 | M9: 31 | N9: 30 | O9: 31 | P9: 31 | Q9: 30 | R9: 31 | S9: 30 | T9: 31 | U9: 31 | V9: 29 | W9: 31 | X9: 30 | Y9: 31 | Z9: 30 | AA9: 31 | AB9: 31 | AC9: 30 | AD9: 31 | AE9: 30 | AF9: 31 | AG9: 31 | AH9: 28 | AI9: 31 | AJ9: 30 | AK9: 31 | AL9: 30 | AM9: 31 | AN9: 31 | AO9: 30 | AP9: 31 | AQ9: 30 | AR9: 31 | AS9: 31 | AT9: 28 | AU9: 31 | AV9: 30 | AW9: 31 | AX9: 30 | AY9: 31 | AZ9: 31 | BA9: 30 | BB9: 31 | BC9: 30 | BD9: 31 | BE9: 31 | BF9: 28 | BG9: 31 | BH9: 30 | BI9: 31 | BJ9: 30 | BK9: 31 | BL9: 31 | BM9: 30 | BN9: 31 | BO9: 30 | BP9: 31 | BQ9: 31 | BR9: 29 | BS9: 31 | BT9: 30 | BU9: 31 | BV9: 30 | BW9: =BW3-BW2+1 -> 31 | BX9: 31 | BY9: 30 | BZ9: 31 | CA9: 30 | CB9: 31 | CC9: 31 | CD9: 28 | CE9: 31 | CF9: 30 | CG9: 31 | CH9: 30 | CI9: 31 | CJ9: 31 | CK9: 30 | CL9: 31 | CM9: 30 | CN9: 31 | CO9: 31 | CP9: 28 | CQ9: 31 | CR9: 30 | CS9: 31 | CT9: 30 | CU9: 31 | CV9: 31 | CW9: 30 | CX9: 31 | CY9: 30 | CZ9: 31 | DA9: 31 | DB9: 28 | DC9: 31 | DD9: 30 | DE9: 31 | DF9: 30 | DG9: 31 | DH9: 31 | DI9: 30 | DJ9: 31 | DK9: 30 | DL9: 31 | DM9: 31 | DN9: 29 | DO9: 31 | DP9: 30 | DQ9: 31 | DR9: 30 | DS9: 31 | DT9: 31 | DU9: 30 | DV9: 31 | DW9: 30 | DX9: 31 | DY9: 31 | DZ9: 28 | EA9: 31 | EB9: 30 | EC9: 31 | ED9: 30 | EE9: 31 | EF9: 31 | EG9: 30 | EH9: 31 | EI9: =EI3-EI2+1 -> 30 | EJ9: 31 | EK9: 31 | EL9: 28 | EM9: 31 | EN9: 30 | EO9: 31 | EP9: 30 | EQ9: 31 | ER9: 31 | ES9: 30 | ET9: 31 | EU9: 30 | EV9: 31 | EW9: 31 | EX9: 28 | EY9: 31 | EZ9: 30 | FA9: 31 | FB9: 30 | FC9: 31 | FD9: 31 | FE9: 30 | FF9: 31 | FG9: 30 | FH9: 31 | FI9: 31 | FJ9: 29 | FK9: 31 | FL9: 30 | FM9: 31 | FN9: 30 | FO9: 31 | FP9: 31 | FQ9: 30 | FR9: 31 | FS9: 30 | FT9: 31 | FU9: 31 | FV9: 28 | FW9: 31 | FX9: 30 | FY9: 31 | FZ9: 30 | GA9: 31 | GB9: 31 | GC9: 30 | GD9: 31 | GE9: 30 | GF9: 31 | GG9: 31 | GH9: 28 | GI9: 31 | GJ9: 30 | GK9: 31 | GL9: 30 | GM9: 31 | GN9: 31 | GO9: 30 | GP9: 31 | GQ9: 30 | GR9: 31 | GS9: 31 | GT9: 28 | GU9: =GU3-GU2+1 -> 31 | GV9: 30 | GW9: 31 | GX9: 30 | GY9: 31 | GZ9: 31 | HA9: 30 | HB9: 31 | HC9: 30 | HD9: 31 | HE9: 31 | HF9: 29 | HG9: 31 | HH9: 30 | HI9: 31 | HJ9: 30 | HK9: 31 | HL9: 31 | HM9: 30 | HN9: 31 | HO9: 30 | HP9: 31 | HQ9: 31 | HR9: 28 | HS9: 31 | HT9: 30 | HU9: 31 | HV9: 30 | HW9: 31 | HX9: 31 | HY9: 30 | HZ9: 31 | IA9: 30 | IB9: 31 | IC9: 31 | ID9: 28 | IE9: 31 | IF9: 30 | IG9: 31 | IH9: 30 | II9: 31 | IJ9: 31 | IK9: 30 | IL9: 31 | IM9: 30 | IN9: 31 | IO9: 31 | IP9: 28 | IQ9: 31 | IR9: 30 | IS9: 31 | IT9: 30 | IU9: 31 | IV9: 31 | IW9: 30 | IX9: 31 | IY9: 30 | IZ9: 31 | JA9: 31 | JB9: 29 | JC9: 31 | JD9: 30 | JE9: 31 | JF9: 30 | JG9: =JG3-JG2+1 -> 31 | JH9: 31 | JI9: 30 | JJ9: 31 | JK9: 30 | JL9: 31 | JM9: 31 | JN9: 28 | JO9: 31 | JP9: 30 | JQ9: 31 | JR9: 30 | JS9: 31 | JT9: 31 | JU9: 30 | JV9: 31 | JW9: 30 | JX9: 31 | JY9: 31 | JZ9: 28 | KA9: 31 | KB9: 30 | KC9: 31 | KD9: 30 | KE9: 31 | KF9: 31 | KG9: 30 | KH9: 31 | KI9: 30 | KJ9: 31 | KK9: 31 | KL9: 28 | KM9: 31 | KN9: 30 | KO9: 31 | KP9: 30 | KQ9: 31 | KR9: 31 | KS9: 30 | KT9: 31 | KU9: 30 | KV9: 31 | KW9: 31 | KX9: 29 | KY9: 31 | KZ9: 30 | LA9: 31 | LB9: 30 | LC9: 31 | LD9: 31 | LE9: 30 | LF9: 31 | LG9: 30 | LH9: 31 | LI9: 31 | LJ9: 28 | LK9: 31 | LL9: 30 | LM9: 31 | LN9: 30 | LO9: 31 | LP9: 31 | LQ9: 30 | LR9: 31 | LS9: =LS3-LS2+1 -> 30 | LT9: 31 | LU9: 31 | LV9: 28 | LW9: 31 | LX9: 30 | LY9: 31 | LZ9: 30 | MA9: 31 | MB9: 31 | MC9: 30 | MD9: 31 | ME9: 30 | MF9: 31 | MG9: 31 | MH9: 28 | MI9: 31 | MJ9: 30 | MK9: 31 | ML9: 30 | MM9: 31 | MN9: 31 | MO9: 30 | MP9: 31 | MQ9: 30 | MR9: 31 | MS9: 31 | MT9: 29 | MU9: 31 | MV9: 30 | MW9: 31 | MX9: 30 | MY9: 31 | MZ9: 31 | NA9: 30 | NB9: 31 | NC9: 30 | ND9: 31 | NE9: 31 | NF9: 28 | NG9: 31 | NH9: 30 | NI9: 31 | NJ9: 30 | NK9: 31 | NL9: 31 | NM9: 30 | NN9: 31 | NO9: 30 | NP9: 31 | NQ9: 31 | NR9: 28 | NS9: 31 | NT9: 30 | NU9: 31 | NV9: 30 | NW9: 31 | NX9: 31 | NY9: 30 | NZ9: 31 | OA9: 30 | OB9: 31 | OC9: 31 | OD9: 28 | OE9: 31
B10: Hours | E10: Hours | K10: =K9*24 -> 744 | L10: =L9*24 -> 720 | M10: 744 | N10: 720 | O10: 744 | P10: 744 | Q10: 720 | R10: 744 | S10: 720 | T10: 744 | U10: 744 | V10: 696 | W10: 744 | X10: 720 | Y10: 744 | Z10: 720 | AA10: 744 | AB10: 744 | AC10: 720 | AD10: 744 | AE10: 720 | AF10: 744 | AG10: 744 | AH10: 672 | AI10: 744 | AJ10: 720 | AK10: 744 | AL10: 720 | AM10: 744 | AN10: 744 | AO10: 720 | AP10: 744 | AQ10: 720 | AR10: 744 | AS10: 744 | AT10: 672 | AU10: 744 | AV10: 720 | AW10: 744 | AX10: 720 | AY10: 744 | AZ10: 744 | BA10: 720 | BB10: 744 | BC10: 720 | BD10: 744 | BE10: 744 | BF10: 672 | BG10: 744 | BH10: 720 | BI10: 744 | BJ10: 720 | BK10: 744 | BL10: 744 | BM10: 720 | BN10: 744 | BO10: 720 | BP10: 744 | BQ10: 744 | BR10: 696 | BS10: 744 | BT10: 720 | BU10: 744 | BV10: 720 | BW10: 744 | BX10: =BX9*24 -> 744 | BY10: 720 | BZ10: 744 | CA10: 720 | CB10: 744 | CC10: 744 | CD10: 672 | CE10: 744 | CF10: 720 | CG10: 744 | CH10: 720 | CI10: 744 | CJ10: 744 | CK10: 720 | CL10: 744 | CM10: 720 | CN10: 744 | CO10: 744 | CP10: 672 | CQ10: 744 | CR10: 720 | CS10: 744 | CT10: 720 | CU10: 744 | CV10: 744 | CW10: 720 | CX10: 744 | CY10: 720 | CZ10: 744 | DA10: 744 | DB10: 672 | DC10: 744 | DD10: 720 | DE10: 744 | DF10: 720 | DG10: 744 | DH10: 744 | DI10: 720 | DJ10: 744 | DK10: 720 | DL10: 744 | DM10: 744 | DN10: 696 | DO10: 744 | DP10: 720 | DQ10: 744 | DR10: 720 | DS10: 744 | DT10: 744 | DU10: 720 | DV10: 744 | DW10: 720 | DX10: 744 | DY10: 744 | DZ10: 672 | EA10: 744 | EB10: 720 | EC10: 744 | ED10: 720 | EE10: 744 | EF10: 744 | EG10: 720 | EH10: 744 | EI10: 720 | EJ10: =EJ9*24 -> 744 | EK10: 744 | EL10: 672 | EM10: 744 | EN10: 720 | EO10: 744 | EP10: 720 | EQ10: 744 | ER10: 744 | ES10: 720 | ET10: 744 | EU10: 720 | EV10: 744 | EW10: 744 | EX10: 672 | EY10: 744 | EZ10: 720 | FA10: 744 | FB10: 720 | FC10: 744 | FD10: 744 | FE10: 720 | FF10: 744 | FG10: 720 | FH10: 744 | FI10: 744 | FJ10: 696 | FK10: 744 | FL10: 720 | FM10: 744 | FN10: 720 | FO10: 744 | FP10: 744 | FQ10: 720 | FR10: 744 | FS10: 720 | FT10: 744 | FU10: 744 | FV10: 672 | FW10: 744 | FX10: 720 | FY10: 744 | FZ10: 720 | GA10: 744 | GB10: 744 | GC10: 720 | GD10: 744 | GE10: 720 | GF10: 744 | GG10: 744 | GH10: 672 | GI10: 744 | GJ10: 720 | GK10: 744 | GL10: 720 | GM10: 744 | GN10: 744 | GO10: 720 | GP10: 744 | GQ10: 720 | GR10: 744 | GS10: 744 | GT10: 672 | GU10: 744 | GV10: =GV9*24 -> 720 | GW10: 744 | GX10: 720 | GY10: 744 | GZ10: 744 | HA10: 720 | HB10: 744 | HC10: 720 | HD10: 744 | HE10: 744 | HF10: 696 | HG10: 744 | HH10: 720 | HI10: 744 | HJ10: 720 | HK10: 744 | HL10: 744 | HM10: 720 | HN10: 744 | HO10: 720 | HP10: 744 | HQ10: 744 | HR10: 672 | HS10: 744 | HT10: 720 | HU10: 744 | HV10: 720 | HW10: 744 | HX10: 744 | HY10: 720 | HZ10: 744 | IA10: 720 | IB10: 744 | IC10: 744 | ID10: 672 | IE10: 744 | IF10: 720 | IG10: 744 | IH10: 720 | II10: 744 | IJ10: 744 | IK10: 720 | IL10: 744 | IM10: 720 | IN10: 744 | IO10: 744 | IP10: 672 | IQ10: 744 | IR10: 720 | IS10: 744 | IT10: 720 | IU10: 744 | IV10: 744 | IW10: 720 | IX10: 744 | IY10: 720 | IZ10: 744 | JA10: 744 | JB10: 696 | JC10: 744 | JD10: 720 | JE10: 744 | JF10: 720 | JG10: 744 | JH10: =JH9*24 -> 744 | JI10: 720 | JJ10: 744 | JK10: 720 | JL10: 744 | JM10: 744 | JN10: 672 | JO10: 744 | JP10: 720 | JQ10: 744 | JR10: 720 | JS10: 744 | JT10: 744 | JU10: 720 | JV10: 744 | JW10: 720 | JX10: 744 | JY10: 744 | JZ10: 672 | KA10: 744 | KB10: 720 | KC10: 744 | KD10: 720 | KE10: 744 | KF10: 744 | KG10: 720 | KH10: 744 | KI10: 720 | KJ10: 744 | KK10: 744 | KL10: 672 | KM10: 744 | KN10: 720 | KO10: 744 | KP10: 720 | KQ10: 744 | KR10: 744 | KS10: 720 | KT10: 744 | KU10: 720 | KV10: 744 | KW10: 744 | KX10: 696 | KY10: 744 | KZ10: 720 | LA10: 744 | LB10: 720 | LC10: 744 | LD10: 744 | LE10: 720 | LF10: 744 | LG10: 720 | LH10: 744 | LI10: 744 | LJ10: 672 | LK10: 744 | LL10: 720 | LM10: 744 | LN10: 720 | LO10: 744 | LP10: 744 | LQ10: 720 | LR10: 744 | LS10: 720 | LT10: =LT9*24 -> 744 | LU10: 744 | LV10: 672 | LW10: 744 | LX10: 720 | LY10: 744 | LZ10: 720 | MA10: 744 | MB10: 744 | MC10: 720 | MD10: 744 | ME10: 720 | MF10: 744 | MG10: 744 | MH10: 672 | MI10: 744 | MJ10: =MJ9*24 -> 720 | MK10: =MK9*24 -> 744 | ML10: =ML9*24 -> 720 | MM10: =MM9*24 -> 744 | MN10: =MN9*24 -> 744 | MO10: =MO9*24 -> 720 | MP10: =MP9*24 -> 744 | MQ10: =MQ9*24 -> 720 | MR10: =MR9*24 -> 744 | MS10: =MS9*24 -> 744 | MT10: =MT9*24 -> 696 | MU10: =MU9*24 -> 744 | MV10: =MV9*24 -> 720 | MW10: =MW9*24 -> 744 | MX10: =MX9*24 -> 720 | MY10: =MY9*24 -> 744 | MZ10: =MZ9*24 -> 744 | NA10: =NA9*24 -> 720 | NB10: =NB9*24 -> 744 | NC10: =NC9*24 -> 720 | ND10: =ND9*24 -> 744 | NE10: =NE9*24 -> 744 | NF10: =NF9*24 -> 672 | NG10: =NG9*24 -> 744 | NH10: =NH9*24 -> 720 | NI10: =NI9*24 -> 744 | NJ10: =NJ9*24 -> 720 | NK10: =NK9*24 -> 744 | NL10: =NL9*24 -> 744 | NM10: =NM9*24 -> 720 | NN10: =NN9*24 -> 744 | NO10: =NO9*24 -> 720 | NP10: =NP9*24 -> 744 | NQ10: =NQ9*24 -> 744 | NR10: =NR9*24 -> 672 | NS10: =NS9*24 -> 744 | NT10: =NT9*24 -> 720 | NU10: =NU9*24 -> 744 | NV10: =NV9*24 -> 720 | NW10: =NW9*24 -> 744 | NX10: =NX9*24 -> 744 | NY10: =NY9*24 -> 720 | NZ10: =NZ9*24 -> 744 | OA10: =OA9*24 -> 720 | OB10: =OB9*24 -> 744 | OC10: =OC9*24 -> 744 | OD10: =OD9*24 -> 672 | OE10: =OE9*24 -> 744
B11: Year | K11: =YEAR(K3) -> 2015 | L11: 2015 | M11: 2015 | N11: 2015 | O11: 2015 | P11: 2015 | Q11: 2015 | R11: 2015 | S11: 2015 | T11: 2015 | U11: 2016 | V11: 2016 | W11: 2016 | X11: 2016 | Y11: 2016 | Z11: 2016 | AA11: 2016 | AB11: 2016 | AC11: 2016 | AD11: 2016 | AE11: 2016 | AF11: 2016 | AG11: 2017 | AH11: 2017 | AI11: 2017 | AJ11: 2017 | AK11: 2017 | AL11: 2017 | AM11: 2017 | AN11: 2017 | AO11: 2017 | AP11: 2017 | AQ11: 2017 | AR11: 2017 | AS11: 2018 | AT11: 2018 | AU11: 2018 | AV11: 2018 | AW11: 2018 | AX11: 2018 | AY11: 2018 | AZ11: 2018 | BA11: 2018 | BB11: 2018 | BC11: 2018 | BD11: 2018 | BE11: 2019 | BF11: 2019 | BG11: 2019 | BH11: 2019 | BI11: 2019 | BJ11: 2019 | BK11: 2019 | BL11: 2019 | BM11: 2019 | BN11: 2019 | BO11: 2019 | BP11: 2019 | BQ11: 2020 | BR11: 2020 | BS11: 2020 | BT11: 2020 | BU11: 2020 | BV11: 2020 | BW11: =YEAR(BW3) -> 2020 | BX11: 2020 | BY11: 2020 | BZ11: 2020 | CA11: 2020 | CB11: 2020 | CC11: 2021 | CD11: 2021 | CE11: 2021 | CF11: 2021 | CG11: 2021 | CH11: 2021 | CI11: 2021 | CJ11: 2021 | CK11: 2021 | CL11: 2021 | CM11: 2021 | CN11: 2021 | CO11: 2022 | CP11: 2022 | CQ11: 2022 | CR11: 2022 | CS11: 2022 | CT11: 2022 | CU11: 2022 | CV11: 2022 | CW11: 2022 | CX11: 2022 | CY11: 2022 | CZ11: 2022 | DA11: 2023 | DB11: 2023 | DC11: 2023 | DD11: 2023 | DE11: 2023 | DF11: 2023 | DG11: 2023 | DH11: 2023 | DI11: 2023 | DJ11: 2023 | DK11: 2023 | DL11: 2023 | DM11: 2024 | DN11: 2024 | DO11: 2024 | DP11: 2024 | DQ11: 2024 | DR11: 2024 | DS11: 2024 | DT11: 2024 | DU11: 2024 | DV11: 2024 | DW11: 2024 | DX11: 2024 | DY11: 2025 | DZ11: 2025 | EA11: 2025 | EB11: 2025 | EC11: 2025 | ED11: 2025 | EE11: 2025 | EF11: 2025 | EG11: 2025 | EH11: 2025 | EI11: =YEAR(EI3) -> 2025 | EJ11: 2025 | EK11: 2026 | EL11: 2026 | EM11: 2026 | EN11: 2026 | EO11: 2026 | EP11: 2026 | EQ11: 2026 | ER11: 2026 | ES11: 2026 | ET11: 2026 | EU11: 2026 | EV11: 2026 | EW11: 2027 | EX11: 2027 | EY11: 2027 | EZ11: 2027 | FA11: 2027 | FB11: 2027 | FC11: 2027 | FD11: 2027 | FE11: 2027 | FF11: 2027 | FG11: 2027 | FH11: 2027 | FI11: 2028 | FJ11: 2028 | FK11: 2028 | FL11: 2028 | FM11: 2028 | FN11: 2028 | FO11: 2028 | FP11: 2028 | FQ11: 2028 | FR11: 2028 | FS11: 2028 | FT11: 2028 | FU11: 2029 | FV11: 2029 | FW11: 2029 | FX11: 2029 | FY11: 2029 | FZ11: 2029 | GA11: 2029 | GB11: 2029 | GC11: 2029 | GD11: 2029 | GE11: 2029 | GF11: 2029 | GG11: 2030 | GH11: 2030 | GI11: 2030 | GJ11: 2030 | GK11: 2030 | GL11: 2030 | GM11: 2030 | GN11: 2030 | GO11: 2030 | GP11: 2030 | GQ11: 2030 | GR11: 2030 | GS11: 2031 | GT11: 2031 | GU11: =YEAR(GU3) -> 2031 | GV11: 2031 | GW11: 2031 | GX11: 2031 | GY11: 2031 | GZ11: 2031 | HA11: 2031 | HB11: 2031 | HC11: 2031 | HD11: 2031 | HE11: 2032 | HF11: 2032 | HG11: 2032 | HH11: 2032 | HI11: 2032 | HJ11: 2032 | HK11: 2032 | HL11: 2032 | HM11: 2032 | HN11: 2032 | HO11: 2032 | HP11: 2032 | HQ11: 2033 | HR11: 2033 | HS11: 2033 | HT11: 2033 | HU11: 2033 | HV11: 2033 | HW11: 2033 | HX11: 2033 | HY11: 2033 | HZ11: 2033 | IA11: 2033 | IB11: 2033 | IC11: 2034 | ID11: 2034 | IE11: 2034 | IF11: 2034 | IG11: 2034 | IH11: 2034 | II11: 2034 | IJ11: 2034 | IK11: 2034 | IL11: 2034 | IM11: 2034 | IN11: 2034 | IO11: 2035 | IP11: 2035 | IQ11: 2035 | IR11: 2035 | IS11: 2035 | IT11: 2035 | IU11: 2035 | IV11: 2035 | IW11: 2035 | IX11: 2035 | IY11: 2035 | IZ11: 2035 | JA11: 2036 | JB11: 2036 | JC11: 2036 | JD11: 2036 | JE11: 2036 | JF11: 2036 | JG11: =YEAR(JG3) -> 2036 | JH11: 2036 | JI11: 2036 | JJ11: 2036 | JK11: 2036 | JL11: 2036 | JM11: 2037 | JN11: 2037 | JO11: 2037 | JP11: 2037 | JQ11: 2037 | JR11: 2037 | JS11: 2037 | JT11: 2037 | JU11: 2037 | JV11: 2037 | JW11: 2037 | JX11: 2037 | JY11: 2038 | JZ11: 2038 | KA11: 2038 | KB11: 2038 | KC11: 2038 | KD11: 2038 | KE11: 2038 | KF11: 2038 | KG11: 2038 | KH11: 2038 | KI11: 2038 | KJ11: 2038 | KK11: 2039 | KL11: 2039 | KM11: 2039 | KN11: 2039 | KO11: 2039 | KP11: 2039 | KQ11: 2039 | KR11: 2039 | KS11: 2039 | KT11: 2039 | KU11: 2039 | KV11: 2039 | KW11: 2040 | KX11: 2040 | KY11: 2040 | KZ11: 2040 | LA11: 2040 | LB11: 2040 | LC11: 2040 | LD11: 2040 | LE11: 2040 | LF11: 2040 | LG11: 2040 | LH11: 2040 | LI11: 2041 | LJ11: 2041 | LK11: 2041 | LL11: 2041 | LM11: 2041 | LN11: 2041 | LO11: 2041 | LP11: 2041 | LQ11: 2041 | LR11: 2041 | LS11: =YEAR(LS3) -> 2041 | LT11: 2041 | LU11: 2042 | LV11: 2042 | LW11: 2042 | LX11: 2042 | LY11: 2042 | LZ11: 2042 | MA11: 2042 | MB11: 2042 | MC11: 2042 | MD11: 2042 | ME11: 2042 | MF11: 2042 | MG11: 2043 | MH11: 2043 | MI11: 2043 | MJ11: 2043 | MK11: 2043 | ML11: 2043 | MM11: 2043 | MN11: 2043 | MO11: 2043 | MP11: 2043 | MQ11: 2043 | MR11: 2043 | MS11: 2044 | MT11: 2044 | MU11: 2044 | MV11: 2044 | MW11: 2044 | MX11: 2044 | MY11: 2044 | MZ11: 2044 | NA11: 2044 | NB11: 2044 | NC11: 2044 | ND11: 2044 | NE11: 2045 | NF11: 2045 | NG11: 2045 | NH11: 2045 | NI11: 2045 | NJ11: 2045 | NK11: 2045 | NL11: 2045 | NM11: 2045 | NN11: 2045 | NO11: 2045 | NP11: 2045 | NQ11: 2046 | NR11: 2046 | NS11: 2046 | NT11: 2046 | NU11: 2046 | NV11: 2046 | NW11: 2046 | NX11: 2046 | NY11: 2046 | NZ11: 2046 | OA11: 2046 | OB11: 2046 | OC11: 2047 | OD11: 2047 | OE11: 2047
A14: Assumptions
B15: Timing Assumptions
C16: Model Start | E16: date | F16: 2015-03-01
C17: Commercial Operation | E17: date | F17: 2018-07-01
C18: Construction Period | E18: months | F18: =DAYS360(F16,F17)/30 -> 40
C19: Plant Life | E19: years | F19: 25
C20: Decomissioning | E20: date | F20: =EDATE(F17,F19*12) -> 2043-07-01
B22: Operating Assumptions
C23: Capacity | E23: MW | F23: 300
C25: Capacity Factor | E25: Code Number | F25: 1 | H25: 1 | I25: 2 | J25: 3 | K25: 4
E26: % | F26: Month | G26: Date | H26: P25 | I26: P50 | J26: P75 | K26: P95
F27: 0 | G27: =EDATE($F$17,F27) -> 2018-07-01 | H27: 0.35 | I27: 0.33 | J27: 0.3 | K27: 0.25
F28: 12 | G28: =EDATE($F$17,F28) -> 2019-07-01 | H28: 0.36 | I28: 0.35 | J28: 0.3 | K28: 0.26
F29: 50 | G29: 2022-09-01 | H29: 0.365 | I29: 0.355 | J29: 0.3 | K29: 0.255
F30: 120 | G30: 2028-07-01 | H30: 0.365 | I30: 0.34 | J30: 0.3 | K30: 0.253
F31: 250 | G31: 2039-05-01 | H31: 0.365 | I31: 0.33 | J31: 0.3 | K31: 0.24
B33: Capital Expenditures
C34: Capex/kW | E34: USD/kW | F34: 2000
C35: Construction Year | G35: 1 | H35: 2 | I35: 3 | J35: 4
C36: Percent | G36: 0.2 | H36: 0.65 | I36: =1-SUM(G36:H36) -> 0.15 | J36: 0
B38: Revenue Assumptions
C39: Merchant Revenues | E39: USD/MWH | F39: 56.63
C41: Year | G41: 2015 | H41: 2016 | I41: 2017 | J41: 2018 | K41: 2019 | L41: 2020 | M41: 2021 | N41: 2022 | O41: 2023
C42: Scenario Number | E42: Code | F42: 1
D43: Base Case Revenue Growth | G43: -0.03 | H43: 0 | I43: 0.01 | J43: 0.025 | K43: 0.02 | L43: 0.015 | M43: 0.015 | N43: 0.015 | O43: 0.015
D44: Low Case Growth | G44: -0.04 | H44: -0.01 | I44: 0 | J44: 0 | K44: 0.01 | L44: 0.01 | M44: 0.01 | N44: 0.015 | O44: 0.015
D45: High Case Growth | G45: 0 | H45: 0.015 | I45: 0.02 | J45: 0.025 | K45: 0.025 | L45: 0.025 | M45: 0.025 | N45: 0.015 | O45: 0.015
D47: =INDEX(D43:D45,$F$42) -> Base Case Revenue Growth | G47: =INDEX(G43:G45,$F$42) -> -0.03 | H47: 0 | I47: 0.01 | J47: 0.025 | K47: 0.02 | L47: 0.015 | M47: 0.015 | N47: 0.015 | O47: 0.015
B49: Operating Expenses | E49: Base Period | F49: 2016-01-01
C50: Fixed OM | F50: Age | G50: USD/kW-year
F51: 1 | G51: 35
F52: 10 | G52: 42
F53: 15 | G53: 45
C55: O&M Escalation (General Inflation) | G55: 2015 | H55: 2016 | I55: 2017 | J55: 2018 | K55: 2019 | L55: 2020 | M55: 2021 | N55: 2022 | O55: 2023
C56: Scenario Number | E56: Code | F56: 1
D57: Base Case Inflation Case | G57: 0.015 | H57: 0.02 | I57: 0.02 | J57: 0.02 | K57: 0.02 | L57: 0.03 | M57: 0.03 | N57: 0.03 | O57: 0.03
D58: Low Inflation Case | G58: 0 | H58: 0.002 | I58: 0.005 | J58: 0.01 | K58: 0.01 | L58: 0.01 | M58: 0.01 | N58: 0.01 | O58: 0.01
D59: High Inflation Case | G59: 0.015 | H59: 0.0175 | I59: 0.019 | J59: 0.025 | K59: 0.03 | L59: 0.03 | M59: 0.03 | N59: 0.03 | O59: 0.03
D61: =INDEX(D57:D59,$F$56) -> Base Case Inflation Case | G61: =INDEX(G57:G59,$F$56) -> 0.015 | H61: 0.02 | I61: 0.02 | J61: 0.02 | K61: 0.02 | L61: 0.03 | M61: 0.03 | N61: 0.03 | O61: 0.03
A63: Capacity, Output and Capital Expenditures
B64: Plant Capacity | E64: MW | F64: Total Cap | G64: =F23 -> 300 | K64: =$G$64*K5 -> 0 | L64: 0 | M64: 0 | N64: 0 | O64: 0 | P64: 0 | Q64: 0 | R64: 0 | S64: 0 | T64: 0 | U64: 0 | V64: 0 | W64: 0 | X64: 0 | Y64: 0 | Z64: 0 | AA64: 0 | AB64: 0 | AC64: 0 | AD64: 0 | AE64: 0 | AF64: 0 | AG64: 0 | AH64: 0 | AI64: 0 | AJ64: 0 | AK64: 0 | AL64: 0 | AM64: 0 | AN64: 0 | AO64: 0 | AP64: 0 | AQ64: 0 | AR64: 0 | AS64: 0 | AT64: 0 | AU64: 0 | AV64: 0 | AW64: 0 | AX64: 0 | AY64: 300 | AZ64: 300 | BA64: 300 | BB64: 300 | BC64: 300 | BD64: 300 | BE64: 300 | BF64: 300 | BG64: 300 | BH64: 300 | BI64: 300 | BJ64: 300 | BK64: 300 | BL64: 300 | BM64: 300 | BN64: 300 | BO64: 300 | BP64: 300 | BQ64: 300 | BR64: 300 | BS64: 300 | BT64: 300 | BU64: 300 | BV64: 300 | BW64: =$G$64*BW5 -> 300 | BX64: 300 | BY64: 300 | BZ64: 300 | CA64: 300 | CB64: 300 | CC64: 300 | CD64: 300 | CE64: 300 | CF64: 300 | CG64: 300 | CH64: 300 | CI64: 300 | CJ64: 300 | CK64: 300 | CL64: 300 | CM64: 300 | CN64: 300 | CO64: 300 | CP64: 300 | CQ64: 300 | CR64: 300 | CS64: 300 | CT64: 300 | CU64: 300 | CV64: 300 | CW64: 300 | CX64: 300 | CY64: 300 | CZ64: 300 | DA64: 300 | DB64: 300 | DC64: 300 | DD64: 300 | DE64: 300 | DF64: 300 | DG64: 300 | DH64: 300 | DI64: 300 | DJ64: 300 | DK64: 300 | DL64: 300 | DM64: 300 | DN64: 300 | DO64: 300 | DP64: 300 | DQ64: 300 | DR64: 300 | DS64: 300 | DT64: 300 | DU64: 300 | DV64: 300 | DW64: 300 | DX64: 300 | DY64: 300 | DZ64: 300 | EA64: 300 | EB64: 300 | EC64: 300 | ED64: 300 | EE64: 300 | EF64: 300 | EG64: 300 | EH64: 300 | EI64: =$G$64*EI5 -> 300 | EJ64: 300 | EK64: 300 | EL64: 300 | EM64: 300 | EN64: 300 | EO64: 300 | EP64: 300 | EQ64: 300 | ER64: 300 | ES64: 300 | ET64: 300 | EU64: 300 | EV64: 300 | EW64: 300 | EX64: 300 | EY64: 300 | EZ64: 300 | FA64: 300 | FB64: 300 | FC64: 300 | FD64: 300 | FE64: 300 | FF64: 300 | FG64: 300 | FH64: 300 | FI64: 300 | FJ64: 300 | FK64: 300 | FL64: 300 | FM64: 300 | FN64: 300 | FO64: 300 | FP64: 300 | FQ64: 300 | FR64: 300 | FS64: 300 | FT64: 300 | FU64: 300 | FV64: 300 | FW64: 300 | FX64: 300 | FY64: 300 | FZ64: 300 | GA64: 300 | GB64: 300 | GC64: 300 | GD64: 300 | GE64: 300 | GF64: 300 | GG64: 300 | GH64: 300 | GI64: 300 | GJ64: 300 | GK64: 300 | GL64: 300 | GM64: 300 | GN64: 300 | GO64: 300 | GP64: 300 | GQ64: 300 | GR64: 300 | GS64: 300 | GT64: 300 | GU64: =$G$64*GU5 -> 300 | GV64: 300 | GW64: 300 | GX64: 300 | GY64: 300 | GZ64: 300 | HA64: 300 | HB64: 300 | HC64: 300 | HD64: 300 | HE64: 300 | HF64: 300 | HG64: 300 | HH64: 300 | HI64: 300 | HJ64: 300 | HK64: 300 | HL64: 300 | HM64: 300 | HN64: 300 | HO64: 300 | HP64: 300 | HQ64: 300 | HR64: 300 | HS64: 300 | HT64: 300 | HU64: 300 | HV64: 300 | HW64: 300 | HX64: 300 | HY64: 300 | HZ64: 300 | IA64: 300 | IB64: 300 | IC64: 300 | ID64: 300 | IE64: 300 | IF64: 300 | IG64: 300 | IH64: 300 | II64: 300 | IJ64: 300 | IK64: 300 | IL64: 300 | IM64: 300 | IN64: 300 | IO64: 300 | IP64: 300 | IQ64: 300 | IR64: 300 | IS64: 300 | IT64: 300 | IU64: 300 | IV64: 300 | IW64: 300 | IX64: 300 | IY64: 300 | IZ64: 300 | JA64: 300 | JB64: 300 | JC64: 300 | JD64: 300 | JE64: 300 | JF64: 300 | JG64: =$G$64*JG5 -> 300 | JH64: 300 | JI64: 300 | JJ64: 300 | JK64: 300 | JL64: 300 | JM64: 300 | JN64: 300 | JO64: 300 | JP64: 300 | JQ64: 300 | JR64: 300 | JS64: 300 | JT64: 300 | JU64: 300 | JV64: 300 | JW64: 300 | JX64: 300 | JY64: 300 | JZ64: 300 | KA64: 300 | KB64: 300 | KC64: 300 | KD64: 300 | KE64: 300 | KF64: 300 | KG64: 300 | KH64: 300 | KI64: 300 | KJ64: 300 | KK64: 300 | KL64: 300 | KM64: 300 | KN64: 300 | KO64: 300 | KP64: 300 | KQ64: 300 | KR64: 300 | KS64: 300 | KT64: 300 | KU64: 300 | KV64: 300 | KW64: 300 | KX64: 300 | KY64: 300 | KZ64: 300 | LA64: 300 | LB64: 300 | LC64: 300 | LD64: 300 | LE64: 300 | LF64: 300 | LG64: 300 | LH64: 300 | LI64: 300 | LJ64: 300 | LK64: 300 | LL64: 300 | LM64: 300 | LN64: 300 | LO64: 300 | LP64: 300 | LQ64: 300 | LR64: 300 | LS64: =$G$64*LS5 -> 300 | LT64: 300 | LU64: 300 | LV64: 300 | LW64: 300 | LX64: 300 | LY64: 300 | LZ64: 300 | MA64: 300 | MB64: 300 | MC64: 300 | MD64: 300 | ME64: 300 | MF64: 300 | MG64: 300 | MH64: 300 | MI64: 300 | MJ64: 300 | MK64: 300 | ML64: 300 | MM64: 0 | MN64: 0 | MO64: 0 | MP64: 0 | MQ64: 0 | MR64: 0 | MS64: 0 | MT64: 0 | MU64: 0 | MV64: 0 | MW64: 0 | MX64: 0 | MY64: 0 | MZ64: 0 | NA64: 0 | NB64: 0 | NC64: 0 | ND64: 0 | NE64: 0 | NF64: 0 | NG64: 0 | NH64: 0 | NI64: 0 | NJ64: 0 | NK64: 0 | NL64: 0 | NM64: 0 | NN64: 0 | NO64: 0 | NP64: 0 | NQ64: 0 | NR64: 0 | NS64: 0 | NT64: 0 | NU64: 0 | NV64: 0 | NW64: 0 | NX64: 0 | NY64: 0 | NZ64: 0 | OA64: 0 | OB64: 0 | OC64: 0 | OD64: 0 | OE64: 0
B65: Capacity Factor | E65: %
C66: Row Number | K66: =MATCH(K2,$G$27:$G$31,1) ->  | AY66: 1 | AZ66: 1 | BA66: 1 | BB66: 1 | BC66: 1 | BD66: 1 | BE66: 1 | BF66: 1 | BG66: 1 | BH66: 1 | BI66: 1 | BJ66: 1 | BK66: 2 | BL66: 2 | BM66: 2 | BN66: 2 | BO66: 2 | BP66: 2 | BQ66: 2 | BR66: 2 | BS66: 2 | BT66: 2 | BU66: 2 | BV66: 2 | BW66: =MATCH(BW2,$G$27:$G$31,1) -> 2 | BX66: 2 | BY66: 2 | BZ66: 2 | CA66: 2 | CB66: 2 | CC66: 2 | CD66: 2 | CE66: 2 | CF66: 2 | CG66: 2 | CH66: 2 | CI66: 2 | CJ66: 2 | CK66: 2 | CL66: 2 | CM66: 2 | CN66: 2 | CO66: 2 | CP66: 2 | CQ66: 2 | CR66: 2 | CS66: 2 | CT66: 2 | CU66: 2 | CV66: 2 | CW66: 3 | CX66: 3 | CY66: 3 | CZ66: 3 | DA66: 3 | DB66: 3 | DC66: 3 | DD66: 3 | DE66: 3 | DF66: 3 | DG66: 3 | DH66: 3 | DI66: 3 | DJ66: 3 | DK66: 3 | DL66: 3 | DM66: 3 | DN66: 3 | DO66: 3 | DP66: 3 | DQ66: 3 | DR66: 3 | DS66: 3 | DT66: 3 | DU66: 3 | DV66: 3 | DW66: 3 | DX66: 3 | DY66: 3 | DZ66: 3 | EA66: 3 | EB66: 3 | EC66: 3 | ED66: 3 | EE66: 3 | EF66: 3 | EG66: 3 | EH66: 3 | EI66: =MATCH(EI2,$G$27:$G$31,1) -> 3 | EJ66: 3 | EK66: 3 | EL66: 3 | EM66: 3 | EN66: 3 | EO66: 3 | EP66: 3 | EQ66: 3 | ER66: 3 | ES66: 3 | ET66: 3 | EU66: 3 | EV66: 3 | EW66: 3 | EX66: 3 | EY66: 3 | EZ66: 3 | FA66: 3 | FB66: 3 | FC66: 3 | FD66: 3 | FE66: 3 | FF66: 3 | FG66: 3 | FH66: 3 | FI66: 3 | FJ66: 3 | FK66: 3 | FL66: 3 | FM66: 3 | FN66: 3 | FO66: 4 | FP66: 4 | FQ66: 4 | FR66: 4 | FS66: 4 | FT66: 4 | FU66: 4 | FV66: 4 | FW66: 4 | FX66: 4 | FY66: 4 | FZ66: 4 | GA66: 4 | GB66: 4 | GC66: 4 | GD66: 4 | GE66: 4 | GF66: 4 | GG66: 4 | GH66: 4 | GI66: 4 | GJ66: 4 | GK66: 4 | GL66: 4 | GM66: 4 | GN66: 4 | GO66: 4 | GP66: 4 | GQ66: 4 | GR66: 4 | GS66: 4 | GT66: 4 | GU66: =MATCH(GU2,$G$27:$G$31,1) -> 4 | GV66: 4 | GW66: 4 | GX66: 4 | GY66: 4 | GZ66: 4 | HA66: 4 | HB66: 4 | HC66: 4 | HD66: 4 | HE66: 4 | HF66: 4 | HG66: 4 | HH66: 4 | HI66: 4 | HJ66: 4 | HK66: 4 | HL66: 4 | HM66: 4 | HN66: 4 | HO66: 4 | HP66: 4 | HQ66: 4 | HR66: 4 | HS66: 4 | HT66: 4 | HU66: 4 | HV66: 4 | HW66: 4 | HX66: 4 | HY66: 4 | HZ66: 4 | IA66: 4 | IB66: 4 | IC66: 4 | ID66: 4 | IE66: 4 | IF66: 4 | IG66: 4 | IH66: 4 | II66: 4 | IJ66: 4 | IK66: 4 | IL66: 4 | IM66: 4 | IN66: 4 | IO66: 4 | IP66: 4 | IQ66: 4 | IR66: 4 | IS66: 4 | IT66: 4 | IU66: 4 | IV66: 4 | IW66: 4 | IX66: 4 | IY66: 4 | IZ66: 4 | JA66: 4 | JB66: 4 | JC66: 4 | JD66: 4 | JE66: 4 | JF66: 4 | JG66: =MATCH(JG2,$G$27:$G$31,1) -> 4 | JH66: 4 | JI66: 4 | JJ66: 4 | JK66: 4 | JL66: 4 | JM66: 4 | JN66: 4 | JO66: 4 | JP66: 4 | JQ66: 4 | JR66: 4 | JS66: 4 | JT66: 4 | JU66: 4 | JV66: 4 | JW66: 4 | JX66: 4 | JY66: 4 | JZ66: 4 | KA66: 4 | KB66: 4 | KC66: 4 | KD66: 4 | KE66: 4 | KF66: 4 | KG66: 4 | KH66: 4 | KI66: 4 | KJ66: 4 | KK66: 4 | KL66: 4 | KM66: 4 | KN66: 4 | KO66: 5 | KP66: 5 | KQ66: 5 | KR66: 5 | KS66: 5 | KT66: 5 | KU66: 5 | KV66: 5 | KW66: 5 | KX66: 5 | KY66: 5 | KZ66: 5 | LA66: 5 | LB66: 5 | LC66: 5 | LD66: 5 | LE66: 5 | LF66: 5 | LG66: 5 | LH66: 5 | LI66: 5 | LJ66: 5 | LK66: 5 | LL66: 5 | LM66: 5 | LN66: 5 | LO66: 5 | LP66: 5 | LQ66: 5 | LR66: 5 | LS66: =MATCH(LS2,$G$27:$G$31,1) -> 5 | LT66: 5 | LU66: 5 | LV66: 5 | LW66: 5 | LX66: 5 | LY66: 5 | LZ66: 5 | MA66: 5 | MB66: 5 | MC66: 5 | MD66: 5 | ME66: 5 | MF66: 5 | MG66: 5 | MH66: 5 | MI66: 5 | MJ66: 5 | MK66: 5 | ML66: 5 | MM66: 5 | MN66: 5 | MO66: 5 | MP66: 5 | MQ66: 5 | MR66: 5 | MS66: 5 | MT66: 5 | MU66: 5 | MV66: 5 | MW66: 5 | MX66: 5 | MY66: 5 | MZ66: 5 | NA66: 5 | NB66: 5 | NC66: 5 | ND66: 5 | NE66: 5 | NF66: 5 | NG66: 5 | NH66: 5 | NI66: 5 | NJ66: 5 | NK66: 5 | NL66: 5 | NM66: 5 | NN66: 5 | NO66: 5 | NP66: 5 | NQ66: 5 | NR66: 5 | NS66: 5 | NT66: 5 | NU66: 5 | NV66: 5 | NW66: 5 | NX66: 5 | NY66: 5 | NZ66: 5 | OA66: 5 | OB66: 5 | OC66: 5 | OD66: 5 | OE66: 5
C67: Capacity Factor | K67: =INDEX($H$27:$K$31,K66,$F$25) ->  | L67: =INDEX($H$27:$K$31,L66,$F$25) ->  | AY67: 0.35 | AZ67: 0.35 | BA67: 0.35 | BB67: 0.35 | BC67: 0.35 | BD67: 0.35 | BE67: 0.35 | BF67: 0.35 | BG67: 0.35 | BH67: 0.35 | BI67: 0.35 | BJ67: 0.35 | BK67: 0.36 | BL67: 0.36 | BM67: 0.36 | BN67: 0.36 | BO67: 0.36 | BP67: 0.36 | BQ67: 0.36 | BR67: 0.36 | BS67: 0.36 | BT67: 0.36 | BU67: 0.36 | BV67: 0.36 | BW67: 0.36 | BX67: =INDEX($H$27:$K$31,BX66,$F$25) -> 0.36 | BY67: 0.36 | BZ67: 0.36 | CA67: 0.36 | CB67: 0.36 | CC67: 0.36 | CD67: 0.36 | CE67: 0.36 | CF67: 0.36 | CG67: 0.36 | CH67: 0.36 | CI67: 0.36 | CJ67: 0.36 | CK67: 0.36 | CL67: 0.36 | CM67: 0.36 | CN67: 0.36 | CO67: 0.36 | CP67: 0.36 | CQ67: 0.36 | CR67: 0.36 | CS67: 0.36 | CT67: 0.36 | CU67: 0.36 | CV67: 0.36 | CW67: 0.365 | CX67: 0.365 | CY67: 0.365 | CZ67: 0.365 | DA67: 0.365 | DB67: 0.365 | DC67: 0.365 | DD67: 0.365 | DE67: 0.365 | DF67: 0.365 | DG67: 0.365 | DH67: 0.365 | DI67: 0.365 | DJ67: 0.365 | DK67: 0.365 | DL67: 0.365 | DM67: 0.365 | DN67: 0.365 | DO67: 0.365 | DP67: 0.365 | DQ67: 0.365 | DR67: 0.365 | DS67: 0.365 | DT67: 0.365 | DU67: 0.365 | DV67: 0.365 | DW67: 0.365 | DX67: 0.365 | DY67: 0.365 | DZ67: 0.365 | EA67: 0.365 | EB67: 0.365 | EC67: 0.365 | ED67: 0.365 | EE67: 0.365 | EF67: 0.365 | EG67: 0.365 | EH67: 0.365 | EI67: 0.365 | EJ67: =INDEX($H$27:$K$31,EJ66,$F$25) -> 0.365 | EK67: 0.365 | EL67: 0.365 | EM67: 0.365 | EN67: 0.365 | EO67: 0.365 | EP67: 0.365 | EQ67: 0.365 | ER67: 0.365 | ES67: 0.365 | ET67: 0.365 | EU67: 0.365 | EV67: 0.365 | EW67: 0.365 | EX67: 0.365 | EY67: 0.365 | EZ67: 0.365 | FA67: 0.365 | FB67: 0.365 | FC67: 0.365 | FD67: 0.365 | FE67: 0.365 | FF67: 0.365 | FG67: 0.365 | FH67: 0.365 | FI67: 0.365 | FJ67: 0.365 | FK67: 0.365 | FL67: 0.365 | FM67: 0.365 | FN67: 0.365 | FO67: 0.365 | FP67: 0.365 | FQ67: 0.365 | FR67: 0.365 | FS67: 0.365 | FT67: 0.365 | FU67: 0.365 | FV67: 0.365 | FW67: 0.365 | FX67: 0.365 | FY67: 0.365 | FZ67: 0.365 | GA67: 0.365 | GB67: 0.365 | GC67: 0.365 | GD67: 0.365 | GE67: 0.365 | GF67: 0.365 | GG67: 0.365 | GH67: 0.365 | GI67: 0.365 | GJ67: 0.365 | GK67: 0.365 | GL67: 0.365 | GM67: 0.365 | GN67: 0.365 | GO67: 0.365 | GP67: 0.365 | GQ67: 0.365 | GR67: 0.365 | GS67: 0.365 | GT67: 0.365 | GU67: 0.365 | GV67: =INDEX($H$27:$K$31,GV66,$F$25) -> 0.365 | GW67: 0.365 | GX67: 0.365 | GY67: 0.365 | GZ67: 0.365 | HA67: 0.365 | HB67: 0.365 | HC67: 0.365 | HD67: 0.365 | HE67: 0.365 | HF67: 0.365 | HG67: 0.365 | HH67: 0.365 | HI67: 0.365 | HJ67: 0.365 | HK67: 0.365 | HL67: 0.365 | HM67: 0.365 | HN67: 0.365 | HO67: 0.365 | HP67: 0.365 | HQ67: 0.365 | HR67: 0.365 | HS67: 0.365 | HT67: 0.365 | HU67: 0.365 | HV67: 0.365 | HW67: 0.365 | HX67: 0.365 | HY67: 0.365 | HZ67: 0.365 | IA67: 0.365 | IB67: 0.365 | IC67: 0.365 | ID67: 0.365 | IE67: 0.365 | IF67: 0.365 | IG67: 0.365 | IH67: 0.365 | II67: 0.365 | IJ67: 0.365 | IK67: 0.365 | IL67: 0.365 | IM67: 0.365 | IN67: 0.365 | IO67: 0.365 | IP67: 0.365 | IQ67: 0.365 | IR67: 0.365 | IS67: 0.365 | IT67: 0.365 | IU67: 0.365 | IV67: 0.365 | IW67: 0.365 | IX67: 0.365 | IY67: 0.365 | IZ67: 0.365 | JA67: 0.365 | JB67: 0.365 | JC67: 0.365 | JD67: 0.365 | JE67: 0.365 | JF67: 0.365 | JG67: 0.365 | JH67: =INDEX($H$27:$K$31,JH66,$F$25) -> 0.365 | JI67: 0.365 | JJ67: 0.365 | JK67: 0.365 | JL67: 0.365 | JM67: 0.365 | JN67: 0.365 | JO67: 0.365 | JP67: 0.365 | JQ67: 0.365 | JR67: 0.365 | JS67: 0.365 | JT67: 0.365 | JU67: 0.365 | JV67: 0.365 | JW67: 0.365 | JX67: 0.365 | JY67: 0.365 | JZ67: 0.365 | KA67: 0.365 | KB67: 0.365 | KC67: 0.365 | KD67: 0.365 | KE67: 0.365 | KF67: 0.365 | KG67: 0.365 | KH67: 0.365 | KI67: 0.365 | KJ67: 0.365 | KK67: 0.365 | KL67: 0.365 | KM67: 0.365 | KN67: 0.365 | KO67: 0.365 | KP67: 0.365 | KQ67: 0.365 | KR67: 0.365 | KS67: 0.365 | KT67: 0.365 | KU67: 0.365 | KV67: 0.365 | KW67: 0.365 | KX67: 0.365 | KY67: 0.365 | KZ67: 0.365 | LA67: 0.365 | LB67: 0.365 | LC67: 0.365 | LD67: 0.365 | LE67: 0.365 | LF67: 0.365 | LG67: 0.365 | LH67: 0.365 | LI67: 0.365 | LJ67: 0.365 | LK67: 0.365 | LL67: 0.365 | LM67: 0.365 | LN67: 0.365 | LO67: 0.365 | LP67: 0.365 | LQ67: 0.365 | LR67: 0.365 | LS67: 0.365 | LT67: =INDEX($H$27:$K$31,LT66,$F$25) -> 0.365 | LU67: 0.365 | LV67: 0.365 | LW67: 0.365 | LX67: 0.365 | LY67: 0.365 | LZ67: 0.365 | MA67: 0.365 | MB67: 0.365 | MC67: 0.365 | MD67: 0.365 | ME67: 0.365 | MF67: 0.365 | MG67: 0.365 | MH67: 0.365 | MI67: 0.365 | MJ67: 0.365 | MK67: 0.365 | ML67: 0.365 | MM67: 0.365 | MN67: 0.365 | MO67: 0.365 | MP67: 0.365 | MQ67: 0.365 | MR67: 0.365 | MS67: 0.365 | MT67: 0.365 | MU67: 0.365 | MV67: 0.365 | MW67: 0.365 | MX67: 0.365 | MY67: 0.365 | MZ67: 0.365 | NA67: 0.365 | NB67: 0.365 | NC67: 0.365 | ND67: 0.365 | NE67: 0.365 | NF67: 0.365 | NG67: 0.365 | NH67: 0.365 | NI67: 0.365 | NJ67: 0.365 | NK67: 0.365 | NL67: 0.365 | NM67: 0.365 | NN67: 0.365 | NO67: 0.365 | NP67: 0.365 | NQ67: 0.365 | NR67: 0.365 | NS67: 0.365 | NT67: 0.365 | NU67: 0.365 | NV67: 0.365 | NW67: 0.365 | NX67: 0.365 | NY67: 0.365 | NZ67: 0.365 | OA67: 0.365 | OB67: 0.365 | OC67: 0.365 | OD67: 0.365 | OE67: 0.365
C69: Generation | E69: MWH | K69: =IF(K5,K64*K67*K10) -> FALSE | L69: FALSE | M69: FALSE | N69: FALSE | O69: FALSE | P69: FALSE | Q69: FALSE | R69: FALSE | S69: FALSE | T69: FALSE | U69: FALSE | V69: FALSE | W69: FALSE | X69: FALSE | Y69: FALSE | Z69: FALSE | AA69: FALSE | AB69: FALSE | AC69: FALSE | AD69: FALSE | AE69: FALSE | AF69: FALSE | AG69: FALSE | AH69: FALSE | AI69: FALSE | AJ69: FALSE | AK69: FALSE | AL69: FALSE | AM69: FALSE | AN69: FALSE | AO69: FALSE | AP69: FALSE | AQ69: FALSE | AR69: FALSE | AS69: FALSE | AT69: FALSE | AU69: FALSE | AV69: FALSE | AW69: FALSE | AX69: FALSE | AY69: 78120 | AZ69: 78120 | BA69: 75600 | BB69: 78120 | BC69: 75600 | BD69: 78120 | BE69: 78120 | BF69: 70560 | BG69: 78120 | BH69: 75600 | BI69: 78120 | BJ69: 75600 | BK69: 80352 | BL69: 80352 | BM69: 77760 | BN69: 80352 | BO69: 77760 | BP69: 80352 | BQ69: 80352 | BR69: 75168 | BS69: 80352 | BT69: 77760 | BU69: 80352 | BV69: 77760 | BW69: =IF(BW5,BW64*BW67*BW10) -> 80352 | BX69: 80352 | BY69: 77760 | BZ69: 80352 | CA69: 77760 | CB69: 80352 | CC69: 80352 | CD69: 72576 | CE69: 80352 | CF69: 77760 | CG69: 80352 | CH69: 77760 | CI69: 80352 | CJ69: 80352 | CK69: 77760 | CL69: 80352 | CM69: 77760 | CN69: 80352 | CO69: 80352 | CP69: 72576 | CQ69: 80352 | CR69: 77760 | CS69: 80352 | CT69: 77760 | CU69: 80352 | CV69: 80352 | CW69: 78840 | CX69: 81468 | CY69: 78840 | CZ69: 81468 | DA69: 81468 | DB69: 73584 | DC69: 81468 | DD69: 78840 | DE69: 81468 | DF69: 78840 | DG69: 81468 | DH69: 81468 | DI69: 78840 | DJ69: 81468 | DK69: 78840 | DL69: 81468 | DM69: 81468 | DN69: 76212 | DO69: 81468 | DP69: 78840 | DQ69: 81468 | DR69: 78840 | DS69: 81468 | DT69: 81468 | DU69: 78840 | DV69: 81468 | DW69: 78840 | DX69: 81468 | DY69: 81468 | DZ69: 73584 | EA69: 81468 | EB69: 78840 | EC69: 81468 | ED69: 78840 | EE69: 81468 | EF69: 81468 | EG69: 78840 | EH69: 81468 | EI69: =IF(EI5,EI64*EI67*EI10) -> 78840 | EJ69: 81468 | EK69: 81468 | EL69: 73584 | EM69: 81468 | EN69: 78840 | EO69: 81468 | EP69: 78840 | EQ69: 81468 | ER69: 81468 | ES69: 78840 | ET69: 81468 | EU69: 78840 | EV69: 81468 | EW69: 81468 | EX69: 73584 | EY69: 81468 | EZ69: 78840 | FA69: 81468 | FB69: 78840 | FC69: 81468 | FD69: 81468 | FE69: 78840 | FF69: 81468 | FG69: 78840 | FH69: 81468 | FI69: 81468 | FJ69: 76212 | FK69: 81468 | FL69: 78840 | FM69: 81468 | FN69: 78840 | FO69: 81468 | FP69: 81468 | FQ69: 78840 | FR69: 81468 | FS69: 78840 | FT69: 81468 | FU69: 81468 | FV69: 73584 | FW69: 81468 | FX69: 78840 | FY69: 81468 | FZ69: 78840 | GA69: 81468 | GB69: 81468 | GC69: 78840 | GD69: 81468 | GE69: 78840 | GF69: 81468 | GG69: 81468 | GH69: 73584 | GI69: 81468 | GJ69: 78840 | GK69: 81468 | GL69: 78840 | GM69: 81468 | GN69: 81468 | GO69: 78840 | GP69: 81468 | GQ69: 78840 | GR69: 81468 | GS69: 81468 | GT69: 73584 | GU69: =IF(GU5,GU64*GU67*GU10) -> 81468 | GV69: 78840 | GW69: 81468 | GX69: 78840 | GY69: 81468 | GZ69: 81468 | HA69: 78840 | HB69: 81468 | HC69: 78840 | HD69: 81468 | HE69: 81468 | HF69: 76212 | HG69: 81468 | HH69: 78840 | HI69: 81468 | HJ69: 78840 | HK69: 81468 | HL69: 81468 | HM69: 78840 | HN69: 81468 | HO69: 78840 | HP69: 81468 | HQ69: 81468 | HR69: 73584 | HS69: 81468 | HT69: 78840 | HU69: 81468 | HV69: 78840 | HW69: 81468 | HX69: 81468 | HY69: 78840 | HZ69: 81468 | IA69: 78840 | IB69: 81468 | IC69: 81468 | ID69: 73584 | IE69: 81468 | IF69: 78840 | IG69: 81468 | IH69: 78840 | II69: 81468 | IJ69: 81468 | IK69: 78840 | IL69: 81468 | IM69: 78840 | IN69: 81468 | IO69: 81468 | IP69: 73584 | IQ69: 81468 | IR69: 78840 | IS69: 81468 | IT69: 78840 | IU69: 81468 | IV69: 81468 | IW69: 78840 | IX69: 81468 | IY69: 78840 | IZ69: 81468 | JA69: 81468 | JB69: 76212 | JC69: 81468 | JD69: 78840 | JE69: 81468 | JF69: 78840 | JG69: =IF(JG5,JG64*JG67*JG10) -> 81468 | JH69: 81468 | JI69: 78840 | JJ69: 81468 | JK69: 78840 | JL69: 81468 | JM69: 81468 | JN69: 73584 | JO69: 81468 | JP69: 78840 | JQ69: 81468 | JR69: 78840 | JS69: 81468 | JT69: 81468 | JU69: 78840 | JV69: 81468 | JW69: 78840 | JX69: 81468 | JY69: 81468 | JZ69: 73584 | KA69: 81468 | KB69: 78840 | KC69: 81468 | KD69: 78840 | KE69: 81468 | KF69: 81468 | KG69: 78840 | KH69: 81468 | KI69: 78840 | KJ69: 81468 | KK69: 81468 | KL69: 73584 | KM69: 81468 | KN69: 78840 | KO69: 81468 | KP69: 78840 | KQ69: 81468 | KR69: 81468 | KS69: 78840 | KT69: 81468 | KU69: 78840 | KV69: 81468 | KW69: 81468 | KX69: 76212 | KY69: 81468 | KZ69: 78840 | LA69: 81468 | LB69: 78840 | LC69: 81468 | LD69: 81468 | LE69: 78840 | LF69: 81468 | LG69: 78840 | LH69: 81468 | LI69: 81468 | LJ69: 73584 | LK69: 81468 | LL69: 78840 | LM69: 81468 | LN69: 78840 | LO69: 81468 | LP69: 81468 | LQ69: 78840 | LR69: 81468 | LS69: =IF(LS5,LS64*LS67*LS10) -> 78840 | LT69: 81468 | LU69: 81468 | LV69: 73584 | LW69: 81468 | LX69: 78840 | LY69: 81468 | LZ69: 78840 | MA69: 81468 | MB69: 81468 | MC69: 78840 | MD69: 81468 | ME69: 78840 | MF69: 81468 | MG69: 81468 | MH69: 73584 | MI69: 81468 | MJ69: 78840 | MK69: 81468 | ML69: 78840 | MM69: FALSE | MN69: FALSE | MO69: FALSE | MP69: FALSE | MQ69: FALSE | MR69: FALSE | MS69: FALSE | MT69: FALSE | MU69: FALSE | MV69: FALSE | MW69: FALSE | MX69: FALSE | MY69: FALSE | MZ69: FALSE | NA69: FALSE | NB69: FALSE | NC69: FALSE | ND69: FALSE | NE69: FALSE | NF69: FALSE | NG69: FALSE | NH69: FALSE | NI69: FALSE | NJ69: FALSE | NK69: FALSE | NL69: FALSE | NM69: FALSE | NN69: FALSE | NO69: FALSE | NP69: FALSE | NQ69: FALSE | NR69: FALSE | NS69: FALSE | NT69: FALSE | NU69: FALSE | NV69: FALSE | NW69: FALSE | NX69: FALSE | NY69: FALSE | NZ69: FALSE | OA69: FALSE | OB69: FALSE | OC69: FALSE | OD69: FALSE | OE69: FALSE
B71: Capital Expenditures
C72: Construction Period | K72: =J72+K4 -> 1 | L72: 2 | M72: 3 | N72: 4 | O72: 5 | P72: 6 | Q72: 7 | R72: 8 | S72: 9 | T72: 10 | U72: 11 | V72: 12 | W72: 13 | X72: 14 | Y72: 15 | Z72: 16 | AA72: 17 | AB72: 18 | AC72: 19 | AD72: 20 | AE72: 21 | AF72: 22 | AG72: 23 | AH72: 24 | AI72: 25 | AJ72: 26 | AK72: 27 | AL72: 28 | AM72: 29 | AN72: 30 | AO72: 31 | AP72: 32 | AQ72: 33 | AR72: 34 | AS72: 35 | AT72: 36 | AU72: 37 | AV72: 38 | AW72: 39 | AX72: 40 | AY72: 40 | AZ72: 40 | BA72: 40 | BB72: 40 | BC72: 40 | BD72: 40 | BE72: 40 | BF72: 40 | BG72: 40 | BH72: 40 | BI72: 40 | BJ72: 40 | BK72: 40 | BL72: 40 | BM72: 40 | BN72: 40 | BO72: 40 | BP72: 40 | BQ72: 40 | BR72: 40 | BS72: 40 | BT72: 40 | BU72: 40 | BV72: 40 | BW72: =BV72+BW4 -> 40 | BX72: 40 | BY72: 40 | BZ72: 40 | CA72: 40 | CB72: 40 | CC72: 40 | CD72: 40 | CE72: 40 | CF72: 40 | CG72: 40 | CH72: 40 | CI72: 40 | CJ72: 40 | CK72: 40 | CL72: 40 | CM72: 40 | CN72: 40 | CO72: 40 | CP72: 40 | CQ72: 40 | CR72: 40 | CS72: 40 | CT72: 40 | CU72: 40 | CV72: 40 | CW72: 40 | CX72: 40 | CY72: 40 | CZ72: 40 | DA72: 40 | DB72: 40 | DC72: 40 | DD72: 40 | DE72: 40 | DF72: 40 | DG72: 40 | DH72: 40 | DI72: 40 | DJ72: 40 | DK72: 40 | DL72: 40 | DM72: 40 | DN72: 40 | DO72: 40 | DP72: 40 | DQ72: 40 | DR72: 40 | DS72: 40 | DT72: 40 | DU72: 40 | DV72: 40 | DW72: 40 | DX72: 40 | DY72: 40 | DZ72: 40 | EA72: 40 | EB72: 40 | EC72: 40 | ED72: 40 | EE72: 40 | EF72: 40 | EG72: 40 | EH72: 40 | EI72: =EH72+EI4 -> 40 | EJ72: 40 | EK72: 40 | EL72: 40 | EM72: 40 | EN72: 40 | EO72: 40 | EP72: 40 | EQ72: 40 | ER72: 40 | ES72: 40 | ET72: 40 | EU72: 40 | EV72: 40 | EW72: 40 | EX72: 40 | EY72: 40 | EZ72: 40 | FA72: 40 | FB72: 40 | FC72: 40 | FD72: 40 | FE72: 40 | FF72: 40 | FG72: 40 | FH72: 40 | FI72: 40 | FJ72: 40 | FK72: 40 | FL72: 40 | FM72: 40 | FN72: 40 | FO72: 40 | FP72: 40 | FQ72: 40 | FR72: 40 | FS72: 40 | FT72: 40 | FU72: 40 | FV72: 40 | FW72: 40 | FX72: 40 | FY72: 40 | FZ72: 40 | GA72: 40 | GB72: 40 | GC72: 40 | GD72: 40 | GE72: 40 | GF72: 40 | GG72: 40 | GH72: 40 | GI72: 40 | GJ72: 40 | GK72: 40 | GL72: 40 | GM72: 40 | GN72: 40 | GO72: 40 | GP72: 40 | GQ72: 40 | GR72: 40 | GS72: 40 | GT72: 40 | GU72: =GT72+GU4 -> 40 | GV72: 40 | GW72: 40 | GX72: 40 | GY72: 40 | GZ72: 40 | HA72: 40 | HB72: 40 | HC72: 40 | HD72: 40 | HE72: 40 | HF72: 40 | HG72: 40 | HH72: 40 | HI72: 40 | HJ72: 40 | HK72: 40 | HL72: 40 | HM72: 40 | HN72: 40 | HO72: 40 | HP72: 40 | HQ72: 40 | HR72: 40 | HS72: 40 | HT72: 40 | HU72: 40 | HV72: 40 | HW72: 40 | HX72: 40 | HY72: 40 | HZ72: 40 | IA72: 40 | IB72: 40 | IC72: 40 | ID72: 40 | IE72: 40 | IF72: 40 | IG72: 40 | IH72: 40 | II72: 40 | IJ72: 40 | IK72: 40 | IL72: 40 | IM72: 40 | IN72: 40 | IO72: 40 | IP72: 40 | IQ72: 40 | IR72: 40 | IS72: 40 | IT72: 40 | IU72: 40 | IV72: 40 | IW72: 40 | IX72: 40 | IY72: 40 | IZ72: 40 | JA72: 40 | JB72: 40 | JC72: 40 | JD72: 40 | JE72: 40 | JF72: 40 | JG72: =JF72+JG4 -> 40 | JH72: 40 | JI72: 40 | JJ72: 40 | JK72: 40 | JL72: 40 | JM72: 40 | JN72: 40 | JO72: 40 | JP72: 40 | JQ72: 40 | JR72: 40 | JS72: 40 | JT72: 40 | JU72: 40 | JV72: 40 | JW72: 40 | JX72: 40 | JY72: 40 | JZ72: 40 | KA72: 40 | KB72: 40 | KC72: 40 | KD72: 40 | KE72: 40 | KF72: 40 | KG72: 40 | KH72: 40 | KI72: 40 | KJ72: 40 | KK72: 40 | KL72: 40 | KM72: 40 | KN72: 40 | KO72: 40 | KP72: 40 | KQ72: 40 | KR72: 40 | KS72: 40 | KT72: 40 | KU72: 40 | KV72: 40 | KW72: 40 | KX72: 40 | KY72: 40 | KZ72: 40 | LA72: 40 | LB72: 40 | LC72: 40 | LD72: 40 | LE72: 40 | LF72: 40 | LG72: 40 | LH72: 40 | LI72: 40 | LJ72: 40 | LK72: 40 | LL72: 40 | LM72: 40 | LN72: 40 | LO72: 40 | LP72: 40 | LQ72: 40 | LR72: 40 | LS72: =LR72+LS4 -> 40 | LT72: 40 | LU72: 40 | LV72: 40 | LW72: 40 | LX72: 40 | LY72: 40 | LZ72: 40 | MA72: 40 | MB72: 40 | MC72: 40 | MD72: 40 | ME72: 40 | MF72: 40 | MG72: 40 | MH72: 40 | MI72: 40 | MJ72: 40 | MK72: 40 | ML72: 40 | MM72: 40 | MN72: 40 | MO72: 40 | MP72: 40 | MQ72: 40 | MR72: 40 | MS72: 40 | MT72: 40 | MU72: 40 | MV72: 40 | MW72: 40 | MX72: 40 | MY72: 40 | MZ72: 40 | NA72: 40 | NB72: 40 | NC72: 40 | ND72: 40 | NE72: 40 | NF72: 40 | NG72: 40 | NH72: 40 | NI72: 40 | NJ72: 40 | NK72: 40 | NL72: 40 | NM72: 40 | NN72: 40 | NO72: 40 | NP72: 40 | NQ72: 40 | NR72: 40 | NS72: 40 | NT72: 40 | NU72: 40 | NV72: 40 | NW72: 40 | NX72: 40 | NY72: 40 | NZ72: 40 | OA72: 40 | OB72: 40 | OC72: 40 | OD72: 40 | OE72: 40
C73: Construction Year | K73: =ROUNDUP(K72/12,0) -> 1 | L73: =ROUNDUP(L72/12,0) -> 1 | M73: 1 | N73: 1 | O73: 1 | P73: 1 | Q73: 1 | R73: 1 | S73: 1 | T73: 1 | U73: 1 | V73: 1 | W73: 2 | X73: 2 | Y73: 2 | Z73: 2 | AA73: 2 | AB73: 2 | AC73: 2 | AD73: 2 | AE73: 2 | AF73: 2 | AG73: 2 | AH73: 2 | AI73: 3 | AJ73: 3 | AK73: 3 | AL73: 3 | AM73: 3 | AN73: 3 | AO73: 3 | AP73: 3 | AQ73: 3 | AR73: 3 | AS73: 3 | AT73: 3 | AU73: 4 | AV73: 4 | AW73: 4 | AX73: 4 | AY73: 4 | AZ73: 4 | BA73: 4 | BB73: 4 | BC73: 4 | BD73: 4 | BE73: 4 | BF73: 4 | BG73: 4 | BH73: 4 | BI73: 4 | BJ73: 4 | BK73: 4 | BL73: 4 | BM73: 4 | BN73: 4 | BO73: 4 | BP73: 4 | BQ73: 4 | BR73: 4 | BS73: 4 | BT73: 4 | BU73: 4 | BV73: 4 | BW73: 4 | BX73: =ROUNDUP(BX72/12,0) -> 4 | BY73: 4 | BZ73: 4 | CA73: 4 | CB73: 4 | CC73: 4 | CD73: 4 | CE73: 4 | CF73: 4 | CG73: 4 | CH73: 4 | CI73: 4 | CJ73: 4 | CK73: 4 | CL73: 4 | CM73: 4 | CN73: 4 | CO73: 4 | CP73: 4 | CQ73: 4 | CR73: 4 | CS73: 4 | CT73: 4 | CU73: 4 | CV73: 4 | CW73: 4 | CX73: 4 | CY73: 4 | CZ73: 4 | DA73: 4 | DB73: 4 | DC73: 4 | DD73: 4 | DE73: 4 | DF73: 4 | DG73: 4 | DH73: 4 | DI73: 4 | DJ73: 4 | DK73: 4 | DL73: 4 | DM73: 4 | DN73: 4 | DO73: 4 | DP73: 4 | DQ73: 4 | DR73: 4 | DS73: 4 | DT73: 4 | DU73: 4 | DV73: 4 | DW73: 4 | DX73: 4 | DY73: 4 | DZ73: 4 | EA73: 4 | EB73: 4 | EC73: 4 | ED73: 4 | EE73: 4 | EF73: 4 | EG73: 4 | EH73: 4 | EI73: 4 | EJ73: =ROUNDUP(EJ72/12,0) -> 4 | EK73: 4 | EL73: 4 | EM73: 4 | EN73: 4 | EO73: 4 | EP73: 4 | EQ73: 4 | ER73: 4 | ES73: 4 | ET73: 4 | EU73: 4 | EV73: 4 | EW73: 4 | EX73: 4 | EY73: 4 | EZ73: 4 | FA73: 4 | FB73: 4 | FC73: 4 | FD73: 4 | FE73: 4 | FF73: 4 | FG73: 4 | FH73: 4 | FI73: 4 | FJ73: 4 | FK73: 4 | FL73: 4 | FM73: 4 | FN73: 4 | FO73: 4 | FP73: 4 | FQ73: 4 | FR73: 4 | FS73: 4 | FT73: 4 | FU73: 4 | FV73: 4 | FW73: 4 | FX73: 4 | FY73: 4 | FZ73: 4 | GA73: 4 | GB73: 4 | GC73: 4 | GD73: 4 | GE73: 4 | GF73: 4 | GG73: 4 | GH73: 4 | GI73: 4 | GJ73: 4 | GK73: 4 | GL73: 4 | GM73: 4 | GN73: 4 | GO73: 4 | GP73: 4 | GQ73: 4 | GR73: 4 | GS73: 4 | GT73: 4 | GU73: 4 | GV73: =ROUNDUP(GV72/12,0) -> 4 | GW73: 4 | GX73: 4 | GY73: 4 | GZ73: 4 | HA73: 4 | HB73: 4 | HC73: 4 | HD73: 4 | HE73: 4 | HF73: 4 | HG73: 4 | HH73: 4 | HI73: 4 | HJ73: 4 | HK73: 4 | HL73: 4 | HM73: 4 | HN73: 4 | HO73: 4 | HP73: 4 | HQ73: 4 | HR73: 4 | HS73: 4 | HT73: 4 | HU73: 4 | HV73: 4 | HW73: 4 | HX73: 4 | HY73: 4 | HZ73: 4 | IA73: 4 | IB73: 4 | IC73: 4 | ID73: 4 | IE73: 4 | IF73: 4 | IG73: 4 | IH73: 4 | II73: 4 | IJ73: 4 | IK73: 4 | IL73: 4 | IM73: 4 | IN73: 4 | IO73: 4 | IP73: 4 | IQ73: 4 | IR73: 4 | IS73: 4 | IT73: 4 | IU73: 4 | IV73: 4 | IW73: 4 | IX73: 4 | IY73: 4 | IZ73: 4 | JA73: 4 | JB73: 4 | JC73: 4 | JD73: 4 | JE73: 4 | JF73: 4 | JG73: 4 | JH73: =ROUNDUP(JH72/12,0) -> 4 | JI73: 4 | JJ73: 4 | JK73: 4 | JL73: 4 | JM73: 4 | JN73: 4 | JO73: 4 | JP73: 4 | JQ73: 4 | JR73: 4 | JS73: 4 | JT73: 4 | JU73: 4 | JV73: 4 | JW73: 4 | JX73: 4 | JY73: 4 | JZ73: 4 | KA73: 4 | KB73: 4 | KC73: 4 | KD73: 4 | KE73: 4 | KF73: 4 | KG73: 4 | KH73: 4 | KI73: 4 | KJ73: 4 | KK73: 4 | KL73: 4 | KM73: 4 | KN73: 4 | KO73: 4 | KP73: 4 | KQ73: 4 | KR73: 4 | KS73: 4 | KT73: 4 | KU73: 4 | KV73: 4 | KW73: 4 | KX73: 4 | KY73: 4 | KZ73: 4 | LA73: 4 | LB73: 4 | LC73: 4 | LD73: 4 | LE73: 4 | LF73: 4 | LG73: 4 | LH73: 4 | LI73: 4 | LJ73: 4 | LK73: 4 | LL73: 4 | LM73: 4 | LN73: 4 | LO73: 4 | LP73: 4 | LQ73: 4 | LR73: 4 | LS73: 4 | LT73: =ROUNDUP(LT72/12,0) -> 4 | LU73: 4 | LV73: 4 | LW73: 4 | LX73: 4 | LY73: 4 | LZ73: 4 | MA73: 4 | MB73: 4 | MC73: 4 | MD73: 4 | ME73: 4 | MF73: 4 | MG73: 4 | MH73: 4 | MI73: 4 | MJ73: 4 | MK73: 4 | ML73: 4 | MM73: 4 | MN73: 4 | MO73: 4 | MP73: 4 | MQ73: 4 | MR73: 4 | MS73: 4 | MT73: 4 | MU73: 4 | MV73: 4 | MW73: 4 | MX73: 4 | MY73: 4 | MZ73: 4 | NA73: 4 | NB73: 4 | NC73: 4 | ND73: 4 | NE73: 4 | NF73: 4 | NG73: 4 | NH73: 4 | NI73: 4 | NJ73: 4 | NK73: 4 | NL73: 4 | NM73: 4 | NN73: 4 | NO73: 4 | NP73: 4 | NQ73: 4 | NR73: 4 | NS73: 4 | NT73: 4 | NU73: 4 | NV73: 4 | NW73: 4 | NX73: 4 | NY73: 4 | NZ73: 4 | OA73: 4 | OB73: 4 | OC73: 4 | OD73: 4 | OE73: 4
C74: Unadjusted S-Curve | K74: =LOOKUP(K73,35:35,36:36)/12*K4 -> 0.01666666667 | L74: =LOOKUP(L73,35:35,36:36)/12*L4 -> 0.01666666667 | M74: 0.01666666667 | N74: 0.01666666667 | O74: 0.01666666667 | P74: 0.01666666667 | Q74: 0.01666666667 | R74: 0.01666666667 | S74: 0.01666666667 | T74: 0.01666666667 | U74: 0.01666666667 | V74: 0.01666666667 | W74: 0.05416666667 | X74: 0.05416666667 | Y74: 0.05416666667 | Z74: 0.05416666667 | AA74: 0.05416666667 | AB74: 0.05416666667 | AC74: 0.05416666667 | AD74: 0.05416666667 | AE74: 0.05416666667 | AF74: 0.05416666667 | AG74: 0.05416666667 | AH74: 0.05416666667 | AI74: 0.0125 | AJ74: 0.0125 | AK74: 0.0125 | AL74: 0.0125 | AM74: 0.0125 | AN74: 0.0125 | AO74: 0.0125 | AP74: 0.0125 | AQ74: 0.0125 | AR74: 0.0125 | AS74: 0.0125 | AT74: 0.0125 | AU74: 0 | AV74: 0 | AW74: 0 | AX74: 0 | AY74: 0 | AZ74: 0 | BA74: 0 | BB74: 0 | BC74: 0 | BD74: 0 | BE74: 0 | BF74: 0 | BG74: 0 | BH74: 0 | BI74: 0 | BJ74: 0 | BK74: 0 | BL74: 0 | BM74: 0 | BN74: 0 | BO74: 0 | BP74: 0 | BQ74: 0 | BR74: 0 | BS74: 0 | BT74: 0 | BU74: 0 | BV74: 0 | BW74: 0 | BX74: =LOOKUP(BX73,35:35,36:36)/12*BX4 -> 0 | BY74: 0 | BZ74: 0 | CA74: 0 | CB74: 0 | CC74: 0 | CD74: 0 | CE74: 0 | CF74: 0 | CG74: 0 | CH74: 0 | CI74: 0 | CJ74: 0 | CK74: 0 | CL74: 0 | CM74: 0 | CN74: 0 | CO74: 0 | CP74: 0 | CQ74: 0 | CR74: 0 | CS74: 0 | CT74: 0 | CU74: 0 | CV74: 0 | CW74: 0 | CX74: 0 | CY74: 0 | CZ74: 0 | DA74: 0 | DB74: 0 | DC74: 0 | DD74: 0 | DE74: 0 | DF74: 0 | DG74: 0 | DH74: 0 | DI74: 0 | DJ74: 0 | DK74: 0 | DL74: 0 | DM74: 0 | DN74: 0 | DO74: 0 | DP74: 0 | DQ74: 0 | DR74: 0 | DS74: 0 | DT74: 0 | DU74: 0 | DV74: 0 | DW74: 0 | DX74: 0 | DY74: 0 | DZ74: 0 | EA74: 0 | EB74: 0 | EC74: 0 | ED74: 0 | EE74: 0 | EF74: 0 | EG74: 0 | EH74: 0 | EI74: 0 | EJ74: =LOOKUP(EJ73,35:35,36:36)/12*EJ4 -> 0 | EK74: 0 | EL74: 0 | EM74: 0 | EN74: 0 | EO74: 0 | EP74: 0 | EQ74: 0 | ER74: 0 | ES74: 0 | ET74: 0 | EU74: 0 | EV74: 0 | EW74: 0 | EX74: 0 | EY74: 0 | EZ74: 0 | FA74: 0 | FB74: 0 | FC74: 0 | FD74: 0 | FE74: 0 | FF74: 0 | FG74: 0 | FH74: 0 | FI74: 0 | FJ74: 0 | FK74: 0 | FL74: 0 | FM74: 0 | FN74: 0 | FO74: 0 | FP74: 0 | FQ74: 0 | FR74: 0 | FS74: 0 | FT74: 0 | FU74: 0 | FV74: 0 | FW74: 0 | FX74: 0 | FY74: 0 | FZ74: 0 | GA74: 0 | GB74: 0 | GC74: 0 | GD74: 0 | GE74: 0 | GF74: 0 | GG74: 0 | GH74: 0 | GI74: 0 | GJ74: 0 | GK74: 0 | GL74: 0 | GM74: 0 | GN74: 0 | GO74: 0 | GP74: 0 | GQ74: 0 | GR74: 0 | GS74: 0 | GT74: 0 | GU74: 0 | GV74: =LOOKUP(GV73,35:35,36:36)/12*GV4 -> 0 | GW74: 0 | GX74: 0 | GY74: 0 | GZ74: 0 | HA74: 0 | HB74: 0 | HC74: 0 | HD74: 0 | HE74: 0 | HF74: 0 | HG74: 0 | HH74: 0 | HI74: 0 | HJ74: 0 | HK74: 0 | HL74: 0 | HM74: 0 | HN74: 0 | HO74: 0 | HP74: 0 | HQ74: 0 | HR74: 0 | HS74: 0 | HT74: 0 | HU74: 0 | HV74: 0 | HW74: 0 | HX74: 0 | HY74: 0 | HZ74: 0 | IA74: 0 | IB74: 0 | IC74: 0 | ID74: 0 | IE74: 0 | IF74: 0 | IG74: 0 | IH74: 0 | II74: 0 | IJ74: 0 | IK74: 0 | IL74: 0 | IM74: 0 | IN74: 0 | IO74: 0 | IP74: 0 | IQ74: 0 | IR74: 0 | IS74: 0 | IT74: 0 | IU74: 0 | IV74: 0 | IW74: 0 | IX74: 0 | IY74: 0 | IZ74: 0 | JA74: 0 | JB74: 0 | JC74: 0 | JD74: 0 | JE74: 0 | JF74: 0 | JG74: 0 | JH74: =LOOKUP(JH73,35:35,36:36)/12*JH4 -> 0 | JI74: 0 | JJ74: 0 | JK74: 0 | JL74: 0 | JM74: 0 | JN74: 0 | JO74: 0 | JP74: 0 | JQ74: 0 | JR74: 0 | JS74: 0 | JT74: 0 | JU74: 0 | JV74: 0 | JW74: 0 | JX74: 0 | JY74: 0 | JZ74: 0 | KA74: 0 | KB74: 0 | KC74: 0 | KD74: 0 | KE74: 0 | KF74: 0 | KG74: 0 | KH74: 0 | KI74: 0 | KJ74: 0 | KK74: 0 | KL74: 0 | KM74: 0 | KN74: 0 | KO74: 0 | KP74: 0 | KQ74: 0 | KR74: 0 | KS74: 0 | KT74: 0 | KU74: 0 | KV74: 0 | KW74: 0 | KX74: 0 | KY74: 0 | KZ74: 0 | LA74: 0 | LB74: 0 | LC74: 0 | LD74: 0 | LE74: 0 | LF74: 0 | LG74: 0 | LH74: 0 | LI74: 0 | LJ74: 0 | LK74: 0 | LL74: 0 | LM74: 0 | LN74: 0 | LO74: 0 | LP74: 0 | LQ74: 0 | LR74: 0 | LS74: 0 | LT74: =LOOKUP(LT73,35:35,36:36)/12*LT4 -> 0 | LU74: 0 | LV74: 0 | LW74: 0 | LX74: 0 | LY74: 0 | LZ74: 0 | MA74: 0 | MB74: 0 | MC74: 0 | MD74: 0 | ME74: 0 | MF74: 0 | MG74: 0 | MH74: 0 | MI74: 0 | MJ74: 0 | MK74: 0 | ML74: 0 | MM74: 0 | MN74: 0 | MO74: 0 | MP74: 0 | MQ74: 0 | MR74: 0 | MS74: 0 | MT74: 0 | MU74: 0 | MV74: 0 | MW74: 0 | MX74: 0 | MY74: 0 | MZ74: 0 | NA74: 0 | NB74: 0 | NC74: 0 | ND74: 0 | NE74: 0 | NF74: 0 | NG74: 0 | NH74: 0 | NI74: 0 | NJ74: 0 | NK74: 0 | NL74: 0 | NM74: 0 | NN74: 0 | NO74: 0 | NP74: 0 | NQ74: 0 | NR74: 0 | NS74: 0 | NT74: 0 | NU74: 0 | NV74: 0 | NW74: 0 | NX74: 0 | NY74: 0 | NZ74: 0 | OA74: 0 | OB74: 0 | OC74: 0 | OD74: 0 | OE74: 0
C75: Accumulated S-Curve | K75: =J75+K74 -> 0.01666666667 | L75: =K75+L74 -> 0.03333333333 | M75: 0.05 | N75: 0.06666666667 | O75: 0.08333333333 | P75: 0.1 | Q75: 0.1166666667 | R75: 0.1333333333 | S75: 0.15 | T75: 0.1666666667 | U75: 0.1833333333 | V75: 0.2 | W75: 0.2541666667 | X75: 0.3083333333 | Y75: 0.3625 | Z75: 0.4166666667 | AA75: 0.4708333333 | AB75: 0.525 | AC75: 0.5791666667 | AD75: 0.6333333333 | AE75: 0.6875 | AF75: 0.7416666667 | AG75: 0.7958333333 | AH75: 0.85 | AI75: 0.8625 | AJ75: 0.875 | AK75: 0.8875 | AL75: 0.9 | AM75: 0.9125 | AN75: 0.925 | AO75: 0.9375 | AP75: 0.95 | AQ75: 0.9625 | AR75: 0.975 | AS75: 0.9875 | AT75: 1 | AU75: 1 | AV75: 1 | AW75: 1 | AX75: 1 | AY75: 1 | AZ75: 1 | BA75: 1 | BB75: 1 | BC75: 1 | BD75: 1 | BE75: 1 | BF75: 1 | BG75: 1 | BH75: 1 | BI75: 1 | BJ75: 1 | BK75: 1 | BL75: 1 | BM75: 1 | BN75: 1 | BO75: 1 | BP75: 1 | BQ75: 1 | BR75: 1 | BS75: 1 | BT75: 1 | BU75: 1 | BV75: 1 | BW75: 1 | BX75: =BW75+BX74 -> 1 | BY75: 1 | BZ75: 1 | CA75: 1 | CB75: 1 | CC75: 1 | CD75: 1 | CE75: 1 | CF75: 1 | CG75: 1 | CH75: 1 | CI75: 1 | CJ75: 1 | CK75: 1 | CL75: 1 | CM75: 1 | CN75: 1 | CO75: 1 | CP75: 1 | CQ75: 1 | CR75: 1 | CS75: 1 | CT75: 1 | CU75: 1 | CV75: 1 | CW75: 1 | CX75: 1 | CY75: 1 | CZ75: 1 | DA75: 1 | DB75: 1 | DC75: 1 | DD75: 1 | DE75: 1 | DF75: 1 | DG75: 1 | DH75: 1 | DI75: 1 | DJ75: 1 | DK75: 1 | DL75: 1 | DM75: 1 | DN75: 1 | DO75: 1 | DP75: 1 | DQ75: 1 | DR75: 1 | DS75: 1 | DT75: 1 | DU75: 1 | DV75: 1 | DW75: 1 | DX75: 1 | DY75: 1 | DZ75: 1 | EA75: 1 | EB75: 1 | EC75: 1 | ED75: 1 | EE75: 1 | EF75: 1 | EG75: 1 | EH75: 1 | EI75: 1 | EJ75: =EI75+EJ74 -> 1 | EK75: 1 | EL75: 1 | EM75: 1 | EN75: 1 | EO75: 1 | EP75: 1 | EQ75: 1 | ER75: 1 | ES75: 1 | ET75: 1 | EU75: 1 | EV75: 1 | EW75: 1 | EX75: 1 | EY75: 1 | EZ75: 1 | FA75: 1 | FB75: 1 | FC75: 1 | FD75: 1 | FE75: 1 | FF75: 1 | FG75: 1 | FH75: 1 | FI75: 1 | FJ75: 1 | FK75: 1 | FL75: 1 | FM75: 1 | FN75: 1 | FO75: 1 | FP75: 1 | FQ75: 1 | FR75: 1 | FS75: 1 | FT75: 1 | FU75: 1 | FV75: 1 | FW75: 1 | FX75: 1 | FY75: 1 | FZ75: 1 | GA75: 1 | GB75: 1 | GC75: 1 | GD75: 1 | GE75: 1 | GF75: 1 | GG75: 1 | GH75: 1 | GI75: 1 | GJ75: 1 | GK75: 1 | GL75: 1 | GM75: 1 | GN75: 1 | GO75: 1 | GP75: 1 | GQ75: 1 | GR75: 1 | GS75: 1 | GT75: 1 | GU75: 1 | GV75: =GU75+GV74 -> 1 | GW75: 1 | GX75: 1 | GY75: 1 | GZ75: 1 | HA75: 1 | HB75: 1 | HC75: 1 | HD75: 1 | HE75: 1 | HF75: 1 | HG75: 1 | HH75: 1 | HI75: 1 | HJ75: 1 | HK75: 1 | HL75: 1 | HM75: 1 | HN75: 1 | HO75: 1 | HP75: 1 | HQ75: 1 | HR75: 1 | HS75: 1 | HT75: 1 | HU75: 1 | HV75: 1 | HW75: 1 | HX75: 1 | HY75: 1 | HZ75: 1 | IA75: 1 | IB75: 1 | IC75: 1 | ID75: 1 | IE75: 1 | IF75: 1 | IG75: 1 | IH75: 1 | II75: 1 | IJ75: 1 | IK75: 1 | IL75: 1 | IM75: 1 | IN75: 1 | IO75: 1 | IP75: 1 | IQ75: 1 | IR75: 1 | IS75: 1 | IT75: 1 | IU75: 1 | IV75: 1 | IW75: 1 | IX75: 1 | IY75: 1 | IZ75: 1 | JA75: 1 | JB75: 1 | JC75: 1 | JD75: 1 | JE75: 1 | JF75: 1 | JG75: 1 | JH75: =JG75+JH74 -> 1 | JI75: 1 | JJ75: 1 | JK75: 1 | JL75: 1 | JM75: 1 | JN75: 1 | JO75: 1 | JP75: 1 | JQ75: 1 | JR75: 1 | JS75: 1 | JT75: 1 | JU75: 1 | JV75: 1 | JW75: 1 | JX75: 1 | JY75: 1 | JZ75: 1 | KA75: 1 | KB75: 1 | KC75: 1 | KD75: 1 | KE75: 1 | KF75: 1 | KG75: 1 | KH75: 1 | KI75: 1 | KJ75: 1 | KK75: 1 | KL75: 1 | KM75: 1 | KN75: 1 | KO75: 1 | KP75: 1 | KQ75: 1 | KR75: 1 | KS75: 1 | KT75: 1 | KU75: 1 | KV75: 1 | KW75: 1 | KX75: 1 | KY75: 1 | KZ75: 1 | LA75: 1 | LB75: 1 | LC75: 1 | LD75: 1 | LE75: 1 | LF75: 1 | LG75: 1 | LH75: 1 | LI75: 1 | LJ75: 1 | LK75: 1 | LL75: 1 | LM75: 1 | LN75: 1 | LO75: 1 | LP75: 1 | LQ75: 1 | LR75: 1 | LS75: 1 | LT75: =LS75+LT74 -> 1 | LU75: 1 | LV75: 1 | LW75: 1 | LX75: 1 | LY75: 1 | LZ75: 1 | MA75: 1 | MB75: 1 | MC75: 1 | MD75: 1 | ME75: 1 | MF75: 1 | MG75: 1 | MH75: 1 | MI75: 1 | MJ75: 1 | MK75: 1 | ML75: 1 | MM75: 1 | MN75: 1 | MO75: 1 | MP75: 1 | MQ75: 1 | MR75: 1 | MS75: 1 | MT75: 1 | MU75: 1 | MV75: 1 | MW75: 1 | MX75: 1 | MY75: 1 | MZ75: 1 | NA75: 1 | NB75: 1 | NC75: 1 | ND75: 1 | NE75: 1 | NF75: 1 | NG75: 1 | NH75: 1 | NI75: 1 | NJ75: 1 | NK75: 1 | NL75: 1 | NM75: 1 | NN75: 1 | NO75: 1 | NP75: 1 | NQ75: 1 | NR75: 1 | NS75: 1 | NT75: 1 | NU75: 1 | NV75: 1 | NW75: 1 | NX75: 1 | NY75: 1 | NZ75: 1 | OA75: 1 | OB75: 1 | OC75: 1 | OD75: 1 | OE75: 1
C76: Adjustment | K76: =(1-K75)*K8 -> 0 | L76: =(1-L75)*L8 -> 0 | M76: 0 | N76: 0 | O76: 0 | P76: 0 | Q76: 0 | R76: 0 | S76: 0 | T76: 0 | U76: 0 | V76: 0 | W76: 0 | X76: 0 | Y76: 0 | Z76: 0 | AA76: 0 | AB76: 0 | AC76: 0 | AD76: 0 | AE76: 0 | AF76: 0 | AG76: 0 | AH76: 0 | AI76: 0 | AJ76: 0 | AK76: 0 | AL76: 0 | AM76: 0 | AN76: 0 | AO76: 0 | AP76: 0 | AQ76: 0 | AR76: 0 | AS76: 0 | AT76: 0 | AU76: 0 | AV76: 0 | AW76: 0 | AX76: 2.220446049e-16 | AY76: 0 | AZ76: 0 | BA76: 0 | BB76: 0 | BC76: 0 | BD76: 0 | BE76: 0 | BF76: 0 | BG76: 0 | BH76: 0 | BI76: 0 | BJ76: 0 | BK76: 0 | BL76: 0 | BM76: 0 | BN76: 0 | BO76: 0 | BP76: 0 | BQ76: 0 | BR76: 0 | BS76: 0 | BT76: 0 | BU76: 0 | BV76: 0 | BW76: 0 | BX76: =(1-BX75)*BX8 -> 0 | BY76: 0 | BZ76: 0 | CA76: 0 | CB76: 0 | CC76: 0 | CD76: 0 | CE76: 0 | CF76: 0 | CG76: 0 | CH76: 0 | CI76: 0 | CJ76: 0 | CK76: 0 | CL76: 0 | CM76: 0 | CN76: 0 | CO76: 0 | CP76: 0 | CQ76: 0 | CR76: 0 | CS76: 0 | CT76: 0 | CU76: 0 | CV76: 0 | CW76: 0 | CX76: 0 | CY76: 0 | CZ76: 0 | DA76: 0 | DB76: 0 | DC76: 0 | DD76: 0 | DE76: 0 | DF76: 0 | DG76: 0 | DH76: 0 | DI76: 0 | DJ76: 0 | DK76: 0 | DL76: 0 | DM76: 0 | DN76: 0 | DO76: 0 | DP76: 0 | DQ76: 0 | DR76: 0 | DS76: 0 | DT76: 0 | DU76: 0 | DV76: 0 | DW76: 0 | DX76: 0 | DY76: 0 | DZ76: 0 | EA76: 0 | EB76: 0 | EC76: 0 | ED76: 0 | EE76: 0 | EF76: 0 | EG76: 0 | EH76: 0 | EI76: 0 | EJ76: =(1-EJ75)*EJ8 -> 0 | EK76: 0 | EL76: 0 | EM76: 0 | EN76: 0 | EO76: 0 | EP76: 0 | EQ76: 0 | ER76: 0 | ES76: 0 | ET76: 0 | EU76: 0 | EV76: 0 | EW76: 0 | EX76: 0 | EY76: 0 | EZ76: 0 | FA76: 0 | FB76: 0 | FC76: 0 | FD76: 0 | FE76: 0 | FF76: 0 | FG76: 0 | FH76: 0 | FI76: 0 | FJ76: 0 | FK76: 0 | FL76: 0 | FM76: 0 | FN76: 0 | FO76: 0 | FP76: 0 | FQ76: 0 | FR76: 0 | FS76: 0 | FT76: 0 | FU76: 0 | FV76: 0 | FW76: 0 | FX76: 0 | FY76: 0 | FZ76: 0 | GA76: 0 | GB76: 0 | GC76: 0 | GD76: 0 | GE76: 0 | GF76: 0 | GG76: 0 | GH76: 0 | GI76: 0 | GJ76: 0 | GK76: 0 | GL76: 0 | GM76: 0 | GN76: 0 | GO76: 0 | GP76: 0 | GQ76: 0 | GR76: 0 | GS76: 0 | GT76: 0 | GU76: 0 | GV76: =(1-GV75)*GV8 -> 0 | GW76: 0 | GX76: 0 | GY76: 0 | GZ76: 0 | HA76: 0 | HB76: 0 | HC76: 0 | HD76: 0 | HE76: 0 | HF76: 0 | HG76: 0 | HH76: 0 | HI76: 0 | HJ76: 0 | HK76: 0 | HL76: 0 | HM76: 0 | HN76: 0 | HO76: 0 | HP76: 0 | HQ76: 0 | HR76: 0 | HS76: 0 | HT76: 0 | HU76: 0 | HV76: 0 | HW76: 0 | HX76: 0 | HY76: 0 | HZ76: 0 | IA76: 0 | IB76: 0 | IC76: 0 | ID76: 0 | IE76: 0 | IF76: 0 | IG76: 0 | IH76: 0 | II76: 0 | IJ76: 0 | IK76: 0 | IL76: 0 | IM76: 0 | IN76: 0 | IO76: 0 | IP76: 0 | IQ76: 0 | IR76: 0 | IS76: 0 | IT76: 0 | IU76: 0 | IV76: 0 | IW76: 0 | IX76: 0 | IY76: 0 | IZ76: 0 | JA76: 0 | JB76: 0 | JC76: 0 | JD76: 0 | JE76: 0 | JF76: 0 | JG76: 0 | JH76: =(1-JH75)*JH8 -> 0 | JI76: 0 | JJ76: 0 | JK76: 0 | JL76: 0 | JM76: 0 | JN76: 0 | JO76: 0 | JP76: 0 | JQ76: 0 | JR76: 0 | JS76: 0 | JT76: 0 | JU76: 0 | JV76: 0 | JW76: 0 | JX76: 0 | JY76: 0 | JZ76: 0 | KA76: 0 | KB76: 0 | KC76: 0 | KD76: 0 | KE76: 0 | KF76: 0 | KG76: 0 | KH76: 0 | KI76: 0 | KJ76: 0 | KK76: 0 | KL76: 0 | KM76: 0 | KN76: 0 | KO76: 0 | KP76: 0 | KQ76: 0 | KR76: 0 | KS76: 0 | KT76: 0 | KU76: 0 | KV76: 0 | KW76: 0 | KX76: 0 | KY76: 0 | KZ76: 0 | LA76: 0 | LB76: 0 | LC76: 0 | LD76: 0 | LE76: 0 | LF76: 0 | LG76: 0 | LH76: 0 | LI76: 0 | LJ76: 0 | LK76: 0 | LL76: 0 | LM76: 0 | LN76: 0 | LO76: 0 | LP76: 0 | LQ76: 0 | LR76: 0 | LS76: 0 | LT76: =(1-LT75)*LT8 -> 0 | LU76: 0 | LV76: 0 | LW76: 0 | LX76: 0 | LY76: 0 | LZ76: 0 | MA76: 0 | MB76: 0 | MC76: 0 | MD76: 0 | ME76: 0 | MF76: 0 | MG76: 0 | MH76: 0 | MI76: 0 | MJ76: 0 | MK76: 0 | ML76: 0 | MM76: 0 | MN76: 0 | MO76: 0 | MP76: 0 | MQ76: 0 | MR76: 0 | MS76: 0 | MT76: 0 | MU76: 0 | MV76: 0 | MW76: 0 | MX76: 0 | MY76: 0 | MZ76: 0 | NA76: 0 | NB76: 0 | NC76: 0 | ND76: 0 | NE76: 0 | NF76: 0 | NG76: 0 | NH76: 0 | NI76: 0 | NJ76: 0 | NK76: 0 | NL76: 0 | NM76: 0 | NN76: 0 | NO76: 0 | NP76: 0 | NQ76: 0 | NR76: 0 | NS76: 0 | NT76: 0 | NU76: 0 | NV76: 0 | NW76: 0 | NX76: 0 | NY76: 0 | NZ76: 0 | OA76: 0 | OB76: 0 | OC76: 0 | OD76: 0 | OE76: 0
C77: Adjusted S-Curve | I77: =SUM(K77:OE77)=1 -> TRUE | K77: =K74+K76 -> 0.01666666667 | L77: =L74+L76 -> 0.01666666667 | M77: 0.01666666667 | N77: 0.01666666667 | O77: 0.01666666667 | P77: 0.01666666667 | Q77: 0.01666666667 | R77: 0.01666666667 | S77: 0.01666666667 | T77: 0.01666666667 | U77: 0.01666666667 | V77: 0.01666666667 | W77: 0.05416666667 | X77: 0.05416666667 | Y77: 0.05416666667 | Z77: 0.05416666667 | AA77: 0.05416666667 | AB77: 0.05416666667 | AC77: 0.05416666667 | AD77: 0.05416666667 | AE77: 0.05416666667 | AF77: 0.05416666667 | AG77: 0.05416666667 | AH77: 0.05416666667 | AI77: 0.0125 | AJ77: 0.0125 | AK77: 0.0125 | AL77: 0.0125 | AM77: 0.0125 | AN77: 0.0125 | AO77: 0.0125 | AP77: 0.0125 | AQ77: 0.0125 | AR77: 0.0125 | AS77: 0.0125 | AT77: 0.0125 | AU77: 0 | AV77: 0 | AW77: 0 | AX77: 2.220446049e-16 | AY77: 0 | AZ77: 0 | BA77: 0 | BB77: 0 | BC77: 0 | BD77: 0 | BE77: 0 | BF77: 0 | BG77: 0 | BH77: 0 | BI77: 0 | BJ77: 0 | BK77: 0 | BL77: 0 | BM77: 0 | BN77: 0 | BO77: 0 | BP77: 0 | BQ77: 0 | BR77: 0 | BS77: 0 | BT77: 0 | BU77: 0 | BV77: 0 | BW77: 0 | BX77: =BX74+BX76 -> 0 | BY77: 0 | BZ77: 0 | CA77: 0 | CB77: 0 | CC77: 0 | CD77: 0 | CE77: 0 | CF77: 0 | CG77: 0 | CH77: 0 | CI77: 0 | CJ77: 0 | CK77: 0 | CL77: 0 | CM77: 0 | CN77: 0 | CO77: 0 | CP77: 0 | CQ77: 0 | CR77: 0 | CS77: 0 | CT77: 0 | CU77: 0 | CV77: 0 | CW77: 0 | CX77: 0 | CY77: 0 | CZ77: 0 | DA77: 0 | DB77: 0 | DC77: 0 | DD77: 0 | DE77: 0 | DF77: 0 | DG77: 0 | DH77: 0 | DI77: 0 | DJ77: 0 | DK77: 0 | DL77: 0 | DM77: 0 | DN77: 0 | DO77: 0 | DP77: 0 | DQ77: 0 | DR77: 0 | DS77: 0 | DT77: 0 | DU77: 0 | DV77: 0 | DW77: 0 | DX77: 0 | DY77: 0 | DZ77: 0 | EA77: 0 | EB77: 0 | EC77: 0 | ED77: 0 | EE77: 0 | EF77: 0 | EG77: 0 | EH77: 0 | EI77: 0 | EJ77: =EJ74+EJ76 -> 0 | EK77: 0 | EL77: 0 | EM77: 0 | EN77: 0 | EO77: 0 | EP77: 0 | EQ77: 0 | ER77: 0 | ES77: 0 | ET77: 0 | EU77: 0 | EV77: 0 | EW77: 0 | EX77: 0 | EY77: 0 | EZ77: 0 | FA77: 0 | FB77: 0 | FC77: 0 | FD77: 0 | FE77: 0 | FF77: 0 | FG77: 0 | FH77: 0 | FI77: 0 | FJ77: 0 | FK77: 0 | FL77: 0 | FM77: 0 | FN77: 0 | FO77: 0 | FP77: 0 | FQ77: 0 | FR77: 0 | FS77: 0 | FT77: 0 | FU77: 0 | FV77: 0 | FW77: 0 | FX77: 0 | FY77: 0 | FZ77: 0 | GA77: 0 | GB77: 0 | GC77: 0 | GD77: 0 | GE77: 0 | GF77: 0 | GG77: 0 | GH77: 0 | GI77: 0 | GJ77: 0 | GK77: 0 | GL77: 0 | GM77: 0 | GN77: 0 | GO77: 0 | GP77: 0 | GQ77: 0 | GR77: 0 | GS77: 0 | GT77: 0 | GU77: 0 | GV77: =GV74+GV76 -> 0 | GW77: 0 | GX77: 0 | GY77: 0 | GZ77: 0 | HA77: 0 | HB77: 0 | HC77: 0 | HD77: 0 | HE77: 0 | HF77: 0 | HG77: 0 | HH77: 0 | HI77: 0 | HJ77: 0 | HK77: 0 | HL77: 0 | HM77: 0 | HN77: 0 | HO77: 0 | HP77: 0 | HQ77: 0 | HR77: 0 | HS77: 0 | HT77: 0 | HU77: 0 | HV77: 0 | HW77: 0 | HX77: 0 | HY77: 0 | HZ77: 0 | IA77: 0 | IB77: 0 | IC77: 0 | ID77: 0 | IE77: 0 | IF77: 0 | IG77: 0 | IH77: 0 | II77: 0 | IJ77: 0 | IK77: 0 | IL77: 0 | IM77: 0 | IN77: 0 | IO77: 0 | IP77: 0 | IQ77: 0 | IR77: 0 | IS77: 0 | IT77: 0 | IU77: 0 | IV77: 0 | IW77: 0 | IX77: 0 | IY77: 0 | IZ77: 0 | JA77: 0 | JB77: 0 | JC77: 0 | JD77: 0 | JE77: 0 | JF77: 0 | JG77: 0 | JH77: =JH74+JH76 -> 0 | JI77: 0 | JJ77: 0 | JK77: 0 | JL77: 0 | JM77: 0 | JN77: 0 | JO77: 0 | JP77: 0 | JQ77: 0 | JR77: 0 | JS77: 0 | JT77: 0 | JU77: 0 | JV77: 0 | JW77: 0 | JX77: 0 | JY77: 0 | JZ77: 0 | KA77: 0 | KB77: 0 | KC77: 0 | KD77: 0 | KE77: 0 | KF77: 0 | KG77: 0 | KH77: 0 | KI77: 0 | KJ77: 0 | KK77: 0 | KL77: 0 | KM77: 0 | KN77: 0 | KO77: 0 | KP77: 0 | KQ77: 0 | KR77: 0 | KS77: 0 | KT77: 0 | KU77: 0 | KV77: 0 | KW77: 0 | KX77: 0 | KY77: 0 | KZ77: 0 | LA77: 0 | LB77: 0 | LC77: 0 | LD77: 0 | LE77: 0 | LF77: 0 | LG77: 0 | LH77: 0 | LI77: 0 | LJ77: 0 | LK77: 0 | LL77: 0 | LM77: 0 | LN77: 0 | LO77: 0 | LP77: 0 | LQ77: 0 | LR77: 0 | LS77: 0 | LT77: =LT74+LT76 -> 0 | LU77: 0 | LV77: 0 | LW77: 0 | LX77: 0 | LY77: 0 | LZ77: 0 | MA77: 0 | MB77: 0 | MC77: 0 | MD77: 0 | ME77: 0 | MF77: 0 | MG77: 0 | MH77: 0 | MI77: 0 | MJ77: 0 | MK77: 0 | ML77: 0 | MM77: 0 | MN77: 0 | MO77: 0 | MP77: 0 | MQ77: 0 | MR77: 0 | MS77: 0 | MT77: 0 | MU77: 0 | MV77: 0 | MW77: 0 | MX77: 0 | MY77: 0 | MZ77: 0 | NA77: 0 | NB77: 0 | NC77: 0 | ND77: 0 | NE77: 0 | NF77: 0 | NG77: 0 | NH77: 0 | NI77: 0 | NJ77: 0 | NK77: 0 | NL77: 0 | NM77: 0 | NN77: 0 | NO77: 0 | NP77: 0 | NQ77: 0 | NR77: 0 | NS77: 0 | NT77: 0 | NU77: 0 | NV77: 0 | NW77: 0 | NX77: 0 | NY77: 0 | NZ77: 0 | OA77: 0 | OB77: 0 | OC77: 0 | OD77: 0 | OE77: 0
C78: Total Capital Expenditues | E78: USD 000's | F78: Cost/kW | G78: =F34 -> 2000 | K78: =$G$78*$G$64*K77 -> 10000 | L78: =$G$78*$G$64*L77 -> 10000 | M78: 10000 | N78: 10000 | O78: 10000 | P78: 10000 | Q78: 10000 | R78: 10000 | S78: 10000 | T78: 10000 | U78: 10000 | V78: 10000 | W78: 32500 | X78: 32500 | Y78: 32500 | Z78: 32500 | AA78: 32500 | AB78: 32500 | AC78: 32500 | AD78: 32500 | AE78: 32500 | AF78: 32500 | AG78: 32500 | AH78: 32500 | AI78: 7500 | AJ78: 7500 | AK78: 7500 | AL78: 7500 | AM78: 7500 | AN78: 7500 | AO78: 7500 | AP78: 7500 | AQ78: 7500 | AR78: 7500 | AS78: 7500 | AT78: 7500 | AU78: 0 | AV78: 0 | AW78: 0 | AX78: 1.33226763e-10 | AY78: 0 | AZ78: 0 | BA78: 0 | BB78: 0 | BC78: 0 | BD78: 0 | BE78: 0 | BF78: 0 | BG78: 0 | BH78: 0 | BI78: 0 | BJ78: 0 | BK78: 0 | BL78: 0 | BM78: 0 | BN78: 0 | BO78: 0 | BP78: 0 | BQ78: 0 | BR78: 0 | BS78: 0 | BT78: 0 | BU78: 0 | BV78: 0 | BW78: 0 | BX78: =$G$78*$G$64*BX77 -> 0 | BY78: 0 | BZ78: 0 | CA78: 0 | CB78: 0 | CC78: 0 | CD78: 0 | CE78: 0 | CF78: 0 | CG78: 0 | CH78: 0 | CI78: 0 | CJ78: 0 | CK78: 0 | CL78: 0 | CM78: 0 | CN78: 0 | CO78: 0 | CP78: 0 | CQ78: 0 | CR78: 0 | CS78: 0 | CT78: 0 | CU78: 0 | CV78: 0 | CW78: 0 | CX78: 0 | CY78: 0 | CZ78: 0 | DA78: 0 | DB78: 0 | DC78: 0 | DD78: 0 | DE78: 0 | DF78: 0 | DG78: 0 | DH78: 0 | DI78: 0 | DJ78: 0 | DK78: 0 | DL78: 0 | DM78: 0 | DN78: 0 | DO78: 0 | DP78: 0 | DQ78: 0 | DR78: 0 | DS78: 0 | DT78: 0 | DU78: 0 | DV78: 0 | DW78: 0 | DX78: 0 | DY78: 0 | DZ78: 0 | EA78: 0 | EB78: 0 | EC78: 0 | ED78: 0 | EE78: 0 | EF78: 0 | EG78: 0 | EH78: 0 | EI78: 0 | EJ78: =$G$78*$G$64*EJ77 -> 0 | EK78: 0 | EL78: 0 | EM78: 0 | EN78: 0 | EO78: 0 | EP78: 0 | EQ78: 0 | ER78: 0 | ES78: 0 | ET78: 0 | EU78: 0 | EV78: 0 | EW78: 0 | EX78: 0 | EY78: 0 | EZ78: 0 | FA78: 0 | FB78: 0 | FC78: 0 | FD78: 0 | FE78: 0 | FF78: 0 | FG78: 0 | FH78: 0 | FI78: 0 | FJ78: 0 | FK78: 0 | FL78: 0 | FM78: 0 | FN78: 0 | FO78: 0 | FP78: 0 | FQ78: 0 | FR78: 0 | FS78: 0 | FT78: 0 | FU78: 0 | FV78: 0 | FW78: 0 | FX78: 0 | FY78: 0 | FZ78: 0 | GA78: 0 | GB78: 0 | GC78: 0 | GD78: 0 | GE78: 0 | GF78: 0 | GG78: 0 | GH78: 0 | GI78: 0 | GJ78: 0 | GK78: 0 | GL78: 0 | GM78: 0 | GN78: 0 | GO78: 0 | GP78: 0 | GQ78: 0 | GR78: 0 | GS78: 0 | GT78: 0 | GU78: 0 | GV78: =$G$78*$G$64*GV77 -> 0 | GW78: 0 | GX78: 0 | GY78: 0 | GZ78: 0 | HA78: 0 | HB78: 0 | HC78: 0 | HD78: 0 | HE78: 0 | HF78: 0 | HG78: 0 | HH78: 0 | HI78: 0 | HJ78: 0 | HK78: 0 | HL78: 0 | HM78: 0 | HN78: 0 | HO78: 0 | HP78: 0 | HQ78: 0 | HR78: 0 | HS78: 0 | HT78: 0 | HU78: 0 | HV78: 0 | HW78: 0 | HX78: 0 | HY78: 0 | HZ78: 0 | IA78: 0 | IB78: 0 | IC78: 0 | ID78: 0 | IE78: 0 | IF78: 0 | IG78: 0 | IH78: 0 | II78: 0 | IJ78: 0 | IK78: 0 | IL78: 0 | IM78: 0 | IN78: 0 | IO78: 0 | IP78: 0 | IQ78: 0 | IR78: 0 | IS78: 0 | IT78: 0 | IU78: 0 | IV78: 0 | IW78: 0 | IX78: 0 | IY78: 0 | IZ78: 0 | JA78: 0 | JB78: 0 | JC78: 0 | JD78: 0 | JE78: 0 | JF78: 0 | JG78: 0 | JH78: =$G$78*$G$64*JH77 -> 0 | JI78: 0 | JJ78: 0 | JK78: 0 | JL78: 0 | JM78: 0 | JN78: 0 | JO78: 0 | JP78: 0 | JQ78: 0 | JR78: 0 | JS78: 0 | JT78: 0 | JU78: 0 | JV78: 0 | JW78: 0 | JX78: 0 | JY78: 0 | JZ78: 0 | KA78: 0 | KB78: 0 | KC78: 0 | KD78: 0 | KE78: 0 | KF78: 0 | KG78: 0 | KH78: 0 | KI78: 0 | KJ78: 0 | KK78: 0 | KL78: 0 | KM78: 0 | KN78: 0 | KO78: 0 | KP78: 0 | KQ78: 0 | KR78: 0 | KS78: 0 | KT78: 0 | KU78: 0 | KV78: 0 | KW78: 0 | KX78: 0 | KY78: 0 | KZ78: 0 | LA78: 0 | LB78: 0 | LC78: 0 | LD78: 0 | LE78: 0 | LF78: 0 | LG78: 0 | LH78: 0 | LI78: 0 | LJ78: 0 | LK78: 0 | LL78: 0 | LM78: 0 | LN78: 0 | LO78: 0 | LP78: 0 | LQ78: 0 | LR78: 0 | LS78: 0 | LT78: =$G$78*$G$64*LT77 -> 0 | LU78: 0 | LV78: 0 | LW78: 0 | LX78: 0 | LY78: 0 | LZ78: 0 | MA78: 0 | MB78: 0 | MC78: 0 | MD78: 0 | ME78: 0 | MF78: 0 | MG78: 0 | MH78: 0 | MI78: 0 | MJ78: 0 | MK78: 0 | ML78: 0 | MM78: 0 | MN78: 0 | MO78: 0 | MP78: 0 | MQ78: 0 | MR78: 0 | MS78: 0 | MT78: 0 | MU78: 0 | MV78: 0 | MW78: 0 | MX78: 0 | MY78: 0 | MZ78: 0 | NA78: 0 | NB78: 0 | NC78: 0 | ND78: 0 | NE78: 0 | NF78: 0 | NG78: 0 | NH78: 0 | NI78: 0 | NJ78: 0 | NK78: 0 | NL78: 0 | NM78: 0 | NN78: 0 | NO78: 0 | NP78: 0 | NQ78: 0 | NR78: 0 | NS78: 0 | NT78: 0 | NU78: 0 | NV78: 0 | NW78: 0 | NX78: 0 | NY78: 0 | NZ78: 0 | OA78: 0 | OB78: 0 | OC78: 0 | OD78: 0 | OE78: 0
A80: EBITDA
B81: Revenues
C82: Base Merchant Price | E82: USD/MWH | F82: Base Price | G82: =F39 -> 56.63 | K82: =$G$82 -> 56.63 | L82: =$G$82 -> 56.63 | M82: 56.63 | N82: 56.63 | O82: 56.63 | P82: 56.63 | Q82: 56.63 | R82: 56.63 | S82: 56.63 | T82: 56.63 | U82: 56.63 | V82: 56.63 | W82: 56.63 | X82: 56.63 | Y82: 56.63 | Z82: 56.63 | AA82: 56.63 | AB82: 56.63 | AC82: 56.63 | AD82: 56.63 | AE82: 56.63 | AF82: 56.63 | AG82: 56.63 | AH82: 56.63 | AI82: 56.63 | AJ82: 56.63 | AK82: 56.63 | AL82: 56.63 | AM82: 56.63 | AN82: 56.63 | AO82: 56.63 | AP82: 56.63 | AQ82: 56.63 | AR82: 56.63 | AS82: 56.63 | AT82: 56.63 | AU82: 56.63 | AV82: 56.63 | AW82: 56.63 | AX82: 56.63 | AY82: 56.63 | AZ82: 56.63 | BA82: 56.63 | BB82: 56.63 | BC82: 56.63 | BD82: 56.63 | BE82: 56.63 | BF82: 56.63 | BG82: 56.63 | BH82: 56.63 | BI82: 56.63 | BJ82: 56.63 | BK82: 56.63 | BL82: 56.63 | BM82: 56.63 | BN82: 56.63 | BO82: 56.63 | BP82: 56.63 | BQ82: 56.63 | BR82: 56.63 | BS82: 56.63 | BT82: 56.63 | BU82: 56.63 | BV82: 56.63 | BW82: 56.63 | BX82: =$G$82 -> 56.63 | BY82: 56.63 | BZ82: 56.63 | CA82: 56.63 | CB82: 56.63 | CC82: 56.63 | CD82: 56.63 | CE82: 56.63 | CF82: 56.63 | CG82: 56.63 | CH82: 56.63 | CI82: 56.63 | CJ82: 56.63 | CK82: 56.63 | CL82: 56.63 | CM82: 56.63 | CN82: 56.63 | CO82: 56.63 | CP82: 56.63 | CQ82: 56.63 | CR82: 56.63 | CS82: 56.63 | CT82: 56.63 | CU82: 56.63 | CV82: 56.63 | CW82: 56.63 | CX82: 56.63 | CY82: 56.63 | CZ82: 56.63 | DA82: 56.63 | DB82: 56.63 | DC82: 56.63 | DD82: 56.63 | DE82: 56.63 | DF82: 56.63 | DG82: 56.63 | DH82: 56.63 | DI82: 56.63 | DJ82: 56.63 | DK82: 56.63 | DL82: 56.63 | DM82: 56.63 | DN82: 56.63 | DO82: 56.63 | DP82: 56.63 | DQ82: 56.63 | DR82: 56.63 | DS82: 56.63 | DT82: 56.63 | DU82: 56.63 | DV82: 56.63 | DW82: 56.63 | DX82: 56.63 | DY82: 56.63 | DZ82: 56.63 | EA82: 56.63 | EB82: 56.63 | EC82: 56.63 | ED82: 56.63 | EE82: 56.63 | EF82: 56.63 | EG82: 56.63 | EH82: 56.63 | EI82: 56.63 | EJ82: =$G$82 -> 56.63 | EK82: 56.63 | EL82: 56.63 | EM82: 56.63 | EN82: 56.63 | EO82: 56.63 | EP82: 56.63 | EQ82: 56.63 | ER82: 56.63 | ES82: 56.63 | ET82: 56.63 | EU82: 56.63 | EV82: 56.63 | EW82: 56.63 | EX82: 56.63 | EY82: 56.63 | EZ82: 56.63 | FA82: 56.63 | FB82: 56.63 | FC82: 56.63 | FD82: 56.63 | FE82: 56.63 | FF82: 56.63 | FG82: 56.63 | FH82: 56.63 | FI82: 56.63 | FJ82: 56.63 | FK82: 56.63 | FL82: 56.63 | FM82: 56.63 | FN82: 56.63 | FO82: 56.63 | FP82: 56.63 | FQ82: 56.63 | FR82: 56.63 | FS82: 56.63 | FT82: 56.63 | FU82: 56.63 | FV82: 56.63 | FW82: 56.63 | FX82: 56.63 | FY82: 56.63 | FZ82: 56.63 | GA82: 56.63 | GB82: 56.63 | GC82: 56.63 | GD82: 56.63 | GE82: 56.63 | GF82: 56.63 | GG82: 56.63 | GH82: 56.63 | GI82: 56.63 | GJ82: 56.63 | GK82: 56.63 | GL82: 56.63 | GM82: 56.63 | GN82: 56.63 | GO82: 56.63 | GP82: 56.63 | GQ82: 56.63 | GR82: 56.63 | GS82: 56.63 | GT82: 56.63 | GU82: 56.63 | GV82: =$G$82 -> 56.63 | GW82: 56.63 | GX82: 56.63 | GY82: 56.63 | GZ82: 56.63 | HA82: 56.63 | HB82: 56.63 | HC82: 56.63 | HD82: 56.63 | HE82: 56.63 | HF82: 56.63 | HG82: 56.63 | HH82: 56.63 | HI82: 56.63 | HJ82: 56.63 | HK82: 56.63 | HL82: 56.63 | HM82: 56.63 | HN82: 56.63 | HO82: 56.63 | HP82: 56.63 | HQ82: 56.63 | HR82: 56.63 | HS82: 56.63 | HT82: 56.63 | HU82: 56.63 | HV82: 56.63 | HW82: 56.63 | HX82: 56.63 | HY82: 56.63 | HZ82: 56.63 | IA82: 56.63 | IB82: 56.63 | IC82: 56.63 | ID82: 56.63 | IE82: 56.63 | IF82: 56.63 | IG82: 56.63 | IH82: 56.63 | II82: 56.63 | IJ82: 56.63 | IK82: 56.63 | IL82: 56.63 | IM82: 56.63 | IN82: 56.63 | IO82: 56.63 | IP82: 56.63 | IQ82: 56.63 | IR82: 56.63 | IS82: 56.63 | IT82: 56.63 | IU82: 56.63 | IV82: 56.63 | IW82: 56.63 | IX82: 56.63 | IY82: 56.63 | IZ82: 56.63 | JA82: 56.63 | JB82: 56.63 | JC82: 56.63 | JD82: 56.63 | JE82: 56.63 | JF82: 56.63 | JG82: 56.63 | JH82: =$G$82 -> 56.63 | JI82: 56.63 | JJ82: 56.63 | JK82: 56.63 | JL82: 56.63 | JM82: 56.63 | JN82: 56.63 | JO82: 56.63 | JP82: 56.63 | JQ82: 56.63 | JR82: 56.63 | JS82: 56.63 | JT82: 56.63 | JU82: 56.63 | JV82: 56.63 | JW82: 56.63 | JX82: 56.63 | JY82: 56.63 | JZ82: 56.63 | KA82: 56.63 | KB82: 56.63 | KC82: 56.63 | KD82: 56.63 | KE82: 56.63 | KF82: 56.63 | KG82: 56.63 | KH82: 56.63 | KI82: 56.63 | KJ82: 56.63 | KK82: 56.63 | KL82: 56.63 | KM82: 56.63 | KN82: 56.63 | KO82: 56.63 | KP82: 56.63 | KQ82: 56.63 | KR82: 56.63 | KS82: 56.63 | KT82: 56.63 | KU82: 56.63 | KV82: 56.63 | KW82: 56.63 | KX82: 56.63 | KY82: 56.63 | KZ82: 56.63 | LA82: 56.63 | LB82: 56.63 | LC82: 56.63 | LD82: 56.63 | LE82: 56.63 | LF82: 56.63 | LG82: 56.63 | LH82: 56.63 | LI82: 56.63 | LJ82: 56.63 | LK82: 56.63 | LL82: 56.63 | LM82: 56.63 | LN82: 56.63 | LO82: 56.63 | LP82: 56.63 | LQ82: 56.63 | LR82: 56.63 | LS82: 56.63 | LT82: =$G$82 -> 56.63 | LU82: 56.63 | LV82: 56.63 | LW82: 56.63 | LX82: 56.63 | LY82: 56.63 | LZ82: 56.63 | MA82: 56.63 | MB82: 56.63 | MC82: 56.63 | MD82: 56.63 | ME82: 56.63 | MF82: 56.63 | MG82: 56.63 | MH82: 56.63 | MI82: 56.63 | MJ82: 56.63 | MK82: 56.63 | ML82: 56.63 | MM82: 56.63 | MN82: 56.63 | MO82: 56.63 | MP82: 56.63 | MQ82: 56.63 | MR82: 56.63 | MS82: 56.63 | MT82: 56.63 | MU82: 56.63 | MV82: 56.63 | MW82: 56.63 | MX82: 56.63 | MY82: 56.63 | MZ82: 56.63 | NA82: 56.63 | NB82: 56.63 | NC82: 56.63 | ND82: 56.63 | NE82: 56.63 | NF82: 56.63 | NG82: 56.63 | NH82: 56.63 | NI82: 56.63 | NJ82: 56.63 | NK82: 56.63 | NL82: 56.63 | NM82: 56.63 | NN82: 56.63 | NO82: 56.63 | NP82: 56.63 | NQ82: 56.63 | NR82: 56.63 | NS82: 56.63 | NT82: 56.63 | NU82: 56.63 | NV82: 56.63 | NW82: 56.63 | NX82: 56.63 | NY82: 56.63 | NZ82: 56.63 | OA82: 56.63 | OB82: 56.63 | OC82: 56.63 | OD82: 56.63 | OE82: 56.63
C83: Annual Growth | K83: =LOOKUP(K11,41:41,47:47) -> -0.03 | L83: -0.03 | M83: -0.03 | N83: -0.03 | O83: -0.03 | P83: -0.03 | Q83: -0.03 | R83: -0.03 | S83: -0.03 | T83: -0.03 | U83: 0 | V83: 0 | W83: 0 | X83: 0 | Y83: 0 | Z83: 0 | AA83: 0 | AB83: 0 | AC83: 0 | AD83: 0 | AE83: 0 | AF83: 0 | AG83: 0.01 | AH83: 0.01 | AI83: 0.01 | AJ83: 0.01 | AK83: 0.01 | AL83: 0.01 | AM83: 0.01 | AN83: 0.01 | AO83: 0.01 | AP83: 0.01 | AQ83: 0.01 | AR83: 0.01 | AS83: 0.025 | AT83: 0.025 | AU83: 0.025 | AV83: 0.025 | AW83: 0.025 | AX83: 0.025 | AY83: 0.025 | AZ83: 0.025 | BA83: 0.025 | BB83: 0.025 | BC83: 0.025 | BD83: 0.025 | BE83: 0.02 | BF83: 0.02 | BG83: 0.02 | BH83: 0.02 | BI83: 0.02 | BJ83: 0.02 | BK83: 0.02 | BL83: 0.02 | BM83: 0.02 | BN83: 0.02 | BO83: 0.02 | BP83: 0.02 | BQ83: 0.015 | BR83: 0.015 | BS83: 0.015 | BT83: 0.015 | BU83: 0.015 | BV83: 0.015 | BW83: =LOOKUP(BW11,41:41,47:47) -> 0.015 | BX83: 0.015 | BY83: 0.015 | BZ83: 0.015 | CA83: 0.015 | CB83: 0.015 | CC83: 0.015 | CD83: 0.015 | CE83: 0.015 | CF83: 0.015 | CG83: 0.015 | CH83: 0.015 | CI83: 0.015 | CJ83: 0.015 | CK83: 0.015 | CL83: 0.015 | CM83: 0.015 | CN83: 0.015 | CO83: 0.015 | CP83: 0.015 | CQ83: 0.015 | CR83: 0.015 | CS83: 0.015 | CT83: 0.015 | CU83: 0.015 | CV83: 0.015 | CW83: 0.015 | CX83: 0.015 | CY83: 0.015 | CZ83: 0.015 | DA83: 0.015 | DB83: 0.015 | DC83: 0.015 | DD83: 0.015 | DE83: 0.015 | DF83: 0.015 | DG83: 0.015 | DH83: 0.015 | DI83: 0.015 | DJ83: 0.015 | DK83: 0.015 | DL83: 0.015 | DM83: 0.015 | DN83: 0.015 | DO83: 0.015 | DP83: 0.015 | DQ83: 0.015 | DR83: 0.015 | DS83: 0.015 | DT83: 0.015 | DU83: 0.015 | DV83: 0.015 | DW83: 0.015 | DX83: 0.015 | DY83: 0.015 | DZ83: 0.015 | EA83: 0.015 | EB83: 0.015 | EC83: 0.015 | ED83: 0.015 | EE83: 0.015 | EF83: 0.015 | EG83: 0.015 | EH83: 0.015 | EI83: =LOOKUP(EI11,41:41,47:47) -> 0.015 | EJ83: 0.015 | EK83: 0.015 | EL83: 0.015 | EM83: 0.015 | EN83: 0.015 | EO83: 0.015 | EP83: 0.015 | EQ83: 0.015 | ER83: 0.015 | ES83: 0.015 | ET83: 0.015 | EU83: 0.015 | EV83: 0.015 | EW83: 0.015 | EX83: 0.015 | EY83: 0.015 | EZ83: 0.015 | FA83: 0.015 | FB83: 0.015 | FC83: 0.015 | FD83: 0.015 | FE83: 0.015 | FF83: 0.015 | FG83: 0.015 | FH83: 0.015 | FI83: 0.015 | FJ83: 0.015 | FK83: 0.015 | FL83: 0.015 | FM83: 0.015 | FN83: 0.015 | FO83: 0.015 | FP83: 0.015 | FQ83: 0.015 | FR83: 0.015 | FS83: 0.015 | FT83: 0.015 | FU83: 0.015 | FV83: 0.015 | FW83: 0.015 | FX83: 0.015 | FY83: 0.015 | FZ83: 0.015 | GA83: 0.015 | GB83: 0.015 | GC83: 0.015 | GD83: 0.015 | GE83: 0.015 | GF83: 0.015 | GG83: 0.015 | GH83: 0.015 | GI83: 0.015 | GJ83: 0.015 | GK83: 0.015 | GL83: 0.015 | GM83: 0.015 | GN83: 0.015 | GO83: 0.015 | GP83: 0.015 | GQ83: 0.015 | GR83: 0.015 | GS83: 0.015 | GT83: 0.015 | GU83: =LOOKUP(GU11,41:41,47:47) -> 0.015 | GV83: 0.015 | GW83: 0.015 | GX83: 0.015 | GY83: 0.015 | GZ83: 0.015 | HA83: 0.015 | HB83: 0.015 | HC83: 0.015 | HD83: 0.015 | HE83: 0.015 | HF83: 0.015 | HG83: 0.015 | HH83: 0.015 | HI83: 0.015 | HJ83: 0.015 | HK83: 0.015 | HL83: 0.015 | HM83: 0.015 | HN83: 0.015 | HO83: 0.015 | HP83: 0.015 | HQ83: 0.015 | HR83: 0.015 | HS83: 0.015 | HT83: 0.015 | HU83: 0.015 | HV83: 0.015 | HW83: 0.015 | HX83: 0.015 | HY83: 0.015 | HZ83: 0.015 | IA83: 0.015 | IB83: 0.015 | IC83: 0.015 | ID83: 0.015 | IE83: 0.015 | IF83: 0.015 | IG83: 0.015 | IH83: 0.015 | II83: 0.015 | IJ83: 0.015 | IK83: 0.015 | IL83: 0.015 | IM83: 0.015 | IN83: 0.015 | IO83: 0.015 | IP83: 0.015 | IQ83: 0.015 | IR83: 0.015 | IS83: 0.015 | IT83: 0.015 | IU83: 0.015 | IV83: 0.015 | IW83: 0.015 | IX83: 0.015 | IY83: 0.015 | IZ83: 0.015 | JA83: 0.015 | JB83: 0.015 | JC83: 0.015 | JD83: 0.015 | JE83: 0.015 | JF83: 0.015 | JG83: =LOOKUP(JG11,41:41,47:47) -> 0.015 | JH83: 0.015 | JI83: 0.015 | JJ83: 0.015 | JK83: 0.015 | JL83: 0.015 | JM83: 0.015 | JN83: 0.015 | JO83: 0.015 | JP83: 0.015 | JQ83: 0.015 | JR83: 0.015 | JS83: 0.015 | JT83: 0.015 | JU83: 0.015 | JV83: 0.015 | JW83: 0.015 | JX83: 0.015 | JY83: 0.015 | JZ83: 0.015 | KA83: 0.015 | KB83: 0.015 | KC83: 0.015 | KD83: 0.015 | KE83: 0.015 | KF83: 0.015 | KG83: 0.015 | KH83: 0.015 | KI83: 0.015 | KJ83: 0.015 | KK83: 0.015 | KL83: 0.015 | KM83: 0.015 | KN83: 0.015 | KO83: 0.015 | KP83: 0.015 | KQ83: 0.015 | KR83: 0.015 | KS83: 0.015 | KT83: 0.015 | KU83: 0.015 | KV83: 0.015 | KW83: 0.015 | KX83: 0.015 | KY83: 0.015 | KZ83: 0.015 | LA83: 0.015 | LB83: 0.015 | LC83: 0.015 | LD83: 0.015 | LE83: 0.015 | LF83: 0.015 | LG83: 0.015 | LH83: 0.015 | LI83: 0.015 | LJ83: 0.015 | LK83: 0.015 | LL83: 0.015 | LM83: 0.015 | LN83: 0.015 | LO83: 0.015 | LP83: 0.015 | LQ83: 0.015 | LR83: 0.015 | LS83: =LOOKUP(LS11,41:41,47:47) -> 0.015 | LT83: 0.015 | LU83: 0.015 | LV83: 0.015 | LW83: 0.015 | LX83: 0.015 | LY83: 0.015 | LZ83: 0.015 | MA83: 0.015 | MB83: 0.015 | MC83: 0.015 | MD83: 0.015 | ME83: 0.015 | MF83: 0.015 | MG83: 0.015 | MH83: 0.015 | MI83: 0.015 | MJ83: 0.015 | MK83: 0.015 | ML83: 0.015 | MM83: 0.015 | MN83: 0.015 | MO83: 0.015 | MP83: 0.015 | MQ83: 0.015 | MR83: 0.015 | MS83: 0.015 | MT83: 0.015 | MU83: 0.015 | MV83: 0.015 | MW83: 0.015 | MX83: 0.015 | MY83: 0.015 | MZ83: 0.015 | NA83: 0.015 | NB83: 0.015 | NC83: 0.015 | ND83: 0.015 | NE83: 0.015 | NF83: 0.015 | NG83: 0.015 | NH83: 0.015 | NI83: 0.015 | NJ83: 0.015 | NK83: 0.015 | NL83: 0.015 | NM83: 0.015 | NN83: 0.015 | NO83: 0.015 | NP83: 0.015 | NQ83: 0.015 | NR83: 0.015 | NS83: 0.015 | NT83: 0.015 | NU83: 0.015 | NV83: 0.015 | NW83: 0.015 | NX83: 0.015 | NY83: 0.015 | NZ83: 0.015 | OA83: 0.015 | OB83: 0.015 | OC83: 0.015 | OD83: 0.015 | OE83: 0.015
C84: Periodic/Monthly Growth | K84: =(1+K83)^(1/12)-1 -> -0.002535048614 | L84: =(1+L83)^(1/12)-1 -> -0.002535048614 | M84: -0.002535048614 | N84: -0.002535048614 | O84: -0.002535048614 | P84: -0.002535048614 | Q84: -0.002535048614 | R84: -0.002535048614 | S84: -0.002535048614 | T84: -0.002535048614 | U84: 0 | V84: 0 | W84: 0 | X84: 0 | Y84: 0 | Z84: 0 | AA84: 0 | AB84: 0 | AC84: 0 | AD84: 0 | AE84: 0 | AF84: 0 | AG84: 0.0008295381143 | AH84: 0.0008295381143 | AI84: 0.0008295381143 | AJ84: 0.0008295381143 | AK84: 0.0008295381143 | AL84: 0.0008295381143 | AM84: 0.0008295381143 | AN84: 0.0008295381143 | AO84: 0.0008295381143 | AP84: 0.0008295381143 | AQ84: 0.0008295381143 | AR84: 0.0008295381143 | AS84: 0.00205983627 | AT84: 0.00205983627 | AU84: 0.00205983627 | AV84: 0.00205983627 | AW84: 0.00205983627 | AX84: 0.00205983627 | AY84: 0.00205983627 | AZ84: 0.00205983627 | BA84: 0.00205983627 | BB84: 0.00205983627 | BC84: 0.00205983627 | BD84: 0.00205983627 | BE84: 0.001651581302 | BF84: 0.001651581302 | BG84: 0.001651581302 | BH84: 0.001651581302 | BI84: 0.001651581302 | BJ84: 0.001651581302 | BK84: 0.001651581302 | BL84: 0.001651581302 | BM84: 0.001651581302 | BN84: 0.001651581302 | BO84: 0.001651581302 | BP84: 0.001651581302 | BQ84: 0.001241487716 | BR84: 0.001241487716 | BS84: 0.001241487716 | BT84: 0.001241487716 | BU84: 0.001241487716 | BV84: 0.001241487716 | BW84: 0.001241487716 | BX84: =(1+BX83)^(1/12)-1 -> 0.001241487716 | BY84: 0.001241487716 | BZ84: 0.001241487716 | CA84: 0.001241487716 | CB84: 0.001241487716 | CC84: 0.001241487716 | CD84: 0.001241487716 | CE84: 0.001241487716 | CF84: 0.001241487716 | CG84: 0.001241487716 | CH84: 0.001241487716 | CI84: 0.001241487716 | CJ84: 0.001241487716 | CK84: 0.001241487716 | CL84: 0.001241487716 | CM84: 0.001241487716 | CN84: 0.001241487716 | CO84: 0.001241487716 | CP84: 0.001241487716 | CQ84: 0.001241487716 | CR84: 0.001241487716 | CS84: 0.001241487716 | CT84: 0.001241487716 | CU84: 0.001241487716 | CV84: 0.001241487716 | CW84: 0.001241487716 | CX84: 0.001241487716 | CY84: 0.001241487716 | CZ84: 0.001241487716 | DA84: 0.001241487716 | DB84: 0.001241487716 | DC84: 0.001241487716 | DD84: 0.001241487716 | DE84: 0.001241487716 | DF84: 0.001241487716 | DG84: 0.001241487716 | DH84: 0.001241487716 | DI84: 0.001241487716 | DJ84: 0.001241487716 | DK84: 0.001241487716 | DL84: 0.001241487716 | DM84: 0.001241487716 | DN84: 0.001241487716 | DO84: 0.001241487716 | DP84: 0.001241487716 | DQ84: 0.001241487716 | DR84: 0.001241487716 | DS84: 0.001241487716 | DT84: 0.001241487716 | DU84: 0.001241487716 | DV84: 0.001241487716 | DW84: 0.001241487716 | DX84: 0.001241487716 | DY84: 0.001241487716 | DZ84: 0.001241487716 | EA84: 0.001241487716 | EB84: 0.001241487716 | EC84: 0.001241487716 | ED84: 0.001241487716 | EE84: 0.001241487716 | EF84: 0.001241487716 | EG84: 0.001241487716 | EH84: 0.001241487716 | EI84: 0.001241487716 | EJ84: =(1+EJ83)^(1/12)-1 -> 0.001241487716 | EK84: 0.001241487716 | EL84: 0.001241487716 | EM84: 0.001241487716 | EN84: 0.001241487716 | EO84: 0.001241487716 | EP84: 0.001241487716 | EQ84: 0.001241487716 | ER84: 0.001241487716 | ES84: 0.001241487716 | ET84: 0.001241487716 | EU84: 0.001241487716 | EV84: 0.001241487716 | EW84: 0.001241487716 | EX84: 0.001241487716 | EY84: 0.001241487716 | EZ84: 0.001241487716 | FA84: 0.001241487716 | FB84: 0.001241487716 | FC84: 0.001241487716 | FD84: 0.001241487716 | FE84: 0.001241487716 | FF84: 0.001241487716 | FG84: 0.001241487716 | FH84: 0.001241487716 | FI84: 0.001241487716 | FJ84: 0.001241487716 | FK84: 0.001241487716 | FL84: 0.001241487716 | FM84: 0.001241487716 | FN84: 0.001241487716 | FO84: 0.001241487716 | FP84: 0.001241487716 | FQ84: 0.001241487716 | FR84: 0.001241487716 | FS84: 0.001241487716 | FT84: 0.001241487716 | FU84: 0.001241487716 | FV84: 0.001241487716 | FW84: 0.001241487716 | FX84: 0.001241487716 | FY84: 0.001241487716 | FZ84: 0.001241487716 | GA84: 0.001241487716 | GB84: 0.001241487716 | GC84: 0.001241487716 | GD84: 0.001241487716 | GE84: 0.001241487716 | GF84: 0.001241487716 | GG84: 0.001241487716 | GH84: 0.001241487716 | GI84: 0.001241487716 | GJ84: 0.001241487716 | GK84: 0.001241487716 | GL84: 0.001241487716 | GM84: 0.001241487716 | GN84: 0.001241487716 | GO84: 0.001241487716 | GP84: 0.001241487716 | GQ84: 0.001241487716 | GR84: 0.001241487716 | GS84: 0.001241487716 | GT84: 0.001241487716 | GU84: 0.001241487716 | GV84: =(1+GV83)^(1/12)-1 -> 0.001241487716 | GW84: 0.001241487716 | GX84: 0.001241487716 | GY84: 0.001241487716 | GZ84: 0.001241487716 | HA84: 0.001241487716 | HB84: 0.001241487716 | HC84: 0.001241487716 | HD84: 0.001241487716 | HE84: 0.001241487716 | HF84: 0.001241487716 | HG84: 0.001241487716 | HH84: 0.001241487716 | HI84: 0.001241487716 | HJ84: 0.001241487716 | HK84: 0.001241487716 | HL84: 0.001241487716 | HM84: 0.001241487716 | HN84: 0.001241487716 | HO84: 0.001241487716 | HP84: 0.001241487716 | HQ84: 0.001241487716 | HR84: 0.001241487716 | HS84: 0.001241487716 | HT84: 0.001241487716 | HU84: 0.001241487716 | HV84: 0.001241487716 | HW84: 0.001241487716 | HX84: 0.001241487716 | HY84: 0.001241487716 | HZ84: 0.001241487716 | IA84: 0.001241487716 | IB84: 0.001241487716 | IC84: 0.001241487716 | ID84: 0.001241487716 | IE84: 0.001241487716 | IF84: 0.001241487716 | IG84: 0.001241487716 | IH84: 0.001241487716 | II84: 0.001241487716 | IJ84: 0.001241487716 | IK84: 0.001241487716 | IL84: 0.001241487716 | IM84: 0.001241487716 | IN84: 0.001241487716 | IO84: 0.001241487716 | IP84: 0.001241487716 | IQ84: 0.001241487716 | IR84: 0.001241487716 | IS84: 0.001241487716 | IT84: 0.001241487716 | IU84: 0.001241487716 | IV84: 0.001241487716 | IW84: 0.001241487716 | IX84: 0.001241487716 | IY84: 0.001241487716 | IZ84: 0.001241487716 | JA84: 0.001241487716 | JB84: 0.001241487716 | JC84: 0.001241487716 | JD84: 0.001241487716 | JE84: 0.001241487716 | JF84: 0.001241487716 | JG84: 0.001241487716 | JH84: =(1+JH83)^(1/12)-1 -> 0.001241487716 | JI84: 0.001241487716 | JJ84: 0.001241487716 | JK84: 0.001241487716 | JL84: 0.001241487716 | JM84: 0.001241487716 | JN84: 0.001241487716 | JO84: 0.001241487716 | JP84: 0.001241487716 | JQ84: 0.001241487716 | JR84: 0.001241487716 | JS84: 0.001241487716 | JT84: 0.001241487716 | JU84: 0.001241487716 | JV84: 0.001241487716 | JW84: 0.001241487716 | JX84: 0.001241487716 | JY84: 0.001241487716 | JZ84: 0.001241487716 | KA84: 0.001241487716 | KB84: 0.001241487716 | KC84: 0.001241487716 | KD84: 0.001241487716 | KE84: 0.001241487716 | KF84: 0.001241487716 | KG84: 0.001241487716 | KH84: 0.001241487716 | KI84: 0.001241487716 | KJ84: 0.001241487716 | KK84: 0.001241487716 | KL84: 0.001241487716 | KM84: 0.001241487716 | KN84: 0.001241487716 | KO84: 0.001241487716 | KP84: 0.001241487716 | KQ84: 0.001241487716 | KR84: 0.001241487716 | KS84: 0.001241487716 | KT84: 0.001241487716 | KU84: 0.001241487716 | KV84: 0.001241487716 | KW84: 0.001241487716 | KX84: 0.001241487716 | KY84: 0.001241487716 | KZ84: 0.001241487716 | LA84: 0.001241487716 | LB84: 0.001241487716 | LC84: 0.001241487716 | LD84: 0.001241487716 | LE84: 0.001241487716 | LF84: 0.001241487716 | LG84: 0.001241487716 | LH84: 0.001241487716 | LI84: 0.001241487716 | LJ84: 0.001241487716 | LK84: 0.001241487716 | LL84: 0.001241487716 | LM84: 0.001241487716 | LN84: 0.001241487716 | LO84: 0.001241487716 | LP84: 0.001241487716 | LQ84: 0.001241487716 | LR84: 0.001241487716 | LS84: 0.001241487716 | LT84: =(1+LT83)^(1/12)-1 -> 0.001241487716 | LU84: 0.001241487716 | LV84: 0.001241487716 | LW84: 0.001241487716 | LX84: 0.001241487716 | LY84: 0.001241487716 | LZ84: 0.001241487716 | MA84: 0.001241487716 | MB84: 0.001241487716 | MC84: 0.001241487716 | MD84: 0.001241487716 | ME84: 0.001241487716 | MF84: 0.001241487716 | MG84: 0.001241487716 | MH84: 0.001241487716 | MI84: 0.001241487716 | MJ84: 0.001241487716 | MK84: 0.001241487716 | ML84: 0.001241487716 | MM84: 0.001241487716 | MN84: 0.001241487716 | MO84: 0.001241487716 | MP84: 0.001241487716 | MQ84: 0.001241487716 | MR84: 0.001241487716 | MS84: 0.001241487716 | MT84: 0.001241487716 | MU84: 0.001241487716 | MV84: 0.001241487716 | MW84: 0.001241487716 | MX84: 0.001241487716 | MY84: 0.001241487716 | MZ84: 0.001241487716 | NA84: 0.001241487716 | NB84: 0.001241487716 | NC84: 0.001241487716 | ND84: 0.001241487716 | NE84: 0.001241487716 | NF84: 0.001241487716 | NG84: 0.001241487716 | NH84: 0.001241487716 | NI84: 0.001241487716 | NJ84: 0.001241487716 | NK84: 0.001241487716 | NL84: 0.001241487716 | NM84: 0.001241487716 | NN84: 0.001241487716 | NO84: 0.001241487716 | NP84: 0.001241487716 | NQ84: 0.001241487716 | NR84: 0.001241487716 | NS84: 0.001241487716 | NT84: 0.001241487716 | NU84: 0.001241487716 | NV84: 0.001241487716 | NW84: 0.001241487716 | NX84: 0.001241487716 | NY84: 0.001241487716 | NZ84: 0.001241487716 | OA84: 0.001241487716 | OB84: 0.001241487716 | OC84: 0.001241487716 | OD84: 0.001241487716 | OE84: 0.001241487716
C85: Price Index | J85: 1 | K85: =J85*(1+K84) -> 0.9974649514 | L85: =K85*(1+L84) -> 0.9949363292 | M85: 0.9924141173 | N85: 0.9898982992 | O85: 0.9873888589 | P85: 0.9848857802 | Q85: 0.9823890468 | R85: 0.9798986429 | S85: 0.9774145522 | T85: 0.9749367588 | U85: 0.9749367588 | V85: 0.9749367588 | W85: 0.9749367588 | X85: 0.9749367588 | Y85: 0.9749367588 | Z85: 0.9749367588 | AA85: 0.9749367588 | AB85: 0.9749367588 | AC85: 0.9749367588 | AD85: 0.9749367588 | AE85: 0.9749367588 | AF85: 0.9749367588 | AG85: 0.975745506 | AH85: 0.976554924 | AI85: 0.9773650136 | AJ85: 0.9781757751 | AK85: 0.9789872092 | AL85: 0.9797993164 | AM85: 0.9806120973 | AN85: 0.9814255524 | AO85: 0.9822396823 | AP85: 0.9830544875 | AQ85: 0.9838699687 | AR85: 0.9846861263 | AS85: 0.9867144185 | AT85: 0.9887468887 | AU85: 0.9907835454 | AV85: 0.9928243973 | AW85: 0.994869453 | AX85: 0.9969187212 | AY85: 0.9989722105 | AZ85: 1.00102993 | BA85: 1.003091887 | BB85: 1.005158092 | BC85: 1.007228554 | BD85: 1.00930328 | BE85: 1.010970226 | BF85: 1.012639925 | BG85: 1.014312383 | BH85: 1.015987602 | BI85: 1.017665588 | BJ85: 1.019346346 | BK85: 1.021029879 | BL85: 1.022716193 | BM85: 1.024405292 | BN85: 1.02609718 | BO85: 1.027791863 | BP85: 1.029489345 | BQ85: 1.030767443 | BR85: 1.032047129 | BS85: 1.033328402 | BT85: 1.034611267 | BU85: 1.035895724 | BV85: 1.037181776 | BW85: 1.038469424 | BX85: =BW85*(1+BX84) -> 1.039758671 | BY85: 1.041049519 | BZ85: 1.042341969 | CA85: 1.043636024 | CB85: 1.044931685 | CC85: 1.046228955 | CD85: 1.047527836 | CE85: 1.048828328 | CF85: 1.050130436 | CG85: 1.05143416 | CH85: 1.052739503 | CI85: 1.054046466 | CJ85: 1.055355051 | CK85: 1.056665262 | CL85: 1.057977099 | CM85: 1.059290564 | CN85: 1.060605661 | CO85: 1.061922389 | CP85: 1.063240753 | CQ85: 1.064560753 | CR85: 1.065882392 | CS85: 1.067205672 | CT85: 1.068530595 | CU85: 1.069857163 | CV85: 1.071185377 | CW85: 1.072515241 | CX85: 1.073846755 | CY85: 1.075179923 | CZ85: 1.076514745 | DA85: 1.077851225 | DB85: 1.079189364 | DC85: 1.080529165 | DD85: 1.081870628 | DE85: 1.083213757 | DF85: 1.084558554 | DG85: 1.08590502 | DH85: 1.087253158 | DI85: 1.088602969 | DJ85: 1.089954457 | DK85: 1.091307622 | DL85: 1.092662467 | DM85: 1.094018994 | DN85: 1.095377205 | DO85: 1.096737102 | DP85: 1.098098688 | DQ85: 1.099461964 | DR85: 1.100826932 | DS85: 1.102193595 | DT85: 1.103561955 | DU85: 1.104932014 | DV85: 1.106303773 | DW85: 1.107677236 | DX85: 1.109052404 | DY85: 1.110429279 | DZ85: 1.111807863 | EA85: 1.113188159 | EB85: 1.114570168 | EC85: 1.115953893 | ED85: 1.117339336 | EE85: 1.118726499 | EF85: 1.120115385 | EG85: 1.121505994 | EH85: 1.12289833 | EI85: 1.124292394 | EJ85: =EI85*(1+EJ84) -> 1.12568819 | EK85: 1.127085718 | EL85: 1.128484981 | EM85: 1.129885981 | EN85: 1.131288721 | EO85: 1.132693202 | EP85: 1.134099426 | EQ85: 1.135507397 | ER85: 1.136917115 | ES85: 1.138328584 | ET85: 1.139741805 | EU85: 1.14115678 | EV85: 1.142573513 | EW85: 1.143992004 | EX85: 1.145412256 | EY85: 1.146834271 | EZ85: 1.148258051 | FA85: 1.1496836 | FB85: 1.151110918 | FC85: 1.152540008 | FD85: 1.153970872 | FE85: 1.155403513 | FF85: 1.156837932 | FG85: 1.158274132 | FH85: 1.159712115 | FI85: 1.161151884 | FJ85: 1.162593439 | FK85: 1.164036785 | FL85: 1.165481922 | FM85: 1.166928854 | FN85: 1.168377582 | FO85: 1.169828108 | FP85: 1.171280435 | FQ85: 1.172734565 | FR85: 1.174190501 | FS85: 1.175648244 | FT85: 1.177107797 | FU85: 1.178569162 | FV85: 1.180032341 | FW85: 1.181497337 | FX85: 1.182964151 | FY85: 1.184432787 | FZ85: 1.185903245 | GA85: 1.18737553 | GB85: 1.188849642 | GC85: 1.190325584 | GD85: 1.191803359 | GE85: 1.193282968 | GF85: 1.194764414 | GG85: 1.196247699 | GH85: 1.197732826 | GI85: 1.199219797 | GJ85: 1.200708613 | GK85: 1.202199278 | GL85: 1.203691794 | GM85: 1.205186163 | GN85: 1.206682386 | GO85: 1.208180468 | GP85: 1.209680409 | GQ85: 1.211182212 | GR85: 1.21268588 | GS85: 1.214191415 | GT85: 1.215698818 | GU85: 1.217208094 | GV85: =GU85*(1+GV84) -> 1.218719243 | GW85: 1.220232267 | GX85: 1.221747171 | GY85: 1.223263955 | GZ85: 1.224782622 | HA85: 1.226303175 | HB85: 1.227825615 | HC85: 1.229349945 | HD85: 1.230876168 | HE85: 1.232404286 | HF85: 1.233934301 | HG85: 1.235466215 | HH85: 1.237000031 | HI85: 1.238535751 | HJ85: 1.240073378 | HK85: 1.241612914 | HL85: 1.243154361 | HM85: 1.244697722 | HN85: 1.246242999 | HO85: 1.247790195 | HP85: 1.249339311 | HQ85: 1.25089035 | HR85: 1.252443315 | HS85: 1.253998208 | HT85: 1.255555032 | HU85: 1.257113788 | HV85: 1.258674479 | HW85: 1.260237108 | HX85: 1.261801677 | HY85: 1.263368188 | HZ85: 1.264936644 | IA85: 1.266507048 | IB85: 1.268079401 | IC85: 1.269653706 | ID85: 1.271229965 | IE85: 1.272808181 | IF85: 1.274388357 | IG85: 1.275970495 | IH85: 1.277554596 | II85: 1.279140665 | IJ85: 1.280728702 | IK85: 1.282318711 | IL85: 1.283910694 | IM85: 1.285504653 | IN85: 1.287100592 | IO85: 1.288698511 | IP85: 1.290298414 | IQ85: 1.291900304 | IR85: 1.293504182 | IS85: 1.295110052 | IT85: 1.296717915 | IU85: 1.298327775 | IV85: 1.299939633 | IW85: 1.301553492 | IX85: 1.303169354 | IY85: 1.304787223 | IZ85: 1.3064071 | JA85: 1.308028989 | JB85: 1.309652891 | JC85: 1.311278809 | JD85: 1.312906745 | JE85: 1.314536703 | JF85: 1.316168684 | JG85: 1.317802691 | JH85: =JG85*(1+JH84) -> 1.319438727 | JI85: 1.321076794 | JJ85: 1.322716895 | JK85: 1.324359031 | JL85: 1.326003207 | JM85: 1.327649424 | JN85: 1.329297684 | JO85: 1.330947991 | JP85: 1.332600346 | JQ85: 1.334254753 | JR85: 1.335911214 | JS85: 1.337569732 | JT85: 1.339230308 | JU85: 1.340892946 | JV85: 1.342557648 | JW85: 1.344224417 | JX85: 1.345893255 | JY85: 1.347564165 | JZ85: 1.349237149 | KA85: 1.350912211 | KB85: 1.352589352 | KC85: 1.354268575 | KD85: 1.355949882 | KE85: 1.357633278 | KF85: 1.359318763 | KG85: 1.36100634 | KH85: 1.362696013 | KI85: 1.364387783 | KJ85: 1.366081654 | KK85: 1.367777627 | KL85: 1.369475707 | KM85: 1.371175894 | KN85: 1.372878192 | KO85: 1.374582603 | KP85: 1.376289131 | KQ85: 1.377997777 | KR85: 1.379708544 | KS85: 1.381421435 | KT85: 1.383136453 | KU85: 1.3848536 | KV85: 1.386572879 | KW85: 1.388294292 | KX85: 1.390017842 | KY85: 1.391743532 | KZ85: 1.393471365 | LA85: 1.395201342 | LB85: 1.396933468 | LC85: 1.398667743 | LD85: 1.400404172 | LE85: 1.402142757 | LF85: 1.4038835 | LG85: 1.405626404 | LH85: 1.407371472 | LI85: 1.409118706 | LJ85: 1.41086811 | LK85: 1.412619685 | LL85: 1.414373435 | LM85: 1.416129362 | LN85: 1.41788747 | LO85: 1.41964776 | LP85: 1.421410235 | LQ85: 1.423174898 | LR85: 1.424941752 | LS85: 1.4267108 | LT85: =LS85*(1+LT84) -> 1.428482044 | LU85: 1.430255487 | LV85: 1.432031131 | LW85: 1.43380898 | LX85: 1.435589037 | LY85: 1.437371303 | LZ85: 1.439155782 | MA85: 1.440942476 | MB85: 1.442731388 | MC85: 1.444522522 | MD85: 1.446315879 | ME85: 1.448111462 | MF85: 1.449909275 | MG85: 1.451709319 | MH85: 1.453511598 | MI85: 1.455316115 | MJ85: 1.457122872 | MK85: 1.458931872 | ML85: 1.460743118 | MM85: 1.462556613 | MN85: 1.464372359 | MO85: 1.466190359 | MP85: 1.468010617 | MQ85: 1.469833134 | MR85: 1.471657914 | MS85: 1.473484959 | MT85: 1.475314272 | MU85: 1.477145857 | MV85: 1.478979715 | MW85: 1.48081585 | MX85: 1.482654265 | MY85: 1.484494962 | MZ85: 1.486337944 | NA85: 1.488183215 | NB85: 1.490030776 | NC85: 1.491880631 | ND85: 1.493732782 | NE85: 1.495587233 | NF85: 1.497443986 | NG85: 1.499303045 | NH85: 1.501164411 | NI85: 1.503028088 | NJ85: 1.504894079 | NK85: 1.506762387 | NL85: 1.508633014 | NM85: 1.510505963 | NN85: 1.512381238 | NO85: 1.51425884 | NP85: 1.516138774 | NQ85: 1.518021042 | NR85: 1.519905646 | NS85: 1.52179259 | NT85: 1.523681877 | NU85: 1.52557351 | NV85: 1.52746749 | NW85: 1.529363822 | NX85: 1.531262509 | NY85: 1.533163552 | NZ85: 1.535066956 | OA85: 1.536972723 | OB85: 1.538880856 | OC85: 1.540791357 | OD85: 1.542704231 | OE85: 1.544619479
C86: Nominal Price | K86: =K85*K82 -> 56.4864402 | L86: =L85*L82 -> 56.34324433 | M86: 56.20041146 | N86: 56.05794069 | O86: 55.91583108 | P86: 55.77408173 | Q86: 55.63269172 | R86: 55.49166014 | S86: 55.35098609 | T86: 55.21066865 | U86: 55.21066865 | V86: 55.21066865 | W86: 55.21066865 | X86: 55.21066865 | Y86: 55.21066865 | Z86: 55.21066865 | AA86: 55.21066865 | AB86: 55.21066865 | AC86: 55.21066865 | AD86: 55.21066865 | AE86: 55.21066865 | AF86: 55.21066865 | AG86: 55.256468 | AH86: 55.30230535 | AI86: 55.34818072 | AJ86: 55.39409414 | AK86: 55.44004566 | AL86: 55.48603529 | AM86: 55.53206307 | AN86: 55.57812903 | AO86: 55.62423321 | AP86: 55.67037563 | AQ86: 55.71655633 | AR86: 55.76277533 | AS86: 55.87763752 | AT86: 55.99273631 | AU86: 56.10807218 | AV86: 56.22364562 | AW86: 56.33945712 | AX86: 56.45550718 | AY86: 56.57179628 | AZ86: 56.68832492 | BA86: 56.80509359 | BB86: 56.92210278 | BC86: 57.03935299 | BD86: 57.15684472 | BE86: 57.25124389 | BF86: 57.34579898 | BG86: 57.44051023 | BH86: 57.5353779 | BI86: 57.63040225 | BJ86: 57.72558355 | BK86: 57.82092204 | BL86: 57.916418 | BM86: 58.01207167 | BN86: 58.10788332 | BO86: 58.20385322 | BP86: 58.29998161 | BQ86: 58.37236032 | BR86: 58.44482889 | BS86: 58.51738743 | BT86: 58.59003605 | BU86: 58.66277486 | BV86: 58.73560397 | BW86: 58.8085235 | BX86: =BX85*BX82 -> 58.88153356 | BY86: 58.95463426 | BZ86: 59.02782572 | CA86: 59.10110804 | CB86: 59.17448134 | CC86: 59.24794573 | CD86: 59.32150133 | CE86: 59.39514824 | CF86: 59.46888659 | CG86: 59.54271648 | CH86: 59.61663803 | CI86: 59.69065135 | CJ86: 59.76475656 | CK86: 59.83895378 | CL86: 59.9132431 | CM86: 59.98762466 | CN86: 60.06209856 | CO86: 60.13666491 | CP86: 60.21132385 | CQ86: 60.28607546 | CR86: 60.36091989 | CS86: 60.43585723 | CT86: 60.5108876 | CU86: 60.58601112 | CV86: 60.66122791 | CW86: 60.73653808 | CX86: 60.81194175 | CY86: 60.88743903 | CZ86: 60.96303004 | DA86: 61.03871489 | DB86: 61.1144937 | DC86: 61.1903666 | DD86: 61.26633368 | DE86: 61.34239509 | DF86: 61.41855092 | DG86: 61.49480129 | DH86: 61.57114633 | DI86: 61.64758615 | DJ86: 61.72412087 | DK86: 61.80075061 | DL86: 61.87747549 | DM86: 61.95429561 | DN86: 62.03121111 | DO86: 62.10822209 | DP86: 62.18532869 | DQ86: 62.26253101 | DR86: 62.33982918 | DS86: 62.41722331 | DT86: 62.49471353 | DU86: 62.57229995 | DV86: 62.64998269 | DW86: 62.72776187 | DX86: 62.80563762 | DY86: 62.88361005 | DZ86: 62.96167927 | EA86: 63.03984543 | EB86: 63.11810862 | EC86: 63.19646898 | ED86: 63.27492662 | EE86: 63.35348166 | EF86: 63.43213423 | EG86: 63.51088445 | EH86: 63.58973243 | EI86: 63.6686783 | EJ86: =EJ85*EJ82 -> 63.74772218 | EK86: 63.8268642 | EL86: 63.90610446 | EM86: 63.98544311 | EN86: 64.06488025 | EO86: 64.14441601 | EP86: 64.22405052 | EQ86: 64.30378389 | ER86: 64.38361624 | ES86: 64.46354771 | ET86: 64.54357841 | EU86: 64.62370847 | EV86: 64.70393801 | EW86: 64.78426716 | EX86: 64.86469603 | EY86: 64.94522475 | EZ86: 65.02585345 | FA86: 65.10658225 | FB86: 65.18741127 | FC86: 65.26834064 | FD86: 65.34937049 | FE86: 65.43050093 | FF86: 65.51173209 | FG86: 65.5930641 | FH86: 65.67449709 | FI86: 65.75603117 | FJ86: 65.83766647 | FK86: 65.91940313 | FL86: 66.00124125 | FM86: 66.08318099 | FN86: 66.16522244 | FO86: 66.24736575 | FP86: 66.32961104 | FQ86: 66.41195844 | FR86: 66.49440807 | FS86: 66.57696006 | FT86: 66.65961454 | FU86: 66.74237163 | FV86: 66.82523147 | FW86: 66.90819417 | FX86: 66.99125987 | FY86: 67.0744287 | FZ86: 67.15770078 | GA86: 67.24107624 | GB86: 67.32455521 | GC86: 67.40813782 | GD86: 67.49182419 | GE86: 67.57561446 | GF86: 67.65950876 | GG86: 67.74350721 | GH86: 67.82760994 | GI86: 67.91181709 | GJ86: 67.99612877 | GK86: 68.08054513 | GL86: 68.16506629 | GM86: 68.24969238 | GN86: 68.33442354 | GO86: 68.41925989 | GP86: 68.50420156 | GQ86: 68.58924868 | GR86: 68.67440139 | GS86: 68.75965982 | GT86: 68.84502409 | GU86: 68.93049434 | GV86: =GV85*GV82 -> 69.0160707 | GW86: 69.10175331 | GX86: 69.18754229 | GY86: 69.27343777 | GZ86: 69.35943989 | HA86: 69.44554878 | HB86: 69.53176458 | HC86: 69.61808741 | HD86: 69.70451741 | HE86: 69.79105471 | HF86: 69.87769945 | HG86: 69.96445176 | HH86: 70.05131176 | HI86: 70.13827961 | HJ86: 70.22535542 | HK86: 70.31253934 | HL86: 70.39983149 | HM86: 70.48723202 | HN86: 70.57474105 | HO86: 70.66235872 | HP86: 70.75008517 | HQ86: 70.83792053 | HR86: 70.92586494 | HS86: 71.01391853 | HT86: 71.10208144 | HU86: 71.1903538 | HV86: 71.27873575 | HW86: 71.36722743 | HX86: 71.45582896 | HY86: 71.5445405 | HZ86: 71.63336216 | IA86: 71.7222941 | IB86: 71.81133645 | IC86: 71.90048934 | ID86: 71.98975292 | IE86: 72.07912731 | IF86: 72.16861266 | IG86: 72.25820911 | IH86: 72.34791679 | II86: 72.43773584 | IJ86: 72.5276664 | IK86: 72.6177086 | IL86: 72.7078626 | IM86: 72.79812851 | IN86: 72.8885065 | IO86: 72.97899668 | IP86: 73.06959921 | IQ86: 73.16031422 | IR86: 73.25114185 | IS86: 73.34208224 | IT86: 73.43313554 | IU86: 73.52430187 | IV86: 73.61558139 | IW86: 73.70697423 | IX86: 73.79848054 | IY86: 73.89010044 | IZ86: 73.98183409 | JA86: 74.07368163 | JB86: 74.1656432 | JC86: 74.25771893 | JD86: 74.34990898 | JE86: 74.44221348 | JF86: 74.53463257 | JG86: 74.6271664 | JH86: =JH85*JH82 -> 74.71981511 | JI86: 74.81257885 | JJ86: 74.90545774 | JK86: 74.99845195 | JL86: 75.09156161 | JM86: 75.18478686 | JN86: 75.27812785 | JO86: 75.37158472 | JP86: 75.46515761 | JQ86: 75.55884668 | JR86: 75.65265206 | JS86: 75.7465739 | JT86: 75.84061234 | JU86: 75.93476753 | JV86: 76.02903961 | JW86: 76.12342873 | JX86: 76.21793503 | JY86: 76.31255866 | JZ86: 76.40729976 | KA86: 76.50215849 | KB86: 76.59713498 | KC86: 76.69222938 | KD86: 76.78744184 | KE86: 76.88277251 | KF86: 76.97822153 | KG86: 77.07378904 | KH86: 77.1694752 | KI86: 77.26528016 | KJ86: 77.36120406 | KK86: 77.45724704 | KL86: 77.55340926 | KM86: 77.64969087 | KN86: 77.746092 | KO86: 77.84261282 | KP86: 77.93925347 | KQ86: 78.0360141 | KR86: 78.13289485 | KS86: 78.22989588 | KT86: 78.32701733 | KU86: 78.42425936 | KV86: 78.52162212 | KW86: 78.61910575 | KX86: 78.7167104 | KY86: 78.81443623 | KZ86: 78.91228338 | LA86: 79.01025201 | LB86: 79.10834227 | LC86: 79.20655431 | LD86: 79.30488827 | LE86: 79.40334432 | LF86: 79.50192259 | LG86: 79.60062325 | LH86: 79.69944645 | LI86: 79.79839233 | LJ86: 79.89746106 | LK86: 79.99665277 | LL86: 80.09596763 | LM86: 80.19540579 | LN86: 80.29496741 | LO86: 80.39465262 | LP86: 80.49446159 | LQ86: 80.59439448 | LR86: 80.69445143 | LS86: 80.7946326 | LT86: =LT85*LT82 -> 80.89493815 | LU86: 80.99536822 | LV86: 81.09592297 | LW86: 81.19660256 | LX86: 81.29740715 | LY86: 81.39833688 | LZ86: 81.49939192 | MA86: 81.60057241 | MB86: 81.70187852 | MC86: 81.8033104 | MD86: 81.9048682 | ME86: 82.00655209 | MF86: 82.10836222 | MG86: 82.21029874 | MH86: 82.31236182 | MI86: 82.4145516 | MJ86: 82.51686826 | MK86: 82.61931193 | ML86: 82.7218828 | MM86: 82.824581 | MN86: 82.9274067 | MO86: 83.03036005 | MP86: 83.13344123 | MQ86: 83.23665037 | MR86: 83.33998765 | MS86: 83.44345322 | MT86: 83.54704724 | MU86: 83.65076988 | MV86: 83.75462128 | MW86: 83.85860161 | MX86: 83.96271104 | MY86: 84.06694971 | MZ86: 84.1713178 | NA86: 84.27581545 | NB86: 84.38044284 | NC86: 84.48520013 | ND86: 84.59008747 | NE86: 84.69510502 | NF86: 84.80025295 | NG86: 84.90553142 | NH86: 85.0109406 | NI86: 85.11648064 | NJ86: 85.2221517 | NK86: 85.32795396 | NL86: 85.43388756 | NM86: 85.53995269 | NN86: 85.64614949 | NO86: 85.75247813 | NP86: 85.85893878 | NQ86: 85.9655316 | NR86: 86.07225675 | NS86: 86.1791144 | NT86: 86.28610471 | NU86: 86.39322785 | NV86: 86.50048398 | NW86: 86.60787327 | NX86: 86.71539588 | NY86: 86.82305198 | NZ86: 86.93084173 | OA86: 87.0387653 | OB86: 87.14682286 | OC86: 87.25501457 | OD86: 87.3633406 | OE86: 87.47180111
C87: Generation | E87: MWH | K87: =K69 -> FALSE | L87: =L69 -> FALSE | M87: FALSE | N87: FALSE | O87: FALSE | P87: FALSE | Q87: FALSE | R87: FALSE | S87: FALSE | T87: FALSE | U87: FALSE | V87: FALSE | W87: FALSE | X87: FALSE | Y87: FALSE | Z87: FALSE | AA87: FALSE | AB87: FALSE | AC87: FALSE | AD87: FALSE | AE87: FALSE | AF87: FALSE | AG87: FALSE | AH87: FALSE | AI87: FALSE | AJ87: FALSE | AK87: FALSE | AL87: FALSE | AM87: FALSE | AN87: FALSE | AO87: FALSE | AP87: FALSE | AQ87: FALSE | AR87: FALSE | AS87: FALSE | AT87: FALSE | AU87: FALSE | AV87: FALSE | AW87: FALSE | AX87: FALSE | AY87: 78120 | AZ87: 78120 | BA87: 75600 | BB87: 78120 | BC87: 75600 | BD87: 78120 | BE87: 78120 | BF87: 70560 | BG87: 78120 | BH87: 75600 | BI87: 78120 | BJ87: 75600 | BK87: 80352 | BL87: 80352 | BM87: 77760 | BN87: 80352 | BO87: 77760 | BP87: 80352 | BQ87: 80352 | BR87: 75168 | BS87: 80352 | BT87: 77760 | BU87: 80352 | BV87: 77760 | BW87: 80352 | BX87: =BX69 -> 80352 | BY87: 77760 | BZ87: 80352 | CA87: 77760 | CB87: 80352 | CC87: 80352 | CD87: 72576 | CE87: 80352 | CF87: 77760 | CG87: 80352 | CH87: 77760 | CI87: 80352 | CJ87: 80352 | CK87: 77760 | CL87: 80352 | CM87: 77760 | CN87: 80352 | CO87: 80352 | CP87: 72576 | CQ87: 80352 | CR87: 77760 | CS87: 80352 | CT87: 77760 | CU87: 80352 | CV87: 80352 | CW87: 78840 | CX87: 81468 | CY87: 78840 | CZ87: 81468 | DA87: 81468 | DB87: 73584 | DC87: 81468 | DD87: 78840 | DE87: 81468 | DF87: 78840 | DG87: 81468 | DH87: 81468 | DI87: 78840 | DJ87: 81468 | DK87: 78840 | DL87: 81468 | DM87: 81468 | DN87: 76212 | DO87: 81468 | DP87: 78840 | DQ87: 81468 | DR87: 78840 | DS87: 81468 | DT87: 81468 | DU87: 78840 | DV87: 81468 | DW87: 78840 | DX87: 81468 | DY87: 81468 | DZ87: 73584 | EA87: 81468 | EB87: 78840 | EC87: 81468 | ED87: 78840 | EE87: 81468 | EF87: 81468 | EG87: 78840 | EH87: 81468 | EI87: 78840 | EJ87: =EJ69 -> 81468 | EK87: 81468 | EL87: 73584 | EM87: 81468 | EN87: 78840 | EO87: 81468 | EP87: 78840 | EQ87: 81468 | ER87: 81468 | ES87: 78840 | ET87: 81468 | EU87: 78840 | EV87: 81468 | EW87: 81468 | EX87: 73584 | EY87: 81468 | EZ87: 78840 | FA87: 81468 | FB87: 78840 | FC87: 81468 | FD87: 81468 | FE87: 78840 | FF87: 81468 | FG87: 78840 | FH87: 81468 | FI87: 81468 | FJ87: 76212 | FK87: 81468 | FL87: 78840 | FM87: 81468 | FN87: 78840 | FO87: 81468 | FP87: 81468 | FQ87: 78840 | FR87: 81468 | FS87: 78840 | FT87: 81468 | FU87: 81468 | FV87: 73584 | FW87: 81468 | FX87: 78840 | FY87: 81468 | FZ87: 78840 | GA87: 81468 | GB87: 81468 | GC87: 78840 | GD87: 81468 | GE87: 78840 | GF87: 81468 | GG87: 81468 | GH87: 73584 | GI87: 81468 | GJ87: 78840 | GK87: 81468 | GL87: 78840 | GM87: 81468 | GN87: 81468 | GO87: 78840 | GP87: 81468 | GQ87: 78840 | GR87: 81468 | GS87: 81468 | GT87: 73584 | GU87: 81468 | GV87: =GV69 -> 78840 | GW87: 81468 | GX87: 78840 | GY87: 81468 | GZ87: 81468 | HA87: 78840 | HB87: 81468 | HC87: 78840 | HD87: 81468 | HE87: 81468 | HF87: 76212 | HG87: 81468 | HH87: 78840 | HI87: 81468 | HJ87: 78840 | HK87: 81468 | HL87: 81468 | HM87: 78840 | HN87: 81468 | HO87: 78840 | HP87: 81468 | HQ87: 81468 | HR87: 73584 | HS87: 81468 | HT87: 78840 | HU87: 81468 | HV87: 78840 | HW87: 81468 | HX87: 81468 | HY87: 78840 | HZ87: 81468 | IA87: 78840 | IB87: 81468 | IC87: 81468 | ID87: 73584 | IE87: 81468 | IF87: 78840 | IG87: 81468 | IH87: 78840 | II87: 81468 | IJ87: 81468 | IK87: 78840 | IL87: 81468 | IM87: 78840 | IN87: 81468 | IO87: 81468 | IP87: 73584 | IQ87: 81468 | IR87: 78840 | IS87: 81468 | IT87: 78840 | IU87: 81468 | IV87: 81468 | IW87: 78840 | IX87: 81468 | IY87: 78840 | IZ87: 81468 | JA87: 81468 | JB87: 76212 | JC87: 81468 | JD87: 78840 | JE87: 81468 | JF87: 78840 | JG87: 81468 | JH87: =JH69 -> 81468 | JI87: 78840 | JJ87: 81468 | JK87: 78840 | JL87: 81468 | JM87: 81468 | JN87: 73584 | JO87: 81468 | JP87: 78840 | JQ87: 81468 | JR87: 78840 | JS87: 81468 | JT87: 81468 | JU87: 78840 | JV87: 81468 | JW87: 78840 | JX87: 81468 | JY87: 81468 | JZ87: 73584 | KA87: 81468 | KB87: 78840 | KC87: 81468 | KD87: 78840 | KE87: 81468 | KF87: 81468 | KG87: 78840 | KH87: 81468 | KI87: 78840 | KJ87: 81468 | KK87: 81468 | KL87: 73584 | KM87: 81468 | KN87: 78840 | KO87: 81468 | KP87: 78840 | KQ87: 81468 | KR87: 81468 | KS87: 78840 | KT87: 81468 | KU87: 78840 | KV87: 81468 | KW87: 81468 | KX87: 76212 | KY87: 81468 | KZ87: 78840 | LA87: 81468 | LB87: 78840 | LC87: 81468 | LD87: 81468 | LE87: 78840 | LF87: 81468 | LG87: 78840 | LH87: 81468 | LI87: 81468 | LJ87: 73584 | LK87: 81468 | LL87: 78840 | LM87: 81468 | LN87: 78840 | LO87: 81468 | LP87: 81468 | LQ87: 78840 | LR87: 81468 | LS87: 78840 | LT87: =LT69 -> 81468 | LU87: 81468 | LV87: 73584 | LW87: 81468 | LX87: 78840 | LY87: 81468 | LZ87: 78840 | MA87: 81468 | MB87: 81468 | MC87: 78840 | MD87: 81468 | ME87: 78840 | MF87: 81468 | MG87: 81468 | MH87: 73584 | MI87: 81468 | MJ87: 78840 | MK87: 81468 | ML87: 78840 | MM87: FALSE | MN87: FALSE | MO87: FALSE | MP87: FALSE | MQ87: FALSE | MR87: FALSE | MS87: FALSE | MT87: FALSE | MU87: FALSE | MV87: FALSE | MW87: FALSE | MX87: FALSE | MY87: FALSE | MZ87: FALSE | NA87: FALSE | NB87: FALSE | NC87: FALSE | ND87: FALSE | NE87: FALSE | NF87: FALSE | NG87: FALSE | NH87: FALSE | NI87: FALSE | NJ87: FALSE | NK87: FALSE | NL87: FALSE | NM87: FALSE | NN87: FALSE | NO87: FALSE | NP87: FALSE | NQ87: FALSE | NR87: FALSE | NS87: FALSE | NT87: FALSE | NU87: FALSE | NV87: FALSE | NW87: FALSE | NX87: FALSE | NY87: FALSE | NZ87: FALSE | OA87: FALSE | OB87: FALSE | OC87: FALSE | OD87: FALSE | OE87: FALSE
C88: Merchant Revenues | E88: USD 000's | K88: =K86*K87/1000 -> 0 | L88: =L86*L87/1000 -> 0 | M88: 0 | N88: 0 | O88: 0 | P88: 0 | Q88: 0 | R88: 0 | S88: 0 | T88: 0 | U88: 0 | V88: 0 | W88: 0 | X88: 0 | Y88: 0 | Z88: 0 | AA88: 0 | AB88: 0 | AC88: 0 | AD88: 0 | AE88: 0 | AF88: 0 | AG88: 0 | AH88: 0 | AI88: 0 | AJ88: 0 | AK88: 0 | AL88: 0 | AM88: 0 | AN88: 0 | AO88: 0 | AP88: 0 | AQ88: 0 | AR88: 0 | AS88: 0 | AT88: 0 | AU88: 0 | AV88: 0 | AW88: 0 | AX88: 0 | AY88: 4419.388725 | AZ88: 4428.491943 | BA88: 4294.465075 | BB88: 4446.754669 | BC88: 4312.175086 | BD88: 4465.092709 | BE88: 4472.467173 | BF88: 4046.319576 | BG88: 4487.252659 | BH88: 4349.674569 | BI88: 4502.087024 | BJ88: 4364.054116 | BK88: 4646.026728 | BL88: 4653.700019 | BM88: 4511.018693 | BN88: 4669.084641 | BO88: 4525.931626 | BP88: 4684.520123 | BQ88: 4690.335897 | BR88: 4393.180898 | BS88: 4701.989115 | BT88: 4555.961203 | BU88: 4713.671285 | BV88: 4567.280565 | BW88: 4725.38248 | BX88: =BX86*BX87/1000 -> 4731.248985 | BY88: 4584.31236 | BZ88: 4743.003852 | CA88: 4595.702161 | CB88: 4754.787924 | CC88: 4760.690935 | CD88: 4305.31728 | CE88: 4772.518951 | CF88: 4624.300621 | CG88: 4784.376355 | CH88: 4635.789773 | CI88: 4796.263218 | CJ88: 4802.21772 | CK88: 4653.077046 | CL88: 4814.14891 | CM88: 4664.637693 | CN88: 4826.109743 | CO88: 4832.101299 | CP88: 4369.897039 | CQ88: 4844.106736 | CR88: 4693.66513 | CS88: 4856.142 | CT88: 4705.32662 | CU88: 4868.207166 | CV88: 4874.250985 | CW88: 4788.468662 | CX88: 4954.22727 | CY88: 4800.365693 | CZ88: 4966.536131 | DA88: 4972.702024 | DB88: 4497.048905 | DC88: 4985.056786 | DD88: 4830.237748 | DE88: 4997.442243 | DF88: 4842.238554 | DG88: 5009.858472 | DH88: 5016.078149 | DI88: 4860.295692 | DJ88: 5028.540679 | DK88: 4872.371178 | DL88: 5041.034173 | DM88: 5047.292555 | DN88: 4727.522661 | DO88: 5059.832638 | DP88: 4902.691314 | DQ88: 5072.403876 | DR88: 4914.872132 | DS88: 5085.006349 | DT88: 5091.319322 | DU88: 4933.200128 | DV88: 5103.96879 | DW88: 4945.456746 | DX88: 5116.649685 | DY88: 5123.001943 | DZ88: 4632.972208 | EA88: 5135.730127 | EB88: 4976.231684 | EC88: 5148.489935 | ED88: 4988.595214 | EE88: 5161.281444 | EF88: 5167.689111 | EG88: 5007.19813 | EH88: 5180.528321 | EI88: 5019.638597 | EJ88: =EJ86*EJ87/1000 -> 5193.399431 | EK88: 5199.846972 | EL88: 4702.466791 | EM88: 5212.766079 | EN88: 5050.875159 | EO88: 5225.717284 | EP88: 5063.424143 | EQ88: 5238.700666 | ER88: 5245.204448 | ES88: 5082.306102 | ET88: 5258.236246 | EU88: 5094.933176 | EV88: 5271.300422 | EW88: 5277.844677 | EX88: 4773.003793 | EY88: 5290.95757 | EZ88: 5126.638286 | FA88: 5304.103043 | FB88: 5139.375505 | FC88: 5317.281176 | FD88: 5323.882515 | FE88: 5158.540693 | FF88: 5337.10979 | FG88: 5171.357174 | FH88: 5350.369929 | FI88: 5357.012347 | FJ88: 5017.620237 | FK88: 5370.321934 | FL88: 5203.537861 | FM88: 5383.664589 | FN88: 5216.466137 | FO88: 5397.040393 | FP88: 5403.740753 | FQ88: 5235.918804 | FR88: 5417.166437 | FS88: 5248.927531 | FT88: 5430.625477 | FU88: 5437.367532 | FV88: 4917.267832 | FW88: 5450.876763 | FX88: 5281.590928 | FY88: 5464.419557 | FZ88: 5294.713129 | GA88: 5477.995999 | GB88: 5484.796864 | GC88: 5314.457586 | GD88: 5498.423933 | GE88: 5327.661444 | GF88: 5512.08486 | GG88: 5518.928045 | GH88: 4991.02685 | GI88: 5532.639914 | GJ88: 5360.814792 | GK88: 5546.385851 | GL88: 5374.133826 | GM88: 5560.165939 | GN88: 5567.068817 | GO88: 5394.174449 | GP88: 5580.900292 | GQ88: 5407.576366 | GR88: 5594.766133 | GS88: 5601.711966 | GT88: 5065.892253 | GU88: 5615.629513 | GV88: =GV86*GV87/1000 -> 5441.227014 | GW88: 5629.581638 | GX88: 5454.745834 | GY88: 5643.568428 | GZ88: 5650.574849 | HA88: 5475.087066 | HB88: 5664.613797 | HC88: 5488.690012 | HD88: 5678.687625 | HE88: 5685.737645 | HF88: 5325.519231 | HG88: 5699.863956 | HH88: 5522.845419 | HI88: 5714.025363 | HJ88: 5536.567021 | HK88: 5728.221955 | HL88: 5735.333472 | HM88: 5557.213372 | HN88: 5749.583004 | HO88: 5571.020362 | HP88: 5763.867939 | HQ88: 5771.02371 | HR88: 5219.008846 | HS88: 5785.361915 | HT88: 5605.688101 | HU88: 5799.735743 | HV88: 5619.615527 | HW88: 5814.145284 | HX88: 5821.363474 | HY88: 5640.571573 | HZ88: 5835.826749 | IA88: 5654.585667 | IB88: 5850.325958 | IC88: 5857.589066 | ID88: 5297.293979 | IE88: 5872.142344 | IF88: 5689.773422 | IG88: 5886.73178 | IH88: 5703.90976 | II88: 5901.357463 | IJ88: 5908.683926 | IK88: 5725.180146 | IL88: 5923.36415 | IM88: 5739.404452 | IN88: 5938.080847 | IO88: 5945.452902 | IP88: 5376.753388 | IQ88: 5960.224479 | IR88: 5775.120024 | IS88: 5975.032756 | IT88: 5789.468406 | IU88: 5989.877825 | IV88: 5997.314185 | IW88: 5811.057848 | IX88: 6012.214612 | IY88: 5825.495519 | IZ88: 6027.15206 | JA88: 6034.634695 | JB88: 5652.311999 | JC88: 6049.627846 | JD88: 5861.746824 | JE88: 6064.658248 | JF88: 5876.310432 | JG88: 6079.725993 | JH88: =JH86*JH87/1000 -> 6087.273898 | JI88: 5898.223716 | JJ88: 6102.397831 | JK88: 5912.877952 | JL88: 6117.559341 | JM88: 6125.154216 | JN88: 5539.265759 | JO88: 6140.372264 | JP88: 5949.673026 | JQ88: 6155.628121 | JR88: 5964.455088 | JS88: 6170.921882 | JT88: 6178.583006 | JU88: 5986.697072 | JV88: 6193.933799 | JW88: 6001.571121 | JX88: 6209.322731 | JY88: 6217.031529 | JZ88: 5622.354746 | KA88: 6232.477848 | KB88: 6038.918122 | KC88: 6247.962543 | KD88: 6053.921915 | KE88: 6263.485711 | KF88: 6271.261751 | KG88: 6076.497528 | KH88: 6286.842806 | KI88: 6091.594688 | KJ88: 6302.462572 | KK88: 6310.287002 | KL88: 5706.690067 | KM88: 6325.965015 | KN88: 6129.501894 | KO88: 6341.681981 | KP88: 6144.730744 | KQ88: 6357.437996 | KR88: 6365.330677 | KS88: 6167.644991 | KT88: 6381.145448 | KU88: 6182.968608 | KV88: 6396.999511 | KW88: 6404.941307 | KX88: 5999.157933 | KY88: 6420.854491 | KZ88: 6221.444422 | LA88: 6436.807211 | LB88: 6236.901705 | LC88: 6452.799566 | LD88: 6460.810638 | LE88: 6260.159666 | LF88: 6476.86263 | LG88: 6275.713137 | LH88: 6492.954503 | LI88: 6501.015427 | LJ88: 5879.174774 | LK88: 6517.167308 | LL88: 6314.766088 | LM88: 6533.359319 | LN88: 6330.45523 | LO88: 6549.59156 | LP88: 6557.722797 | LQ88: 6354.062061 | LR88: 6574.015569 | LS88: 6369.848834 | LT88: =LT86*LT87/1000 -> 6590.348821 | LU88: 6598.530658 | LV88: 5967.362396 | LW88: 6614.924818 | LX88: 6409.48758 | LY88: 6631.359709 | LZ88: 6425.412059 | MA88: 6647.835433 | MB88: 6656.088639 | MC88: 6449.372992 | MD88: 6672.625803 | ME88: 6465.396567 | MF88: 6689.204053 | MG88: 6697.508618 | MH88: 6056.872832 | MI88: 6714.14869 | MJ88: 6505.629893 | MK88: 6730.830105 | ML88: 6521.79324 | MM88: 0 | MN88: 0 | MO88: 0 | MP88: 0 | MQ88: 0 | MR88: 0 | MS88: 0 | MT88: 0 | MU88: 0 | MV88: 0 | MW88: 0 | MX88: 0 | MY88: 0 | MZ88: 0 | NA88: 0 | NB88: 0 | NC88: 0 | ND88: 0 | NE88: 0 | NF88: 0 | NG88: 0 | NH88: 0 | NI88: 0 | NJ88: 0 | NK88: 0 | NL88: 0 | NM88: 0 | NN88: 0 | NO88: 0 | NP88: 0 | NQ88: 0 | NR88: 0 | NS88: 0 | NT88: 0 | NU88: 0 | NV88: 0 | NW88: 0 | NX88: 0 | NY88: 0 | NZ88: 0 | OA88: 0 | OB88: 0 | OC88: 0 | OD88: 0 | OE88: 0
B90: Operating Expense
C91: Age of Project in Months | K91: =J91+K5 -> 0 | L91: 0 | M91: 0 | N91: 0 | O91: 0 | P91: 0 | Q91: 0 | R91: 0 | S91: 0 | T91: 0 | U91: 0 | V91: 0 | W91: 0 | X91: 0 | Y91: 0 | Z91: 0 | AA91: 0 | AB91: 0 | AC91: 0 | AD91: 0 | AE91: 0 | AF91: 0 | AG91: 0 | AH91: 0 | AI91: 0 | AJ91: 0 | AK91: 0 | AL91: 0 | AM91: 0 | AN91: 0 | AO91: 0 | AP91: 0 | AQ91: 0 | AR91: 0 | AS91: 0 | AT91: 0 | AU91: 0 | AV91: 0 | AW91: 0 | AX91: 0 | AY91: 1 | AZ91: 2 | BA91: 3 | BB91: 4 | BC91: 5 | BD91: 6 | BE91: 7 | BF91: 8 | BG91: 9 | BH91: 10 | BI91: 11 | BJ91: 12 | BK91: 13 | BL91: 14 | BM91: 15 | BN91: 16 | BO91: 17 | BP91: 18 | BQ91: 19 | BR91: 20 | BS91: 21 | BT91: 22 | BU91: 23 | BV91: 24 | BW91: =BV91+BW5 -> 25 | BX91: 26 | BY91: 27 | BZ91: 28 | CA91: 29 | CB91: 30 | CC91: 31 | CD91: 32 | CE91: 33 | CF91: 34 | CG91: 35 | CH91: 36 | CI91: 37 | CJ91: 38 | CK91: 39 | CL91: 40 | CM91: 41 | CN91: 42 | CO91: 43 | CP91: 44 | CQ91: 45 | CR91: 46 | CS91: 47 | CT91: 48 | CU91: 49 | CV91: 50 | CW91: 51 | CX91: 52 | CY91: 53 | CZ91: 54 | DA91: 55 | DB91: 56 | DC91: 57 | DD91: 58 | DE91: 59 | DF91: 60 | DG91: 61 | DH91: 62 | DI91: 63 | DJ91: 64 | DK91: 65 | DL91: 66 | DM91: 67 | DN91: 68 | DO91: 69 | DP91: 70 | DQ91: 71 | DR91: 72 | DS91: 73 | DT91: 74 | DU91: 75 | DV91: 76 | DW91: 77 | DX91: 78 | DY91: 79 | DZ91: 80 | EA91: 81 | EB91: 82 | EC91: 83 | ED91: 84 | EE91: 85 | EF91: 86 | EG91: 87 | EH91: 88 | EI91: =EH91+EI5 -> 89 | EJ91: 90 | EK91: 91 | EL91: 92 | EM91: 93 | EN91: 94 | EO91: 95 | EP91: 96 | EQ91: 97 | ER91: 98 | ES91: 99 | ET91: 100 | EU91: 101 | EV91: 102 | EW91: 103 | EX91: 104 | EY91: 105 | EZ91: 106 | FA91: 107 | FB91: 108 | FC91: 109 | FD91: 110 | FE91: 111 | FF91: 112 | FG91: 113 | FH91: 114 | FI91: 115 | FJ91: 116 | FK91: 117 | FL91: 118 | FM91: 119 | FN91: 120 | FO91: 121 | FP91: 122 | FQ91: 123 | FR91: 124 | FS91: 125 | FT91: 126 | FU91: 127 | FV91: 128 | FW91: 129 | FX91: 130 | FY91: 131 | FZ91: 132 | GA91: 133 | GB91: 134 | GC91: 135 | GD91: 136 | GE91: 137 | GF91: 138 | GG91: 139 | GH91: 140 | GI91: 141 | GJ91: 142 | GK91: 143 | GL91: 144 | GM91: 145 | GN91: 146 | GO91: 147 | GP91: 148 | GQ91: 149 | GR91: 150 | GS91: 151 | GT91: 152 | GU91: =GT91+GU5 -> 153 | GV91: 154 | GW91: 155 | GX91: 156 | GY91: 157 | GZ91: 158 | HA91: 159 | HB91: 160 | HC91: 161 | HD91: 162 | HE91: 163 | HF91: 164 | HG91: 165 | HH91: 166 | HI91: 167 | HJ91: 168 | HK91: 169 | HL91: 170 | HM91: 171 | HN91: 172 | HO91: 173 | HP91: 174 | HQ91: 175 | HR91: 176 | HS91: 177 | HT91: 178 | HU91: 179 | HV91: 180 | HW91: 181 | HX91: 182 | HY91: 183 | HZ91: 184 | IA91: 185 | IB91: 186 | IC91: 187 | ID91: 188 | IE91: 189 | IF91: 190 | IG91: 191 | IH91: 192 | II91: 193 | IJ91: 194 | IK91: 195 | IL91: 196 | IM91: 197 | IN91: 198 | IO91: 199 | IP91: 200 | IQ91: 201 | IR91: 202 | IS91: 203 | IT91: 204 | IU91: 205 | IV91: 206 | IW91: 207 | IX91: 208 | IY91: 209 | IZ91: 210 | JA91: 211 | JB91: 212 | JC91: 213 | JD91: 214 | JE91: 215 | JF91: 216 | JG91: =JF91+JG5 -> 217 | JH91: 218 | JI91: 219 | JJ91: 220 | JK91: 221 | JL91: 222 | JM91: 223 | JN91: 224 | JO91: 225 | JP91: 226 | JQ91: 227 | JR91: 228 | JS91: 229 | JT91: 230 | JU91: 231 | JV91: 232 | JW91: 233 | JX91: 234 | JY91: 235 | JZ91: 236 | KA91: 237 | KB91: 238 | KC91: 239 | KD91: 240 | KE91: 241 | KF91: 242 | KG91: 243 | KH91: 244 | KI91: 245 | KJ91: 246 | KK91: 247 | KL91: 248 | KM91: 249 | KN91: 250 | KO91: 251 | KP91: 252 | KQ91: 253 | KR91: 254 | KS91: 255 | KT91: 256 | KU91: 257 | KV91: 258 | KW91: 259 | KX91: 260 | KY91: 261 | KZ91: 262 | LA91: 263 | LB91: 264 | LC91: 265 | LD91: 266 | LE91: 267 | LF91: 268 | LG91: 269 | LH91: 270 | LI91: 271 | LJ91: 272 | LK91: 273 | LL91: 274 | LM91: 275 | LN91: 276 | LO91: 277 | LP91: 278 | LQ91: 279 | LR91: 280 | LS91: =LR91+LS5 -> 281 | LT91: 282 | LU91: 283 | LV91: 284 | LW91: 285 | LX91: 286 | LY91: 287 | LZ91: 288 | MA91: 289 | MB91: 290 | MC91: 291 | MD91: 292 | ME91: 293 | MF91: 294 | MG91: 295 | MH91: 296 | MI91: 297 | MJ91: 298 | MK91: 299 | ML91: 300 | MM91: 300 | MN91: 300 | MO91: 300 | MP91: 300 | MQ91: 300 | MR91: 300 | MS91: 300 | MT91: 300 | MU91: 300 | MV91: 300 | MW91: 300 | MX91: 300 | MY91: 300 | MZ91: 300 | NA91: 300 | NB91: 300 | NC91: 300 | ND91: 300 | NE91: 300 | NF91: 300 | NG91: 300 | NH91: 300 | NI91: 300 | NJ91: 300 | NK91: 300 | NL91: 300 | NM91: 300 | NN91: 300 | NO91: 300 | NP91: 300 | NQ91: 300 | NR91: 300 | NS91: 300 | NT91: 300 | NU91: 300 | NV91: 300 | NW91: 300 | NX91: 300 | NY91: 300 | NZ91: 300 | OA91: 300 | OB91: 300 | OC91: 300 | OD91: 300 | OE91: 300
C92: Age of Project in Years | K92: =ROUNDUP(K91/12,0) -> 0 | L92: =ROUNDUP(L91/12,0) -> 0 | M92: 0 | N92: 0 | O92: 0 | P92: 0 | Q92: 0 | R92: 0 | S92: 0 | T92: 0 | U92: 0 | V92: 0 | W92: 0 | X92: 0 | Y92: 0 | Z92: 0 | AA92: 0 | AB92: 0 | AC92: 0 | AD92: 0 | AE92: 0 | AF92: 0 | AG92: 0 | AH92: 0 | AI92: 0 | AJ92: 0 | AK92: 0 | AL92: 0 | AM92: 0 | AN92: 0 | AO92: 0 | AP92: 0 | AQ92: 0 | AR92: 0 | AS92: 0 | AT92: 0 | AU92: 0 | AV92: 0 | AW92: 0 | AX92: 0 | AY92: 1 | AZ92: 1 | BA92: 1 | BB92: 1 | BC92: 1 | BD92: 1 | BE92: 1 | BF92: 1 | BG92: 1 | BH92: 1 | BI92: 1 | BJ92: 1 | BK92: 2 | BL92: 2 | BM92: 2 | BN92: 2 | BO92: 2 | BP92: 2 | BQ92: 2 | BR92: 2 | BS92: 2 | BT92: 2 | BU92: 2 | BV92: 2 | BW92: 3 | BX92: =ROUNDUP(BX91/12,0) -> 3 | BY92: 3 | BZ92: 3 | CA92: 3 | CB92: 3 | CC92: 3 | CD92: 3 | CE92: 3 | CF92: 3 | CG92: 3 | CH92: 3 | CI92: 4 | CJ92: 4 | CK92: 4 | CL92: 4 | CM92: 4 | CN92: 4 | CO92: 4 | CP92: 4 | CQ92: 4 | CR92: 4 | CS92: 4 | CT92: 4 | CU92: 5 | CV92: 5 | CW92: 5 | CX92: 5 | CY92: 5 | CZ92: 5 | DA92: 5 | DB92: 5 | DC92: 5 | DD92: 5 | DE92: 5 | DF92: 5 | DG92: 6 | DH92: 6 | DI92: 6 | DJ92: 6 | DK92: 6 | DL92: 6 | DM92: 6 | DN92: 6 | DO92: 6 | DP92: 6 | DQ92: 6 | DR92: 6 | DS92: 7 | DT92: 7 | DU92: 7 | DV92: 7 | DW92: 7 | DX92: 7 | DY92: 7 | DZ92: 7 | EA92: 7 | EB92: 7 | EC92: 7 | ED92: 7 | EE92: 8 | EF92: 8 | EG92: 8 | EH92: 8 | EI92: 8 | EJ92: =ROUNDUP(EJ91/12,0) -> 8 | EK92: 8 | EL92: 8 | EM92: 8 | EN92: 8 | EO92: 8 | EP92: 8 | EQ92: 9 | ER92: 9 | ES92: 9 | ET92: 9 | EU92: 9 | EV92: 9 | EW92: 9 | EX92: 9 | EY92: 9 | EZ92: 9 | FA92: 9 | FB92: 9 | FC92: 10 | FD92: 10 | FE92: 10 | FF92: 10 | FG92: 10 | FH92: 10 | FI92: 10 | FJ92: 10 | FK92: 10 | FL92: 10 | FM92: 10 | FN92: 10 | FO92: 11 | FP92: 11 | FQ92: 11 | FR92: 11 | FS92: 11 | FT92: 11 | FU92: 11 | FV92: 11 | FW92: 11 | FX92: 11 | FY92: 11 | FZ92: 11 | GA92: 12 | GB92: 12 | GC92: 12 | GD92: 12 | GE92: 12 | GF92: 12 | GG92: 12 | GH92: 12 | GI92: 12 | GJ92: 12 | GK92: 12 | GL92: 12 | GM92: 13 | GN92: 13 | GO92: 13 | GP92: 13 | GQ92: 13 | GR92: 13 | GS92: 13 | GT92: 13 | GU92: 13 | GV92: =ROUNDUP(GV91/12,0) -> 13 | GW92: 13 | GX92: 13 | GY92: 14 | GZ92: 14 | HA92: 14 | HB92: 14 | HC92: 14 | HD92: 14 | HE92: 14 | HF92: 14 | HG92: 14 | HH92: 14 | HI92: 14 | HJ92: 14 | HK92: 15 | HL92: 15 | HM92: 15 | HN92: 15 | HO92: 15 | HP92: 15 | HQ92: 15 | HR92: 15 | HS92: 15 | HT92: 15 | HU92: 15 | HV92: 15 | HW92: 16 | HX92: 16 | HY92: 16 | HZ92: 16 | IA92: 16 | IB92: 16 | IC92: 16 | ID92: 16 | IE92: 16 | IF92: 16 | IG92: 16 | IH92: 16 | II92: 17 | IJ92: 17 | IK92: 17 | IL92: 17 | IM92: 17 | IN92: 17 | IO92: 17 | IP92: 17 | IQ92: 17 | IR92: 17 | IS92: 17 | IT92: 17 | IU92: 18 | IV92: 18 | IW92: 18 | IX92: 18 | IY92: 18 | IZ92: 18 | JA92: 18 | JB92: 18 | JC92: 18 | JD92: 18 | JE92: 18 | JF92: 18 | JG92: 19 | JH92: =ROUNDUP(JH91/12,0) -> 19 | JI92: 19 | JJ92: 19 | JK92: 19 | JL92: 19 | JM92: 19 | JN92: 19 | JO92: 19 | JP92: 19 | JQ92: 19 | JR92: 19 | JS92: 20 | JT92: 20 | JU92: 20 | JV92: 20 | JW92: 20 | JX92: 20 | JY92: 20 | JZ92: 20 | KA92: 20 | KB92: 20 | KC92: 20 | KD92: 20 | KE92: 21 | KF92: 21 | KG92: 21 | KH92: 21 | KI92: 21 | KJ92: 21 | KK92: 21 | KL92: 21 | KM92: 21 | KN92: 21 | KO92: 21 | KP92: 21 | KQ92: 22 | KR92: 22 | KS92: 22 | KT92: 22 | KU92: 22 | KV92: 22 | KW92: 22 | KX92: 22 | KY92: 22 | KZ92: 22 | LA92: 22 | LB92: 22 | LC92: 23 | LD92: 23 | LE92: 23 | LF92: 23 | LG92: 23 | LH92: 23 | LI92: 23 | LJ92: 23 | LK92: 23 | LL92: 23 | LM92: 23 | LN92: 23 | LO92: 24 | LP92: 24 | LQ92: 24 | LR92: 24 | LS92: 24 | LT92: =ROUNDUP(LT91/12,0) -> 24 | LU92: 24 | LV92: 24 | LW92: 24 | LX92: 24 | LY92: 24 | LZ92: 24 | MA92: 25 | MB92: 25 | MC92: 25 | MD92: 25 | ME92: 25 | MF92: 25 | MG92: 25 | MH92: 25 | MI92: 25 | MJ92: 25 | MK92: 25 | ML92: 25 | MM92: 25 | MN92: 25 | MO92: 25 | MP92: 25 | MQ92: 25 | MR92: 25 | MS92: 25 | MT92: 25 | MU92: 25 | MV92: 25 | MW92: 25 | MX92: 25 | MY92: 25 | MZ92: 25 | NA92: 25 | NB92: 25 | NC92: 25 | ND92: 25 | NE92: 25 | NF92: 25 | NG92: 25 | NH92: 25 | NI92: 25 | NJ92: 25 | NK92: 25 | NL92: 25 | NM92: 25 | NN92: 25 | NO92: 25 | NP92: 25 | NQ92: 25 | NR92: 25 | NS92: 25 | NT92: 25 | NU92: 25 | NV92: 25 | NW92: 25 | NX92: 25 | NY92: 25 | NZ92: 25 | OA92: 25 | OB92: 25 | OC92: 25 | OD92: 25 | OE92: 25
C93: Real Operting Cost/kW | E93: USD/kW-mo | K93: =lookup1(K92,$F$51:$F$53,$G$51:$G$53)/12 -> 0 | L93: =lookup1(L92,$F$51:$F$53,$G$51:$G$53)/12 -> 0 | M93: 0 | N93: 0 | O93: 0 | P93: 0 | Q93: 0 | R93: 0 | S93: 0 | T93: 0 | U93: 0 | V93: 0 | W93: 0 | X93: 0 | Y93: 0 | Z93: 0 | AA93: 0 | AB93: 0 | AC93: 0 | AD93: 0 | AE93: 0 | AF93: 0 | AG93: 0 | AH93: 0 | AI93: 0 | AJ93: 0 | AK93: 0 | AL93: 0 | AM93: 0 | AN93: 0 | AO93: 0 | AP93: 0 | AQ93: 0 | AR93: 0 | AS93: 0 | AT93: 0 | AU93: 0 | AV93: 0 | AW93: 0 | AX93: 0 | AY93: 2.916666667 | AZ93: 2.916666667 | BA93: 2.916666667 | BB93: 2.916666667 | BC93: 2.916666667 | BD93: 2.916666667 | BE93: 2.916666667 | BF93: 2.916666667 | BG93: 2.916666667 | BH93: 2.916666667 | BI93: 2.916666667 | BJ93: 2.916666667 | BK93: 2.916666667 | BL93: 2.916666667 | BM93: 2.916666667 | BN93: 2.916666667 | BO93: 2.916666667 | BP93: 2.916666667 | BQ93: 2.916666667 | BR93: 2.916666667 | BS93: 2.916666667 | BT93: 2.916666667 | BU93: 2.916666667 | BV93: 2.916666667 | BW93: 2.916666667 | BX93: =lookup1(BX92,$F$51:$F$53,$G$51:$G$53)/12 -> 2.916666667 | BY93: 2.916666667 | BZ93: 2.916666667 | CA93: 2.916666667 | CB93: 2.916666667 | CC93: 2.916666667 | CD93: 2.916666667 | CE93: 2.916666667 | CF93: 2.916666667 | CG93: 2.916666667 | CH93: 2.916666667 | CI93: 2.916666667 | CJ93: 2.916666667 | CK93: 2.916666667 | CL93: 2.916666667 | CM93: 2.916666667 | CN93: 2.916666667 | CO93: 2.916666667 | CP93: 2.916666667 | CQ93: 2.916666667 | CR93: 2.916666667 | CS93: 2.916666667 | CT93: 2.916666667 | CU93: 2.916666667 | CV93: 2.916666667 | CW93: 2.916666667 | CX93: 2.916666667 | CY93: 2.916666667 | CZ93: 2.916666667 | DA93: 2.916666667 | DB93: 2.916666667 | DC93: 2.916666667 | DD93: 2.916666667 | DE93: 2.916666667 | DF93: 2.916666667 | DG93: 2.916666667 | DH93: 2.916666667 | DI93: 2.916666667 | DJ93: 2.916666667 | DK93: 2.916666667 | DL93: 2.916666667 | DM93: 2.916666667 | DN93: 2.916666667 | DO93: 2.916666667 | DP93: 2.916666667 | DQ93: 2.916666667 | DR93: 2.916666667 | DS93: 2.916666667 | DT93: 2.916666667 | DU93: 2.916666667 | DV93: 2.916666667 | DW93: 2.916666667 | DX93: 2.916666667 | DY93: 2.916666667 | DZ93: 2.916666667 | EA93: 2.916666667 | EB93: 2.916666667 | EC93: 2.916666667 | ED93: 2.916666667 | EE93: 2.916666667 | EF93: 2.916666667 | EG93: 2.916666667 | EH93: 2.916666667 | EI93: 2.916666667 | EJ93: =lookup1(EJ92,$F$51:$F$53,$G$51:$G$53)/12 -> 2.916666667 | EK93: 2.916666667 | EL93: 2.916666667 | EM93: 2.916666667 | EN93: 2.916666667 | EO93: 2.916666667 | EP93: 2.916666667 | EQ93: 2.916666667 | ER93: 2.916666667 | ES93: 2.916666667 | ET93: 2.916666667 | EU93: 2.916666667 | EV93: 2.916666667 | EW93: 2.916666667 | EX93: 2.916666667 | EY93: 2.916666667 | EZ93: 2.916666667 | FA93: 2.916666667 | FB93: 2.916666667 | FC93: 3.5 | FD93: 3.5 | FE93: 3.5 | FF93: 3.5 | FG93: 3.5 | FH93: 3.5 | FI93: 3.5 | FJ93: 3.5 | FK93: 3.5 | FL93: 3.5 | FM93: 3.5 | FN93: 3.5 | FO93: 3.5 | FP93: 3.5 | FQ93: 3.5 | FR93: 3.5 | FS93: 3.5 | FT93: 3.5 | FU93: 3.5 | FV93: 3.5 | FW93: 3.5 | FX93: 3.5 | FY93: 3.5 | FZ93: 3.5 | GA93: 3.5 | GB93: 3.5 | GC93: 3.5 | GD93: 3.5 | GE93: 3.5 | GF93: 3.5 | GG93: 3.5 | GH93: 3.5 | GI93: 3.5 | GJ93: 3.5 | GK93: 3.5 | GL93: 3.5 | GM93: 3.5 | GN93: 3.5 | GO93: 3.5 | GP93: 3.5 | GQ93: 3.5 | GR93: 3.5 | GS93: 3.5 | GT93: 3.5 | GU93: 3.5 | GV93: =lookup1(GV92,$F$51:$F$53,$G$51:$G$53)/12 -> 3.5 | GW93: 3.5 | GX93: 3.5 | GY93: 3.5 | GZ93: 3.5 | HA93: 3.5 | HB93: 3.5 | HC93: 3.5 | HD93: 3.5 | HE93: 3.5 | HF93: 3.5 | HG93: 3.5 | HH93: 3.5 | HI93: 3.5 | HJ93: 3.5 | HK93: 3.75 | HL93: 3.75 | HM93: 3.75 | HN93: 3.75 | HO93: 3.75 | HP93: 3.75 | HQ93: 3.75 | HR93: 3.75 | HS93: 3.75 | HT93: 3.75 | HU93: 3.75 | HV93: 3.75 | HW93: 3.75 | HX93: 3.75 | HY93: 3.75 | HZ93: 3.75 | IA93: 3.75 | IB93: 3.75 | IC93: 3.75 | ID93: 3.75 | IE93: 3.75 | IF93: 3.75 | IG93: 3.75 | IH93: 3.75 | II93: 3.75 | IJ93: 3.75 | IK93: 3.75 | IL93: 3.75 | IM93: 3.75 | IN93: 3.75 | IO93: 3.75 | IP93: 3.75 | IQ93: 3.75 | IR93: 3.75 | IS93: 3.75 | IT93: 3.75 | IU93: 3.75 | IV93: 3.75 | IW93: 3.75 | IX93: 3.75 | IY93: 3.75 | IZ93: 3.75 | JA93: 3.75 | JB93: 3.75 | JC93: 3.75 | JD93: 3.75 | JE93: 3.75 | JF93: 3.75 | JG93: 3.75 | JH93: =lookup1(JH92,$F$51:$F$53,$G$51:$G$53)/12 -> 3.75 | JI93: 3.75 | JJ93: 3.75 | JK93: 3.75 | JL93: 3.75 | JM93: 3.75 | JN93: 3.75 | JO93: 3.75 | JP93: 3.75 | JQ93: 3.75 | JR93: 3.75 | JS93: 3.75 | JT93: 3.75 | JU93: 3.75 | JV93: 3.75 | JW93: 3.75 | JX93: 3.75 | JY93: 3.75 | JZ93: 3.75 | KA93: 3.75 | KB93: 3.75 | KC93: 3.75 | KD93: 3.75 | KE93: 3.75 | KF93: 3.75 | KG93: 3.75 | KH93: 3.75 | KI93: 3.75 | KJ93: 3.75 | KK93: 3.75 | KL93: 3.75 | KM93: 3.75 | KN93: 3.75 | KO93: 3.75 | KP93: 3.75 | KQ93: 3.75 | KR93: 3.75 | KS93: 3.75 | KT93: 3.75 | KU93: 3.75 | KV93: 3.75 | KW93: 3.75 | KX93: 3.75 | KY93: 3.75 | KZ93: 3.75 | LA93: 3.75 | LB93: 3.75 | LC93: 3.75 | LD93: 3.75 | LE93: 3.75 | LF93: 3.75 | LG93: 3.75 | LH93: 3.75 | LI93: 3.75 | LJ93: 3.75 | LK93: 3.75 | LL93: 3.75 | LM93: 3.75 | LN93: 3.75 | LO93: 3.75 | LP93: 3.75 | LQ93: 3.75 | LR93: 3.75 | LS93: 3.75 | LT93: =lookup1(LT92,$F$51:$F$53,$G$51:$G$53)/12 -> 3.75 | LU93: 3.75 | LV93: 3.75 | LW93: 3.75 | LX93: 3.75 | LY93: 3.75 | LZ93: 3.75 | MA93: 3.75 | MB93: 3.75 | MC93: 3.75 | MD93: 3.75 | ME93: 3.75 | MF93: 3.75 | MG93: 3.75 | MH93: 3.75 | MI93: 3.75 | MJ93: 3.75 | MK93: 3.75 | ML93: 3.75 | MM93: 3.75 | MN93: 3.75 | MO93: 3.75 | MP93: 3.75 | MQ93: 3.75 | MR93: 3.75 | MS93: 3.75 | MT93: 3.75 | MU93: 3.75 | MV93: 3.75 | MW93: 3.75 | MX93: 3.75 | MY93: 3.75 | MZ93: 3.75 | NA93: 3.75 | NB93: 3.75 | NC93: 3.75 | ND93: 3.75 | NE93: 3.75 | NF93: 3.75 | NG93: 3.75 | NH93: 3.75 | NI93: 3.75 | NJ93: 3.75 | NK93: 3.75 | NL93: 3.75 | NM93: 3.75 | NN93: 3.75 | NO93: 3.75 | NP93: 3.75 | NQ93: 3.75 | NR93: 3.75 | NS93: 3.75 | NT93: 3.75 | NU93: 3.75 | NV93: 3.75 | NW93: 3.75 | NX93: 3.75 | NY93: 3.75 | NZ93: 3.75 | OA93: 3.75 | OB93: 3.75 | OC93: 3.75 | OD93: 3.75 | OE93: 3.75
C94: Periodic Inflation Rate | E94: % | K94: =(1+lookup1(K11,55:55,61:61))^(1/12)-1 -> 0.001241487716 | L94: 0.001241487716 | M94: 0.001241487716 | N94: 0.001241487716 | O94: 0.001241487716 | P94: 0.001241487716 | Q94: 0.001241487716 | R94: 0.001241487716 | S94: 0.001241487716 | T94: 0.001241487716 | U94: 0.001651581302 | V94: 0.001651581302 | W94: 0.001651581302 | X94: 0.001651581302 | Y94: 0.001651581302 | Z94: 0.001651581302 | AA94: 0.001651581302 | AB94: 0.001651581302 | AC94: 0.001651581302 | AD94: 0.001651581302 | AE94: 0.001651581302 | AF94: 0.001651581302 | AG94: 0.001651581302 | AH94: 0.001651581302 | AI94: 0.001651581302 | AJ94: 0.001651581302 | AK94: 0.001651581302 | AL94: 0.001651581302 | AM94: 0.001651581302 | AN94: 0.001651581302 | AO94: 0.001651581302 | AP94: 0.001651581302 | AQ94: 0.001651581302 | AR94: 0.001651581302 | AS94: 0.001651581302 | AT94: 0.001651581302 | AU94: 0.001651581302 | AV94: 0.001651581302 | AW94: 0.001651581302 | AX94: 0.001651581302 | AY94: 0.001651581302 | AZ94: 0.001651581302 | BA94: 0.001651581302 | BB94: 0.001651581302 | BC94: 0.001651581302 | BD94: 0.001651581302 | BE94: 0.001651581302 | BF94: 0.001651581302 | BG94: 0.001651581302 | BH94: 0.001651581302 | BI94: 0.001651581302 | BJ94: 0.001651581302 | BK94: 0.001651581302 | BL94: 0.001651581302 | BM94: 0.001651581302 | BN94: 0.001651581302 | BO94: 0.001651581302 | BP94: 0.001651581302 | BQ94: 0.002466269772 | BR94: 0.002466269772 | BS94: 0.002466269772 | BT94: 0.002466269772 | BU94: 0.002466269772 | BV94: 0.002466269772 | BW94: =(1+lookup1(BW11,55:55,61:61))^(1/12)-1 -> 0.002466269772 | BX94: 0.002466269772 | BY94: 0.002466269772 | BZ94: 0.002466269772 | CA94: 0.002466269772 | CB94: 0.002466269772 | CC94: 0.002466269772 | CD94: 0.002466269772 | CE94: 0.002466269772 | CF94: 0.002466269772 | CG94: 0.002466269772 | CH94: 0.002466269772 | CI94: 0.002466269772 | CJ94: 0.002466269772 | CK94: 0.002466269772 | CL94: 0.002466269772 | CM94: 0.002466269772 | CN94: 0.002466269772 | CO94: 0.002466269772 | CP94: 0.002466269772 | CQ94: 0.002466269772 | CR94: 0.002466269772 | CS94: 0.002466269772 | CT94: 0.002466269772 | CU94: 0.002466269772 | CV94: 0.002466269772 | CW94: 0.002466269772 | CX94: 0.002466269772 | CY94: 0.002466269772 | CZ94: 0.002466269772 | DA94: 0.002466269772 | DB94: 0.002466269772 | DC94: 0.002466269772 | DD94: 0.002466269772 | DE94: 0.002466269772 | DF94: 0.002466269772 | DG94: 0.002466269772 | DH94: 0.002466269772 | DI94: 0.002466269772 | DJ94: 0.002466269772 | DK94: 0.002466269772 | DL94: 0.002466269772 | DM94: 0.002466269772 | DN94: 0.002466269772 | DO94: 0.002466269772 | DP94: 0.002466269772 | DQ94: 0.002466269772 | DR94: 0.002466269772 | DS94: 0.002466269772 | DT94: 0.002466269772 | DU94: 0.002466269772 | DV94: 0.002466269772 | DW94: 0.002466269772 | DX94: 0.002466269772 | DY94: 0.002466269772 | DZ94: 0.002466269772 | EA94: 0.002466269772 | EB94: 0.002466269772 | EC94: 0.002466269772 | ED94: 0.002466269772 | EE94: 0.002466269772 | EF94: 0.002466269772 | EG94: 0.002466269772 | EH94: 0.002466269772 | EI94: =(1+lookup1(EI11,55:55,61:61))^(1/12)-1 -> 0.002466269772 | EJ94: 0.002466269772 | EK94: 0.002466269772 | EL94: 0.002466269772 | EM94: 0.002466269772 | EN94: 0.002466269772 | EO94: 0.002466269772 | EP94: 0.002466269772 | EQ94: 0.002466269772 | ER94: 0.002466269772 | ES94: 0.002466269772 | ET94: 0.002466269772 | EU94: 0.002466269772 | EV94: 0.002466269772 | EW94: 0.002466269772 | EX94: 0.002466269772 | EY94: 0.002466269772 | EZ94: 0.002466269772 | FA94: 0.002466269772 | FB94: 0.002466269772 | FC94: 0.002466269772 | FD94: 0.002466269772 | FE94: 0.002466269772 | FF94: 0.002466269772 | FG94: 0.002466269772 | FH94: 0.002466269772 | FI94: 0.002466269772 | FJ94: 0.002466269772 | FK94: 0.002466269772 | FL94: 0.002466269772 | FM94: 0.002466269772 | FN94: 0.002466269772 | FO94: 0.002466269772 | FP94: 0.002466269772 | FQ94: 0.002466269772 | FR94: 0.002466269772 | FS94: 0.002466269772 | FT94: 0.002466269772 | FU94: 0.002466269772 | FV94: 0.002466269772 | FW94: 0.002466269772 | FX94: 0.002466269772 | FY94: 0.002466269772 | FZ94: 0.002466269772 | GA94: 0.002466269772 | GB94: 0.002466269772 | GC94: 0.002466269772 | GD94: 0.002466269772 | GE94: 0.002466269772 | GF94: 0.002466269772 | GG94: 0.002466269772 | GH94: 0.002466269772 | GI94: 0.002466269772 | GJ94: 0.002466269772 | GK94: 0.002466269772 | GL94: 0.002466269772 | GM94: 0.002466269772 | GN94: 0.002466269772 | GO94: 0.002466269772 | GP94: 0.002466269772 | GQ94: 0.002466269772 | GR94: 0.002466269772 | GS94: 0.002466269772 | GT94: 0.002466269772 | GU94: =(1+lookup1(GU11,55:55,61:61))^(1/12)-1 -> 0.002466269772 | GV94: 0.002466269772 | GW94: 0.002466269772 | GX94: 0.002466269772 | GY94: 0.002466269772 | GZ94: 0.002466269772 | HA94: 0.002466269772 | HB94: 0.002466269772 | HC94: 0.002466269772 | HD94: 0.002466269772 | HE94: 0.002466269772 | HF94: 0.002466269772 | HG94: 0.002466269772 | HH94: 0.002466269772 | HI94: 0.002466269772 | HJ94: 0.002466269772 | HK94: 0.002466269772 | HL94: 0.002466269772 | HM94: 0.002466269772 | HN94: 0.002466269772 | HO94: 0.002466269772 | HP94: 0.002466269772 | HQ94: 0.002466269772 | HR94: 0.002466269772 | HS94: 0.002466269772 | HT94: 0.002466269772 | HU94: 0.002466269772 | HV94: 0.002466269772 | HW94: 0.002466269772 | HX94: 0.002466269772 | HY94: 0.002466269772 | HZ94: 0.002466269772 | IA94: 0.002466269772 | IB94: 0.002466269772 | IC94: 0.002466269772 | ID94: 0.002466269772 | IE94: 0.002466269772 | IF94: 0.002466269772 | IG94: 0.002466269772 | IH94: 0.002466269772 | II94: 0.002466269772 | IJ94: 0.002466269772 | IK94: 0.002466269772 | IL94: 0.002466269772 | IM94: 0.002466269772 | IN94: 0.002466269772 | IO94: 0.002466269772 | IP94: 0.002466269772 | IQ94: 0.002466269772 | IR94: 0.002466269772 | IS94: 0.002466269772 | IT94: 0.002466269772 | IU94: 0.002466269772 | IV94: 0.002466269772 | IW94: 0.002466269772 | IX94: 0.002466269772 | IY94: 0.002466269772 | IZ94: 0.002466269772 | JA94: 0.002466269772 | JB94: 0.002466269772 | JC94: 0.002466269772 | JD94: 0.002466269772 | JE94: 0.002466269772 | JF94: 0.002466269772 | JG94: =(1+lookup1(JG11,55:55,61:61))^(1/12)-1 -> 0.002466269772 | JH94: 0.002466269772 | JI94: 0.002466269772 | JJ94: 0.002466269772 | JK94: 0.002466269772 | JL94: 0.002466269772 | JM94: 0.002466269772 | JN94: 0.002466269772 | JO94: 0.002466269772 | JP94: 0.002466269772 | JQ94: 0.002466269772 | JR94: 0.002466269772 | JS94: 0.002466269772 | JT94: 0.002466269772 | JU94: 0.002466269772 | JV94: 0.002466269772 | JW94: 0.002466269772 | JX94: 0.002466269772 | JY94: 0.002466269772 | JZ94: 0.002466269772 | KA94: 0.002466269772 | KB94: 0.002466269772 | KC94: 0.002466269772 | KD94: 0.002466269772 | KE94: 0.002466269772 | KF94: 0.002466269772 | KG94: 0.002466269772 | KH94: 0.002466269772 | KI94: 0.002466269772 | KJ94: 0.002466269772 | KK94: 0.002466269772 | KL94: 0.002466269772 | KM94: 0.002466269772 | KN94: 0.002466269772 | KO94: 0.002466269772 | KP94: 0.002466269772 | KQ94: 0.002466269772 | KR94: 0.002466269772 | KS94: 0.002466269772 | KT94: 0.002466269772 | KU94: 0.002466269772 | KV94: 0.002466269772 | KW94: 0.002466269772 | KX94: 0.002466269772 | KY94: 0.002466269772 | KZ94: 0.002466269772 | LA94: 0.002466269772 | LB94: 0.002466269772 | LC94: 0.002466269772 | LD94: 0.002466269772 | LE94: 0.002466269772 | LF94: 0.002466269772 | LG94: 0.002466269772 | LH94: 0.002466269772 | LI94: 0.002466269772 | LJ94: 0.002466269772 | LK94: 0.002466269772 | LL94: 0.002466269772 | LM94: 0.002466269772 | LN94: 0.002466269772 | LO94: 0.002466269772 | LP94: 0.002466269772 | LQ94: 0.002466269772 | LR94: 0.002466269772 | LS94: =(1+lookup1(LS11,55:55,61:61))^(1/12)-1 -> 0.002466269772 | LT94: 0.002466269772 | LU94: 0.002466269772 | LV94: 0.002466269772 | LW94: 0.002466269772 | LX94: 0.002466269772 | LY94: 0.002466269772 | LZ94: 0.002466269772 | MA94: 0.002466269772 | MB94: 0.002466269772 | MC94: 0.002466269772 | MD94: 0.002466269772 | ME94: 0.002466269772 | MF94: 0.002466269772 | MG94: 0.002466269772 | MH94: 0.002466269772 | MI94: 0.002466269772 | MJ94: 0.002466269772 | MK94: 0.002466269772 | ML94: 0.002466269772 | MM94: 0.002466269772 | MN94: 0.002466269772 | MO94: 0.002466269772 | MP94: 0.002466269772 | MQ94: 0.002466269772 | MR94: 0.002466269772 | MS94: 0.002466269772 | MT94: 0.002466269772 | MU94: 0.002466269772 | MV94: 0.002466269772 | MW94: 0.002466269772 | MX94: 0.002466269772 | MY94: 0.002466269772 | MZ94: 0.002466269772 | NA94: 0.002466269772 | NB94: 0.002466269772 | NC94: 0.002466269772 | ND94: 0.002466269772 | NE94: 0.002466269772 | NF94: 0.002466269772 | NG94: 0.002466269772 | NH94: 0.002466269772 | NI94: 0.002466269772 | NJ94: 0.002466269772 | NK94: 0.002466269772 | NL94: 0.002466269772 | NM94: 0.002466269772 | NN94: 0.002466269772 | NO94: 0.002466269772 | NP94: 0.002466269772 | NQ94: 0.002466269772 | NR94: 0.002466269772 | NS94: 0.002466269772 | NT94: 0.002466269772 | NU94: 0.002466269772 | NV94: 0.002466269772 | NW94: 0.002466269772 | NX94: 0.002466269772 | NY94: 0.002466269772 | NZ94: 0.002466269772 | OA94: 0.002466269772 | OB94: 0.002466269772 | OC94: 0.002466269772 | OD94: 0.002466269772 | OE94: 0.002466269772
C95: Inflation Index | E95: Index | F95: Base Period | G95: =F49 -> 2016-01-01 | J95: 1 | K95: =J95*(1+K94*(K2>=$G$95)) -> 1 | L95: 1 | M95: 1 | N95: 1 | O95: 1 | P95: 1 | Q95: 1 | R95: 1 | S95: 1 | T95: 1 | U95: 1.001651581 | V95: 1.00330589 | W95: 1.004962932 | X95: 1.00662271 | Y95: 1.008285229 | Z95: 1.009950494 | AA95: 1.011618509 | AB95: 1.013289279 | AC95: 1.014962809 | AD95: 1.016639103 | AE95: 1.018318165 | AF95: 1.02 | AG95: 1.021684613 | AH95: 1.023372008 | AI95: 1.02506219 | AJ95: 1.026755164 | AK95: 1.028450933 | AL95: 1.030149504 | AM95: 1.031850879 | AN95: 1.033555065 | AO95: 1.035262065 | AP95: 1.036971885 | AQ95: 1.038684528 | AR95: 1.0404 | AS95: 1.042118305 | AT95: 1.043839448 | AU95: 1.045563434 | AV95: 1.047290267 | AW95: 1.049019952 | AX95: 1.050752494 | AY95: 1.052487897 | AZ95: 1.054226166 | BA95: 1.055967307 | BB95: 1.057711322 | BC95: 1.059458219 | BD95: 1.061208 | BE95: 1.062960671 | BF95: 1.064716237 | BG95: 1.066474703 | BH95: 1.068236072 | BI95: 1.070000351 | BJ95: 1.071767544 | BK95: 1.073537655 | BL95: 1.07531069 | BM95: 1.077086653 | BN95: 1.078865549 | BO95: 1.080647383 | BP95: 1.08243216 | BQ95: 1.08510173 | BR95: 1.087777883 | BS95: 1.090460637 | BT95: 1.093150007 | BU95: 1.09584601 | BV95: 1.098548662 | BW95: =BV95*(1+BW94*(BW2>=$G$95)) -> 1.101257979 | BX95: 1.103973978 | BY95: 1.106696676 | BZ95: 1.109426089 | CA95: 1.112162233 | CB95: 1.114905125 | CC95: 1.117654782 | CD95: 1.12041122 | CE95: 1.123174456 | CF95: 1.125944507 | CG95: 1.12872139 | CH95: 1.131505122 | CI95: 1.134295719 | CJ95: 1.137093198 | CK95: 1.139897576 | CL95: 1.142708871 | CM95: 1.1455271 | CN95: 1.148352279 | CO95: 1.151184425 | CP95: 1.154023556 | CQ95: 1.15686969 | CR95: 1.159722843 | CS95: 1.162583032 | CT95: 1.165450275 | CU95: 1.16832459 | CV95: 1.171205994 | CW95: 1.174094504 | CX95: 1.176990137 | CY95: 1.179892913 | CZ95: 1.182802847 | DA95: 1.185719958 | DB95: 1.188644263 | DC95: 1.191575781 | DD95: 1.194514528 | DE95: 1.197460523 | DF95: 1.200413784 | DG95: 1.203374328 | DH95: 1.206342174 | DI95: 1.209317339 | DJ95: 1.212299842 | DK95: 1.2152897 | DL95: 1.218286932 | DM95: 1.221291557 | DN95: 1.224303591 | DO95: 1.227323054 | DP95: 1.230349964 | DQ95: 1.233384339 | DR95: 1.236426197 | DS95: 1.239475558 | DT95: 1.242532439 | DU95: 1.245596859 | DV95: 1.248668837 | DW95: 1.251748391 | DX95: 1.25483554 | DY95: 1.257930303 | DZ95: 1.261032699 | EA95: 1.264142746 | EB95: 1.267260463 | EC95: 1.270385869 | ED95: 1.273518983 | EE95: 1.276659824 | EF95: 1.279808412 | EG95: 1.282964765 | EH95: 1.286128902 | EI95: =EH95*(1+EI94*(EI2>=$G$95)) -> 1.289300843 | EJ95: 1.292480606 | EK95: 1.295668212 | EL95: 1.29886368 | EM95: 1.302067028 | EN95: 1.305278276 | EO95: 1.308497445 | EP95: 1.311724553 | EQ95: 1.314959619 | ER95: 1.318202664 | ES95: 1.321453708 | ET95: 1.324712769 | EU95: 1.327979868 | EV95: 1.331255025 | EW95: 1.334538259 | EX95: 1.33782959 | EY95: 1.341129039 | EZ95: 1.344436625 | FA95: 1.347752368 | FB95: 1.351076289 | FC95: 1.354408408 | FD95: 1.357748744 | FE95: 1.361097319 | FF95: 1.364454152 | FG95: 1.367819264 | FH95: 1.371192675 | FI95: 1.374574406 | FJ95: 1.377964478 | FK95: 1.38136291 | FL95: 1.384769724 | FM95: 1.388184939 | FN95: 1.391608578 | FO95: 1.39504066 | FP95: 1.398481207 | FQ95: 1.401930238 | FR95: 1.405387777 | FS95: 1.408853842 | FT95: 1.412328456 | FU95: 1.415811639 | FV95: 1.419303412 | FW95: 1.422803797 | FX95: 1.426312815 | FY95: 1.429830487 | FZ95: 1.433356835 | GA95: 1.43689188 | GB95: 1.440435643 | GC95: 1.443988146 | GD95: 1.44754941 | GE95: 1.451119457 | GF95: 1.454698309 | GG95: 1.458285988 | GH95: 1.461882514 | GI95: 1.465487911 | GJ95: 1.4691022 | GK95: 1.472725402 | GL95: 1.47635754 | GM95: 1.479998636 | GN95: 1.483648712 | GO95: 1.48730779 | GP95: 1.490975892 | GQ95: 1.494653041 | GR95: 1.498339259 | GS95: 1.502034567 | GT95: 1.50573899 | GU95: =GT95*(1+GU94*(GU2>=$G$95)) -> 1.509452548 | GV95: 1.513175266 | GW95: 1.516907164 | GX95: 1.520648266 | GY95: 1.524398595 | GZ95: 1.528158173 | HA95: 1.531927024 | HB95: 1.535705169 | HC95: 1.539492632 | HD95: 1.543289436 | HE95: 1.547095604 | HF95: 1.55091116 | HG95: 1.554736125 | HH95: 1.558570524 | HI95: 1.562414379 | HJ95: 1.566267714 | HK95: 1.570130553 | HL95: 1.574002919 | HM95: 1.577884834 | HN95: 1.581776324 | HO95: 1.585677411 | HP95: 1.589588119 | HQ95: 1.593508473 | HR95: 1.597438494 | HS95: 1.601378209 | HT95: 1.605327639 | HU95: 1.60928681 | HV95: 1.613255746 | HW95: 1.61723447 | HX95: 1.621223006 | HY95: 1.625221379 | HZ95: 1.629229614 | IA95: 1.633247734 | IB95: 1.637275763 | IC95: 1.641313727 | ID95: 1.645361649 | IE95: 1.649419555 | IF95: 1.653487469 | IG95: 1.657565415 | IH95: 1.661653418 | II95: 1.665751504 | IJ95: 1.669859696 | IK95: 1.673978021 | IL95: 1.678106502 | IM95: 1.682245166 | IN95: 1.686394036 | IO95: 1.690553139 | IP95: 1.694722499 | IQ95: 1.698902142 | IR95: 1.703092093 | IS95: 1.707292377 | IT95: 1.711503021 | IU95: 1.715724049 | IV95: 1.719955487 | IW95: 1.724197361 | IX95: 1.728449697 | IY95: 1.732712521 | IZ95: 1.736985857 | JA95: 1.741269733 | JB95: 1.745564174 | JC95: 1.749869206 | JD95: 1.754184855 | JE95: 1.758511148 | JF95: 1.762848111 | JG95: =JF95*(1+JG94*(JG2>=$G$95)) -> 1.76719577 | JH95: 1.771554152 | JI95: 1.775923282 | JJ95: 1.780303188 | JK95: 1.784693896 | JL95: 1.789095433 | JM95: 1.793507825 | JN95: 1.797931099 | JO95: 1.802365282 | JP95: 1.806810401 | JQ95: 1.811266483 | JR95: 1.815733555 | JS95: 1.820211643 | JT95: 1.824700776 | JU95: 1.829200981 | JV95: 1.833712284 | JW95: 1.838234713 | JX95: 1.842768296 | JY95: 1.847313059 | JZ95: 1.851869032 | KA95: 1.85643624 | KB95: 1.861014713 | KC95: 1.865604477 | KD95: 1.870205561 | KE95: 1.874817993 | KF95: 1.8794418 | KG95: 1.88407701 | KH95: 1.888723652 | KI95: 1.893381754 | KJ95: 1.898051345 | KK95: 1.902732451 | KL95: 1.907425103 | KM95: 1.912129328 | KN95: 1.916845154 | KO95: 1.921572612 | KP95: 1.926311728 | KQ95: 1.931062533 | KR95: 1.935825054 | KS95: 1.94059932 | KT95: 1.945385362 | KU95: 1.950183207 | KV95: 1.954992885 | KW95: 1.959814425 | KX95: 1.964647856 | KY95: 1.969493207 | KZ95: 1.974350509 | LA95: 1.97921979 | LB95: 1.98410108 | LC95: 1.988994409 | LD95: 1.993899805 | LE95: 1.9988173 | LF95: 2.003746923 | LG95: 2.008688703 | LH95: 2.013642671 | LI95: 2.018608858 | LJ95: 2.023587292 | LK95: 2.028578004 | LL95: 2.033581024 | LM95: 2.038596384 | LN95: 2.043624112 | LO95: 2.048664241 | LP95: 2.053716799 | LQ95: 2.058781819 | LR95: 2.06385933 | LS95: =LR95*(1+LS94*(LS2>=$G$95)) -> 2.068949364 | LT95: 2.074051952 | LU95: 2.079167123 | LV95: 2.08429491 | LW95: 2.089435344 | LX95: 2.094588455 | LY95: 2.099754275 | LZ95: 2.104932836 | MA95: 2.110124168 | MB95: 2.115328303 | MC95: 2.120545274 | MD95: 2.12577511 | ME95: 2.131017845 | MF95: 2.13627351 | MG95: 2.141542137 | MH95: 2.146823758 | MI95: 2.152118404 | MJ95: 2.157426109 | MK95: 2.162746904 | ML95: 2.168080821 | MM95: 2.173427893 | MN95: 2.178788153 | MO95: 2.184161632 | MP95: 2.189548364 | MQ95: 2.194948381 | MR95: 2.200361715 | MS95: 2.205788401 | MT95: 2.21122847 | MU95: 2.216681956 | MV95: 2.222148892 | MW95: 2.227629311 | MX95: 2.233123245 | MY95: 2.23863073 | MZ95: 2.244151797 | NA95: 2.249686481 | NB95: 2.255234815 | NC95: 2.260796832 | ND95: 2.266372567 | NE95: 2.271962053 | NF95: 2.277565324 | NG95: 2.283182415 | NH95: 2.288813359 | NI95: 2.29445819 | NJ95: 2.300116943 | NK95: 2.305789652 | NL95: 2.311476351 | NM95: 2.317177075 | NN95: 2.322891859 | NO95: 2.328620737 | NP95: 2.334363744 | NQ95: 2.340120915 | NR95: 2.345892284 | NS95: 2.351677887 | NT95: 2.357477759 | NU95: 2.363291936 | NV95: 2.369120451 | NW95: 2.374963341 | NX95: 2.380820642 | NY95: 2.386692388 | NZ95: 2.392578615 | OA95: 2.398479359 | OB95: 2.404394656 | OC95: 2.410324542 | OD95: 2.416269053 | OE95: =OD95*(1+OE94*(OE2>=$G$95)) -> 2.422228224
C96: Nominal Opexp per kW | E96: USD/kW-mo | K96: =K95*K93 -> 0 | L96: =L95*L93 -> 0 | M96: 0 | N96: 0 | O96: 0 | P96: 0 | Q96: 0 | R96: 0 | S96: 0 | T96: 0 | U96: 0 | V96: 0 | W96: 0 | X96: 0 | Y96: 0 | Z96: 0 | AA96: 0 | AB96: 0 | AC96: 0 | AD96: 0 | AE96: 0 | AF96: 0 | AG96: 0 | AH96: 0 | AI96: 0 | AJ96: 0 | AK96: 0 | AL96: 0 | AM96: 0 | AN96: 0 | AO96: 0 | AP96: 0 | AQ96: 0 | AR96: 0 | AS96: 0 | AT96: 0 | AU96: 0 | AV96: 0 | AW96: 0 | AX96: 0 | AY96: 3.069756366 | AZ96: 3.074826318 | BA96: 3.079904644 | BB96: 3.084991357 | BC96: 3.090086471 | BD96: 3.09519 | BE96: 3.100301958 | BF96: 3.105422359 | BG96: 3.110551216 | BH96: 3.115688544 | BI96: 3.120834357 | BJ96: 3.125988669 | BK96: 3.131151493 | BL96: 3.136322845 | BM96: 3.141502737 | BN96: 3.146691184 | BO96: 3.1518882 | BP96: 3.1570938 | BQ96: 3.164880045 | BR96: 3.172685493 | BS96: 3.180510191 | BT96: 3.188354187 | BU96: 3.196217529 | BV96: 3.204100264 | BW96: 3.212002439 | BX96: =BX95*BX93 -> 3.219924104 | BY96: 3.227865305 | BZ96: 3.235826092 | CA96: 3.243806512 | CB96: 3.251806614 | CC96: 3.259826446 | CD96: 3.267866058 | CE96: 3.275925497 | CF96: 3.284004813 | CG96: 3.292104055 | CH96: 3.300223272 | CI96: 3.308362513 | CJ96: 3.316521827 | CK96: 3.324701265 | CL96: 3.332900875 | CM96: 3.341120707 | CN96: 3.349360812 | CO96: 3.35762124 | CP96: 3.36590204 | CQ96: 3.374203262 | CR96: 3.382524957 | CS96: 3.390867177 | CT96: 3.39922997 | CU96: 3.407613388 | CV96: 3.416017482 | CW96: 3.424442302 | CX96: 3.432887901 | CY96: 3.441354329 | CZ96: 3.449841637 | DA96: 3.458349877 | DB96: 3.466879101 | DC96: 3.47542936 | DD96: 3.484000706 | DE96: 3.492593192 | DF96: 3.501206869 | DG96: 3.50984179 | DH96: 3.518498006 | DI96: 3.527175572 | DJ96: 3.535874538 | DK96: 3.544594958 | DL96: 3.553336886 | DM96: 3.562100373 | DN96: 3.570885474 | DO96: 3.579692241 | DP96: 3.588520727 | DQ96: 3.597370988 | DR96: 3.606243075 | DS96: 3.615137043 | DT96: 3.624052946 | DU96: 3.632990839 | DV96: 3.641950774 | DW96: 3.650932807 | DX96: 3.659936992 | DY96: 3.668963384 | DZ96: 3.678012038 | EA96: 3.687083008 | EB96: 3.696176349 | EC96: 3.705292117 | ED96: 3.714430367 | EE96: 3.723591155 | EF96: 3.732774535 | EG96: 3.741980564 | EH96: 3.751209297 | EI96: 3.760460791 | EJ96: =EJ95*EJ93 -> 3.769735102 | EK96: 3.779032286 | EL96: 3.788352399 | EM96: 3.797695498 | EN96: 3.80706164 | EO96: 3.816450881 | EP96: 3.825863278 | EQ96: 3.835298889 | ER96: 3.844757771 | ES96: 3.854239981 | ET96: 3.863745576 | EU96: 3.873274615 | EV96: 3.882827155 | EW96: 3.892403255 | EX96: 3.902002971 | EY96: 3.911626363 | EZ96: 3.921273489 | FA96: 3.930944407 | FB96: 3.940639177 | FC96: 4.740429427 | FD96: 4.752120605 | FE96: 4.763840616 | FF96: 4.775589532 | FG96: 4.787367424 | FH96: 4.799174364 | FI96: 4.811010423 | FJ96: 4.822875672 | FK96: 4.834770185 | FL96: 4.846694032 | FM96: 4.858647287 | FN96: 4.870630022 | FO96: 4.88264231 | FP96: 4.894684223 | FQ96: 4.906755835 | FR96: 4.918857218 | FS96: 4.930988447 | FT96: 4.943149595 | FU96: 4.955340735 | FV96: 4.967561942 | FW96: 4.97981329 | FX96: 4.992094853 | FY96: 5.004406706 | FZ96: 5.016748923 | GA96: 5.029121579 | GB96: 5.04152475 | GC96: 5.05395851 | GD96: 5.066422935 | GE96: 5.078918101 | GF96: 5.091444083 | GG96: 5.104000957 | GH96: 5.116588801 | GI96: 5.129207689 | GJ96: 5.141857699 | GK96: 5.154538907 | GL96: 5.167251391 | GM96: 5.179995226 | GN96: 5.192770492 | GO96: 5.205577265 | GP96: 5.218415623 | GQ96: 5.231285644 | GR96: 5.244187405 | GS96: 5.257120986 | GT96: 5.270086465 | GU96: 5.28308392 | GV96: =GV95*GV93 -> 5.29611343 | GW96: 5.309175074 | GX96: 5.322268932 | GY96: 5.335395083 | GZ96: 5.348553607 | HA96: 5.361744583 | HB96: 5.374968092 | HC96: 5.388224213 | HD96: 5.401513027 | HE96: 5.414834616 | HF96: 5.428189059 | HG96: 5.441576437 | HH96: 5.454996833 | HI96: 5.468450326 | HJ96: 5.481937 | HK96: 5.887989574 | HL96: 5.902510945 | HM96: 5.917068129 | HN96: 5.931661215 | HO96: 5.946290292 | HP96: 5.960955448 | HQ96: 5.975656772 | HR96: 5.990394354 | HS96: 6.005168282 | HT96: 6.019978648 | HU96: 6.034825539 | HV96: 6.049709047 | HW96: 6.064629261 | HX96: 6.079586273 | HY96: 6.094580173 | HZ96: 6.109611052 | IA96: 6.124679001 | IB96: 6.139784112 | IC96: 6.154926475 | ID96: 6.170106185 | IE96: 6.185323331 | IF96: 6.200578007 | IG96: 6.215870305 | IH96: 6.231200318 | II96: 6.246568139 | IJ96: 6.261973861 | IK96: 6.277417578 | IL96: 6.292899383 | IM96: 6.308419371 | IN96: 6.323977635 | IO96: 6.33957427 | IP96: 6.35520937 | IQ96: 6.370883031 | IR96: 6.386595347 | IS96: 6.402346414 | IT96: 6.418136328 | IU96: 6.433965183 | IV96: 6.449833077 | IW96: 6.465740105 | IX96: 6.481686365 | IY96: 6.497671952 | IZ96: 6.513696964 | JA96: 6.529761498 | JB96: 6.545865651 | JC96: 6.562009522 | JD96: 6.578193208 | JE96: 6.594416807 | JF96: 6.610680417 | JG96: 6.626984139 | JH96: =JH95*JH93 -> 6.643328069 | JI96: 6.659712309 | JJ96: 6.676136956 | JK96: 6.692602111 | JL96: 6.709107873 | JM96: 6.725654343 | JN96: 6.742241621 | JO96: 6.758869807 | JP96: 6.775539004 | JQ96: 6.792249311 | JR96: 6.80900083 | JS96: 6.825793663 | JT96: 6.842627911 | JU96: 6.859503678 | JV96: 6.876421064 | JW96: 6.893380174 | JX96: 6.910381109 | JY96: 6.927423973 | JZ96: 6.944508869 | KA96: 6.961635902 | KB96: 6.978805174 | KC96: 6.99601679 | KD96: 7.013270855 | KE96: 7.030567473 | KF96: 7.047906749 | KG96: 7.065288788 | KH96: 7.082713696 | KI96: 7.100181579 | KJ96: 7.117692542 | KK96: 7.135246692 | KL96: 7.152844135 | KM96: 7.170484979 | KN96: 7.188169329 | KO96: 7.205897294 | KP96: 7.223668981 | KQ96: 7.241484497 | KR96: 7.259343951 | KS96: 7.277247452 | KT96: 7.295195107 | KU96: 7.313187026 | KV96: 7.331223319 | KW96: 7.349304093 | KX96: 7.36742946 | KY96: 7.385599528 | KZ96: 7.403814409 | LA96: 7.422074213 | LB96: 7.44037905 | LC96: 7.458729032 | LD96: 7.47712427 | LE96: 7.495564875 | LF96: 7.51405096 | LG96: 7.532582637 | LH96: 7.551160018 | LI96: 7.569783216 | LJ96: 7.588452343 | LK96: 7.607167514 | LL96: 7.625928841 | LM96: 7.644736439 | LN96: 7.663590421 | LO96: 7.682490903 | LP96: 7.701437998 | LQ96: 7.720431822 | LR96: 7.739472489 | LS96: 7.758560116 | LT96: =LT95*LT93 -> 7.777694819 | LU96: 7.796876712 | LV96: 7.816105914 | LW96: 7.835382539 | LX96: 7.854706706 | LY96: 7.874078532 | LZ96: 7.893498134 | MA96: 7.91296563 | MB96: 7.932481138 | MC96: 7.952044776 | MD96: 7.971656664 | ME96: 7.99131692 | MF96: 8.011025663 | MG96: 8.030783014 | MH96: 8.050589091 | MI96: 8.070444016 | MJ96: 8.090347908 | MK96: 8.110300888 | ML96: 8.130303078 | MM96: 8.150354599 | MN96: 8.170455572 | MO96: 8.19060612 | MP96: 8.210806364 | MQ96: 8.231056427 | MR96: 8.251356433 | MS96: 8.271706504 | MT96: 8.292106764 | MU96: 8.312557336 | MV96: 8.333058345 | MW96: 8.353609915 | MX96: 8.37421217 | MY96: 8.394865237 | MZ96: 8.415569239 | NA96: 8.436324303 | NB96: 8.457130555 | NC96: 8.47798812 | ND96: 8.498897126 | NE96: 8.519857699 | NF96: 8.540869967 | NG96: 8.561934056 | NH96: 8.583050095 | NI96: 8.604218212 | NJ96: 8.625438536 | NK96: 8.646711194 | NL96: 8.668036316 | NM96: 8.689414032 | NN96: 8.710844471 | NO96: 8.732327764 | NP96: 8.75386404 | NQ96: 8.77545343 | NR96: 8.797096066 | NS96: 8.818792078 | NT96: 8.840541598 | NU96: 8.862344759 | NV96: 8.884201692 | NW96: 8.90611253 | NX96: 8.928077406 | NY96: 8.950096453 | NZ96: 8.972169806 | OA96: 8.994297597 | OB96: 9.016479961 | OC96: 9.038717033 | OD96: 9.061008948 | OE96: 9.08335584
C97: Nominal OpEX | E97: USD 000 | F97: Capacity | G97: =G64 -> 300 | K97: =K96*$G$97 -> 0 | L97: =L96*$G$97 -> 0 | M97: 0 | N97: 0 | O97: 0 | P97: 0 | Q97: 0 | R97: 0 | S97: 0 | T97: 0 | U97: 0 | V97: 0 | W97: 0 | X97: 0 | Y97: 0 | Z97: 0 | AA97: 0 | AB97: 0 | AC97: 0 | AD97: 0 | AE97: 0 | AF97: 0 | AG97: 0 | AH97: 0 | AI97: 0 | AJ97: 0 | AK97: 0 | AL97: 0 | AM97: 0 | AN97: 0 | AO97: 0 | AP97: 0 | AQ97: 0 | AR97: 0 | AS97: 0 | AT97: 0 | AU97: 0 | AV97: 0 | AW97: 0 | AX97: 0 | AY97: 920.9269098 | AZ97: 922.4478955 | BA97: 923.9713932 | BB97: 925.4974071 | BC97: 927.0259413 | BD97: 928.557 | BE97: 930.0905874 | BF97: 931.6267076 | BG97: 933.1653649 | BH97: 934.7065633 | BI97: 936.2503072 | BJ97: 937.7966007 | BK97: 939.345448 | BL97: 940.8968534 | BM97: 942.4508211 | BN97: 944.0073552 | BO97: 945.5664601 | BP97: 947.12814 | BQ97: 949.4640135 | BR97: 951.8056479 | BS97: 954.1530574 | BT97: 956.5062562 | BU97: 958.8652587 | BV97: 961.2300791 | BW97: 963.6007318 | BX97: =BX96*$G$97 -> 965.9772312 | BY97: 968.3595916 | BZ97: 970.7478276 | CA97: 973.1419536 | CB97: 975.5419842 | CC97: 977.9479339 | CD97: 980.3598173 | CE97: 982.7776491 | CF97: 985.2014439 | CG97: 987.6312165 | CH97: 990.0669815 | CI97: 992.5087538 | CJ97: 994.9565481 | CK97: 997.4103794 | CL97: 999.8702624 | CM97: 1002.336212 | CN97: 1004.808244 | CO97: 1007.286372 | CP97: 1009.770612 | CQ97: 1012.260979 | CR97: 1014.757487 | CS97: 1017.260153 | CT97: 1019.768991 | CU97: 1022.284016 | CV97: 1024.805245 | CW97: 1027.332691 | CX97: 1029.86637 | CY97: 1032.406299 | CZ97: 1034.952491 | DA97: 1037.504963 | DB97: 1040.06373 | DC97: 1042.628808 | DD97: 1045.200212 | DE97: 1047.777958 | DF97: 1050.362061 | DG97: 1052.952537 | DH97: 1055.549402 | DI97: 1058.152671 | DJ97: 1060.762361 | DK97: 1063.378488 | DL97: 1066.001066 | DM97: 1068.630112 | DN97: 1071.265642 | DO97: 1073.907672 | DP97: 1076.556218 | DQ97: 1079.211296 | DR97: 1081.872922 | DS97: 1084.541113 | DT97: 1087.215884 | DU97: 1089.897252 | DV97: 1092.585232 | DW97: 1095.279842 | DX97: 1097.981098 | DY97: 1100.689015 | DZ97: 1103.403611 | EA97: 1106.124902 | EB97: 1108.852905 | EC97: 1111.587635 | ED97: 1114.32911 | EE97: 1117.077346 | EF97: 1119.83236 | EG97: 1122.594169 | EH97: 1125.362789 | EI97: 1128.138237 | EJ97: =EJ96*$G$97 -> 1130.920531 | EK97: 1133.709686 | EL97: 1136.50572 | EM97: 1139.308649 | EN97: 1142.118492 | EO97: 1144.935264 | EP97: 1147.758983 | EQ97: 1150.589667 | ER97: 1153.427331 | ES97: 1156.271994 | ET97: 1159.123673 | EU97: 1161.982385 | EV97: 1164.848147 | EW97: 1167.720976 | EX97: 1170.600891 | EY97: 1173.487909 | EZ97: 1176.382047 | FA97: 1179.283322 | FB97: 1182.191753 | FC97: 1422.128828 | FD97: 1425.636181 | FE97: 1429.152185 | FF97: 1432.67686 | FG97: 1436.210227 | FH97: 1439.752309 | FI97: 1443.303127 | FJ97: 1446.862702 | FK97: 1450.431055 | FL97: 1454.00821 | FM97: 1457.594186 | FN97: 1461.189007 | FO97: 1464.792693 | FP97: 1468.405267 | FQ97: 1472.02675 | FR97: 1475.657165 | FS97: 1479.296534 | FT97: 1482.944878 | FU97: 1486.602221 | FV97: 1490.268583 | FW97: 1493.943987 | FX97: 1497.628456 | FY97: 1501.322012 | FZ97: 1505.024677 | GA97: 1508.736474 | GB97: 1512.457425 | GC97: 1516.187553 | GD97: 1519.92688 | GE97: 1523.67543 | GF97: 1527.433225 | GG97: 1531.200287 | GH97: 1534.97664 | GI97: 1538.762307 | GJ97: 1542.55731 | GK97: 1546.361672 | GL97: 1550.175417 | GM97: 1553.998568 | GN97: 1557.831148 | GO97: 1561.673179 | GP97: 1565.524687 | GQ97: 1569.385693 | GR97: 1573.256222 | GS97: 1577.136296 | GT97: 1581.025939 | GU97: 1584.925176 | GV97: =GV96*$G$97 -> 1588.834029 | GW97: 1592.752522 | GX97: 1596.68068 | GY97: 1600.618525 | GZ97: 1604.566082 | HA97: 1608.523375 | HB97: 1612.490427 | HC97: 1616.467264 | HD97: 1620.453908 | HE97: 1624.450385 | HF97: 1628.456718 | HG97: 1632.472931 | HH97: 1636.49905 | HI97: 1640.535098 | HJ97: 1644.5811 | HK97: 1766.396872 | HL97: 1770.753283 | HM97: 1775.120439 | HN97: 1779.498365 | HO97: 1783.887088 | HP97: 1788.286634 | HQ97: 1792.697032 | HR97: 1797.118306 | HS97: 1801.550485 | HT97: 1805.993594 | HU97: 1810.447662 | HV97: 1814.912714 | HW97: 1819.388778 | HX97: 1823.875882 | HY97: 1828.374052 | HZ97: 1832.883316 | IA97: 1837.4037 | IB97: 1841.935233 | IC97: 1846.477943 | ID97: 1851.031855 | IE97: 1855.596999 | IF97: 1860.173402 | IG97: 1864.761092 | IH97: 1869.360095 | II97: 1873.970442 | IJ97: 1878.592158 | IK97: 1883.225273 | IL97: 1887.869815 | IM97: 1892.525811 | IN97: 1897.19329 | IO97: 1901.872281 | IP97: 1906.562811 | IQ97: 1911.264909 | IR97: 1915.978604 | IS97: 1920.703924 | IT97: 1925.440898 | IU97: 1930.189555 | IV97: 1934.949923 | IW97: 1939.722032 | IX97: 1944.505909 | IY97: 1949.301586 | IZ97: 1954.109089 | JA97: 1958.928449 | JB97: 1963.759695 | JC97: 1968.602857 | JD97: 1973.457962 | JE97: 1978.325042 | JF97: 1983.204125 | JG97: 1988.095242 | JH97: =JH96*$G$97 -> 1992.998421 | JI97: 1997.913693 | JJ97: 2002.841087 | JK97: 2007.780633 | JL97: 2012.732362 | JM97: 2017.696303 | JN97: 2022.672486 | JO97: 2027.660942 | JP97: 2032.661701 | JQ97: 2037.674793 | JR97: 2042.700249 | JS97: 2047.738099 | JT97: 2052.788373 | JU97: 2057.851103 | JV97: 2062.926319 | JW97: 2068.014052 | JX97: 2073.114333 | JY97: 2078.227192 | JZ97: 2083.352661 | KA97: 2088.490771 | KB97: 2093.641552 | KC97: 2098.805037 | KD97: 2103.981256 | KE97: 2109.170242 | KF97: 2114.372025 | KG97: 2119.586636 | KH97: 2124.814109 | KI97: 2130.054474 | KJ97: 2135.307763 | KK97: 2140.574008 | KL97: 2145.853241 | KM97: 2151.145494 | KN97: 2156.450799 | KO97: 2161.769188 | KP97: 2167.100694 | KQ97: 2172.445349 | KR97: 2177.803185 | KS97: 2183.174236 | KT97: 2188.558532 | KU97: 2193.956108 | KV97: 2199.366996 | KW97: 2204.791228 | KX97: 2210.228838 | KY97: 2215.679858 | KZ97: 2221.144323 | LA97: 2226.622264 | LB97: 2232.113715 | LC97: 2237.61871 | LD97: 2243.137281 | LE97: 2248.669463 | LF97: 2254.215288 | LG97: 2259.774791 | LH97: 2265.348005 | LI97: 2270.934965 | LJ97: 2276.535703 | LK97: 2282.150254 | LL97: 2287.778652 | LM97: 2293.420932 | LN97: 2299.077126 | LO97: 2304.747271 | LP97: 2310.431399 | LQ97: 2316.129546 | LR97: 2321.841747 | LS97: 2327.568035 | LT97: =LT96*$G$97 -> 2333.308446 | LU97: 2339.063014 | LV97: 2344.831774 | LW97: 2350.614762 | LX97: 2356.412012 | LY97: 2362.22356 | LZ97: 2368.04944 | MA97: 2373.889689 | MB97: 2379.744341 | MC97: 2385.613433 | MD97: 2391.496999 | ME97: 2397.395076 | MF97: 2403.307699 | MG97: 2409.234904 | MH97: 2415.176727 | MI97: 2421.133205 | MJ97: 2427.104372 | MK97: 2433.090266 | ML97: 2439.090923 | MM97: 2445.10638 | MN97: 2451.136672 | MO97: 2457.181836 | MP97: 2463.241909 | MQ97: 2469.316928 | MR97: 2475.40693 | MS97: 2481.511951 | MT97: 2487.632029 | MU97: 2493.767201 | MV97: 2499.917503 | MW97: 2506.082974 | MX97: 2512.263651 | MY97: 2518.459571 | MZ97: 2524.670772 | NA97: 2530.897291 | NB97: 2537.139166 | NC97: 2543.396436 | ND97: 2549.669138 | NE97: 2555.95731 | NF97: 2562.26099 | NG97: 2568.580217 | NH97: 2574.915029 | NI97: 2581.265464 | NJ97: 2587.631561 | NK97: 2594.013358 | NL97: 2600.410895 | NM97: 2606.82421 | NN97: 2613.253341 | NO97: 2619.698329 | NP97: 2626.159212 | NQ97: 2632.636029 | NR97: 2639.12882 | NS97: 2645.637623 | NT97: 2652.162479 | NU97: 2658.703428 | NV97: 2665.260507 | NW97: 2671.833759 | NX97: 2678.423222 | NY97: 2685.028936 | NZ97: 2691.650942 | OA97: 2698.289279 | OB97: 2704.943988 | OC97: 2711.61511 | OD97: 2718.302684 | OE97: 2725.006752
B100: Pre-tax Cashflow | E100: USD
B101: Pre-tax IRR | E101: %
B102: Pre-tax IRR | E102: %

Sheet Colour Test
G4: Function lookup1(lookup_value, test_array, result_array)
C5: Input 1 | D5: 100
C6: Input 2 | D6: 200 | G6: found = 0
C7: Total | D7: =SUM(D5:D6) -> 300
G8: For i = 1 To test_array.Count
G9: If WorksheetFunction.IsNumber(test_array(i)) Then
G10: If lookup_value >= test_array(i) Then
G11: found = 1
G12: Exit For
G13: End If
G14: End If
G15: Next i
G17: If found = 1 Then
G18: lookup1 = WorksheetFunction.Lookup(lookup_value, test_array, result_array)
G19: Else
G20: lookup1 = 0
G21: End If
G23: End Function

Sheet Advertising
C2: High Quality Modelling, Finance and Energy Courses
C4: This page is my advertising and publicity - You can of course delete the page without affecting the model
C6: I have taught classes for many years and I believe I have learned from my mistakes and can offer high quality courses
C8: Here is my simple concept
D9: 1. Deliver the courses at a reasonable price -- I will do quite well if a lot of people attend and I will survive if course numbers are low
E10: USD 1,000 -2,000 for courses in Europe
E11: USD 750 - 1,500 for courses in Africa and Latin America
D12: 2. Do not cancel the classes as long as one student has signed up (I take the risk of low numbers and not you)
D13: 3. Limit the size of the classes to 25 participants
D14: 4. Lunches are offered by not with a four course elaborate menu -- we assume that you are attending the course to learn and not to have a fancy lunch
C16: Download Outlines at | I16: www.FinanceEnergyInstitute.com
C17: Check for upcomming dates | I17: www.FinanceEnergyInstitute.com
C19: Customised In-Company Courses
C21: I also offer courses tailored for single institutions (or combinations of institutions)
C22: Depending on various considerations my rate is USD 1,500 to USD 2,000 per day plus expenses
C24: Contact Details
D25: E-mail | I25: edwardbodmer@gmail.com
D26: Phone | I26: 001-630-886-2754
D28: Skype | I28: edward.bodmer
D29: Link to Book
